{"text_format":"1","workbook":"xlsx","n_sheets":16,"sheets":["ตั้งค่า","กรอกจุดประสงค์","ปกหน้า","รายชื่อนักเรียน","บันทึกการเข้าร่วมกิจกรรมT1","บันทึกการเข้าร่วมกิจกรรมT2","สรุปเวลาการเข้าร่วมกิจกรรม","ประเมินจุดประสงค์การเรียนรู้","สรุปผลการประเมินกิจกรรม","จุดประสงค์การเรียนรู้","ปกหลัง","บันทึกข้อความ","กิจกรรมแนะแนว","กิจกรรมลูกเสือ","กิจกรรมชุมนุม","กิจกรรมเพื่อสังคม"],"not_rendered":{"charts":0,"images":24,"macros":1,"external_links":0,"defined_names":18,"comments":0,"pivot_tables":0},"unopened":[],"bounds":{"document_bytes":16777216,"sheet_cells":100000,"rows_first":2000,"rows_last":500,"rows_between":2000,"halvings":0,"cell_chars":16384,"cell_head_chars":4096},"cells_cut":0,"cells_raw":0,"read":"whole","date_system":"1900"}

{"sheet":"ตั้งค่า","index":0,"n_rows":36,"n_cols":34,"rows_kept":36,"cut":false,"hidden":false,"merged":[[28,2,28,3],[0,20,18,20],[31,10,31,13],[27,10,27,13],[28,10,28,13],[29,10,29,13],[18,9,18,14],[1,19,11,19],[19,9,19,14],[20,9,20,14],[17,9,17,14],[1,18,9,18],[29,2,29,5],[30,10,30,13],[0,0,6,8],[10,2,10,3],[27,2,27,5],[17,2,17,5],[18,2,18,5],[24,2,24,5],[20,3,20,4],[19,2,19,5],[21,3,21,4],[22,2,22,3],[22,4,22,5],[26,2,26,5],[7,1,7,7],[7,9,7,14],[25,2,25,5],[11,2,11,5],[12,2,12,5],[13,2,13,5],[14,2,14,5],[15,2,15,5],[26,10,26,13],[23,1,23,2],[13,9,13,14],[12,9,12,14],[8,1,8,14],[15,9,15,14],[16,9,16,14],[14,9,14,14],[16,2,16,5]]}
[null,null,null,null,null,null,null,null,null,null,null,null,null,null,null,null,null,null,null,null,"    โปรแกรมประเมินกิจกรรมพัฒนาผู้เรียน - ประถม V.4 NEW"]
[null,null,null,null,null,null,null,null,null,null,null,null,null,null,null,null,null,null,"อัพเดทล่าสุด - ปี 2567","ออกแบบและพัฒนาโดย KRU WANG"]
[]
[]
[]
[]
[]
[null,"ตั้งค่าโปรแกรม"]
[null,"คำเตือน ! >> อย่าลืมเปิดใช้งานแมโคร ก่อนคีย์ข้อมูลทุกครั้ง <<"]
[]
[null,"ปีการศึกษา ",null,null,null,null,null,null,null,null,null,null,null,null,null,null,null,null,null,null,null,null,null,null,null,null,null,null,0,0,"-",49,"ต่ำกว่าเกณฑ์","0"]
[null,"โรงเรียน ","บ้านหัวคลอง",null,null,null,null,null,null,null,null,null,null,null,null,null,null,null,null,null,null,null,null,null,null,null,null,null,50,50,"-",54,"ผ่านเกณฑ์ขั้นต่ำ","1"]
[null,"ตำบล ","เจ๊ะเห",null,null,null,null,null,null,null,null,null,null,null,null,null,null,null,null,null,null,null,null,null,null,null,null,null,55,55,"-",59,"พอใช้","1.5"]
[null,"อำเภอ ","ตากใบ",null,null,null,null,null,null,"โปรแกรมนี้รองรับ MS Excel 2021 ขึ้นไป",null,null,null,null,null,null,null,null,null,null,null,null,null,null,null,null,null,null,60,60,"-",64,"ปานกลาง","2"]
[null,"จังหวัด ","นราธิวาส",null,null,null,null,null,null,"รองรับคอมพิวเตอร์ตั้งค่าเป็น Thailand เท่านั้น",null,null,null,null,null,null,null,null,null,null,null,null,null,null,null,null,null,null,65,65,"-",69,"ค่อนข้างดี","2.5"]
[null,"สังกัด ","สำนักงานเขตพื้นที่การศึกษาประถมศึกษานราธิวาส เขต 2",null,null,null,null,null,null,"ไม่แนะนำใช้โปรแกรมนี้กับคอมพิวเตอร์ Macbook",null,null,null,null,null,null,null,null,null,null,null,null,null,null,null,null,null,null,70,70,"-",74,"ดี","3"]
[null,"ระดับชั้น ",null,null,null,null,null,null,null,null,null,null,null,null,null,null,null,null,null,null,null,null,null,null,null,null,null,null,75,75,"-",79,"ดีมาก","3.5"]
[null,"ครูที่ปรึกษาคนที่ 1 ",null,null,null,null,null,null,null,"คำแนะนำ",null,null,null,null,null,null,null,null,null,null,null,null,null,null,null,null,null,null,80,80,"-",100,"ดีเยี่ยม","4"]
[null,"ครูที่ปรึกษาคนที่ 2 ",null,null,null,null,null,null,null,"ควรทำสำเนาจากไฟล์ต้นฉบับ (ห้ามคีย์ในต้นฉบับ)"]
[null,"ชื่อกิจกรรม ",null,null,null,null,null,null,null,"แล้วตั้งชื่อไฟล์ใหม่ เพื่อใช้บันทึกข้อมูลเป็นรายกิจกรรม",null,null,null,null,null,null,null,null,null,null,null,null,null,null,null,null,null,null,null,0,"-",49,"ไม่ผ่าน",0]
[null,"เวลาเรียนตลอดปี ",null,"ชั่วโมง",null,"1 ชั่วโมง",null,null,null,"  ให้สอดคล้องกับกิจกรรม ปีและระดับชั้นที่สอน ",null,null,null,null,null,null,null,null,null,null,null,null,null,null,null,null,null,null,null,50,"-",64,"ผ่าน","1"]
[null,"น้ำหนักวิชา ",{"$f":"C21/40","v":0},"หน่วยกิต",null,{"$f":"IF(F21=\"1 ชั่วโมง\",(C21),((C21*60/50)))","v":0},null,null,null,null,"เช่น ","*** ปพ.ลูกเสือ ป.1-67",null,null,null,null,null,null,null,null,null,null,null,null,null,null,null,null,null,65,"-",79,"ดี",2]
[null,"ประเภท ","กิจกรรมพัฒนาผู้เรียน",null,{"$f":"\"จำนวน \" & ROUNDDOWN((F22/2)/20,0) & \" คาบ/สัปดาห์\"","v":"จำนวน 0 คาบ/สัปดาห์"},null,null,null,null,null,null,"*** ปพ.แนะแนว ป.4-68",null,null,null,null,null,null,null,null,null,null,null,null,null,null,null,null,null,80,"-",100,"ดีเยี่ยม",3]
[]
[null,"หัวหน้างานวัดและประเมินผล "]
[null,"หัวหน้าฝ่ายบริหารงานวิชาการ "]
[null,"ผู้อำนวยการโรงเรียน"]
[null,"รองผู้อำนวยการโรงเรียน "]
[null,"วันที่ (อนุมัติผล) ",null,null,"วันอนุมัติตรงกับวัน",{"$f":"TEXT(C29,\"dddd\")","v":"เสาร์"}]
[]
[]
[]
[null,null,null,null,null,null,null,null,null,null,null,null,null,null,null,null,null,null,null,null,null,null,null,null,null,null,null,null,60]
[null,null,null,null,null,null,null,null,null,null,null,null,null,null,null,null,null,null,null,null,null,null,null,null,null,null,null,null,65]
[null,null,null,null,null,null,null,null,null,null,null,null,null,null,null,null,null,null,null,null,null,null,null,null,null,null,null,null,70]
[null,null,null,null,null,null,null,null,null,null,null,null,null,null,null,null,null,null,null,null,null,null,null,null,null,null,null,null,75]

{"sheet":"กรอกจุดประสงค์","index":1,"n_rows":3,"n_cols":8,"rows_kept":3,"cut":false,"hidden":false,"merged":[[1,7,2,7],[1,1,1,6],[41,2,41,6],[42,2,42,6],[15,2,15,6],[16,2,16,6],[17,2,17,6],[25,2,25,6],[26,2,26,6],[27,2,27,6],[28,2,28,6],[29,2,29,6],[30,2,30,6],[33,2,33,6],[34,2,34,6],[39,2,39,6],[40,2,40,6],[31,2,31,6],[32,2,32,6],[18,2,18,6],[24,2,24,6],[35,2,35,6],[21,2,21,6],[22,2,22,6],[23,2,23,6],[19,2,19,6],[20,2,20,6],[36,2,36,6],[37,2,37,6],[38,2,38,6],[2,2,2,6],[3,2,3,6],[4,2,4,6],[9,2,9,6],[10,2,10,6],[13,2,13,6],[14,2,14,6],[11,2,11,6],[12,2,12,6],[5,2,5,6],[6,2,6,6],[7,2,7,6],[8,2,8,6]]}
[]
[null,{"$f":"\"จุดประสงค์การเรียนรู้ กิจกรรม\"&ตั้งค่า!C20&\"  ชั้น\"&ตั้งค่า!C17","v":"จุดประสงค์การเรียนรู้ กิจกรรม  ชั้น"},null,null,null,null,null,"ภาคเรียนที่"]
[null,"ข้อที่","เรื่อง"]

{"sheet":"ปกหน้า","index":2,"n_rows":35,"n_cols":17,"rows_kept":35,"cut":false,"hidden":false,"merged":[[1,16,2,25],[18,3,18,6],[19,3,19,6],[18,7,18,10],[19,7,19,10],[10,7,10,8],[13,3,13,6],[13,7,13,8],[14,1,14,12],[15,2,17,2],[15,3,15,10],[15,11,17,11],[16,3,16,10],[17,3,17,6],[17,7,17,10],[5,3,5,10],[1,12,1,13],[4,1,4,12],[6,3,6,6],[6,8,6,11],[7,3,7,5],[7,8,7,11],[23,4,23,7],[24,4,24,7],[8,1,8,12],[9,4,9,5],[9,7,9,9],[13,9,13,12],[11,2,11,3],[11,4,11,5],[3,16,3,25],[34,5,34,8],[30,4,30,5],[27,1,27,3],[28,1,28,3],[27,4,27,7],[28,4,28,7],[31,5,31,8],[32,5,32,8],[33,1,33,12],[24,1,24,3],[28,8,28,13],[23,1,23,3],[27,8,27,13],[23,8,23,13],[24,8,24,13]]}
[]
[null,null,null,null,null,null,null,null,null,null,null,null,null,null,null,null,"ห้ามแก้ไขข้อมูลในหน้านี้เด็ดขาด"]
[]
[null,null,null,null,null,null,null,null,null,null,null,null,null,null,null,null,"หากต้องการแก้ไขข้อมูล ให้ไปที่ชีทตั้งค่า"]
[null,"แบบประเมินผลกิจกรรมพัฒนาผู้เรียน"]
[null,null,null,{"$f":"\" ชื่อกิจกรรม \" & ตั้งค่า!C20 & \" \"","v":" ชื่อกิจกรรม  "}]
[null,null,"โรงเรียน",{"$f":"ตั้งค่า!C12","v":"บ้านหัวคลอง"},null,null,null,"ตำบล",{"$f":"ตั้งค่า!C13","v":"เจ๊ะเห"}]
[null,null,"อำเภอ",{"$f":"ตั้งค่า!C14","v":"ตากใบ"},null,null,null,"จังหวัด",{"$f":"ตั้งค่า!C15","v":"นราธิวาส"}]
[null,{"$f":"\"สังกัด\"&ตั้งค่า!C16","v":"สังกัดสำนักงานเขตพื้นที่การศึกษาประถมศึกษานราธิวาส เขต 2"}]
[null,null,null,"ปีการศึกษา",{"$f":"\" \" & ตั้งค่า!C11 & \" \"","v":"  "},null,"ชั้น",{"$f":"\" \" & ตั้งค่า!C17 & \" \"","v":"  "}]
[null,null,null,null,"เวลาเรียนทั้งหมด",{"$f":"\" \" & ตั้งค่า!C21 & \" \"","v":"  "},"ชั่วโมง","น้ำหนักวิชา",null,{"$f":"ตั้งค่า!C22","v":0},"หน่วยกิต"]
[]
[]
[null,null,"ครูที่ปรึกษาคนที่ 1",{"$f":"\" \" & ตั้งค่า!C18 & \" \"","v":"  "},null,null,null,"ครูที่ปรึกษาคนที่ 2",null,{"$f":"\" \" & ตั้งค่า!C19 & \" \"","v":"  "}]
[]
[null,null,"จำนวนนักเรียนทั้งหมด","สรุปผลการประเมินกิจกรรม",null,null,null,null,null,null,null,"หมายเหตุ"]
[null,null,null,"จำนวนนักเรียนที่ได้ระดับผลการประเมิน"]
[null,null,null,"ผ่าน",null,null,null,"ไม่ผ่าน"]
[null,null,{"$f":"รายชื่อนักเรียน!L4","v":0},{"$f":"สรุปผลการประเมินกิจกรรม!F54","v":0},null,null,null,{"$f":"สรุปผลการประเมินกิจกรรม!G54","v":0}]
[null,null,"ร้อยละ",{"$f":"สรุปผลการประเมินกิจกรรม!F55","v":""},null,null,null,{"$f":"สรุปผลการประเมินกิจกรรม!G55","v":""}]
[]
[null," การอนุมัติผลการประเมิน"]
[null,null,null,null,"ลงชื่อ",null,null,null,null,"ลงชื่อ"]
[null,null,null,null,{"$f":"\"( \" & ตั้งค่า!C18 & \" )\"","v":"(  )"},null,null,null,{"$f":"\"( \" & ตั้งค่า!C19 & \" )\"","v":"(  )"}]
[null,null,null,null,"ครูที่ปรึกษาคนที่ 1",null,null,null,"ครูที่ปรึกษาคนที่ 2"]
[]
[null,"ลงชื่อ",null,null,"ลงชื่อ",null,null,null,null,"ลงชื่อ"]
[null,{"$f":"\"( \" & ตั้งค่า!C25 & \" )\"","v":"(  )"},null,null,{"$f":"\"( \" & ตั้งค่า!C26 & \" )\"","v":"(  )"},null,null,null,{"$f":"\"( \" & ตั้งค่า!C28 & \" )\"","v":"(  )"}]
[null,"หัวหน้างานวัดและประเมินผล",null,null,"หัวหน้าฝ่ายบริหารงานวิชาการ",null,null,null,{"$f":"\"รองผู้อำนวยการโรงเรียน\" & ตั้งค่า!C12","v":"รองผู้อำนวยการโรงเรียนบ้านหัวคลอง"}]
[]
[null,"เรียนเสนอเพื่อพิจารณา",null,null,null,null," อนุมัติ  ","          ไม่อนุมัติ"]
[null,null,null,null,"ลงชื่อ"]
[null,null,null,null,null,{"$f":"\"( \" & ตั้งค่า!C27 & \" )\"","v":"(  )"}]
[null,{"$f":"ตั้งค่า!B27&ตั้งค่า!C12","v":"ผู้อำนวยการโรงเรียนบ้านหัวคลอง"}]
[null,null,null,null,null,{"$f":"ตั้งค่า!C29","v":"00:00:00"},null,null,null,null,"         "]

{"sheet":"รายชื่อนักเรียน","index":3,"n_rows":10,"n_cols":19,"rows_kept":10,"cut":false,"hidden":false,"merged":[[4,11,4,12],[4,15,4,17],[0,6,0,10],[1,1,1,5],[1,8,1,10],[2,1,4,1],[2,2,4,2],[2,3,4,3],[2,4,4,4],[2,5,4,5],[2,6,4,6],[2,8,2,10],[3,8,3,10],[5,15,5,17],[6,15,6,17],[7,15,7,17],[8,15,8,17],[9,15,9,17]]}
[]
[null,{"$f":"\"รายชื่อนักเรียน กิจกรรม\"&ตั้งค่า!C20&\"  ชั้น\"&ตั้งค่า!C17","v":"รายชื่อนักเรียน กิจกรรม  ชั้น"}]
[null,"เลขที่","เลขประจำตัว","เลขประจำตัวประชาชน","ชื่อ - สกุล","หมายเหตุ"]
[null,null,null,null,null,null,null,null,null,null,null,{"$f":"S10","v":0}]
[null,null,null,null,null,null,null,null,null,null,null,"ออก",null,null,null,"จำนวนนักเรียน เมื่อต้นปีการศึกษา",null,null,{"$f":"IF(COUNTA(รายชื่อนักเรียน!$E$6:$E$50),COUNTA(รายชื่อนักเรียน!$E$6:$E$50),\"0\")","v":"0"}]
[null,null,null,null,null,null,null,null,null,null,null,null,"ย้าย",null,null,"จำนวนนักเรียน ออกระหว่างปี",null,null,{"$f":"COUNTIF($F$6:$F$50,\"ออก\")","v":0}]
[null,null,null,null,null,null,null,null,null,null,null,null,null,null,null,"จำนวนนักเรียน ย้ายออก",null,null,{"$f":"COUNTIF($F$6:$F$50,\"ย้าย\")","v":0}]
[null,null,null,null,null,null,null,null,null,null,null,null,null,null,null,"จำนวนนักเรียนที่ติด ร",null,null,{"$f":"COUNTIF($F$6:$F$50,\"ร\")","v":0}]
[null,null,null,null,null,null,null,null,null,null,null,null,null,null,null,"จำนวนนักเรียนที่ติด มส",null,null,{"$f":"COUNTIF($F$6:$F$50,\"มส\")","v":0}]
[null,null,null,null,null,null,null,null,null,null,null,null,null,null,null,"จำนวนนักเรียน เมื่อสิ้นปีการศึกษา",null,null,{"$f":"(S5-S6)-S7","v":0}]

{"sheet":"บันทึกการเข้าร่วมกิจกรรมT1","index":4,"n_rows":54,"n_cols":202,"rows_kept":54,"cut":false,"hidden":false,"merged":[[50,34,50,35],[50,67,50,68],[50,100,50,101],[50,133,50,134],[50,166,50,167],[52,1,52,2],[52,34,52,35],[52,67,52,68],[52,100,52,101],[52,133,52,134],[52,166,52,167],[51,1,51,2],[50,1,50,2],[48,34,48,35],[48,67,48,68],[48,100,48,101],[48,133,48,134],[48,166,48,167],[49,1,49,2],[49,34,49,35],[49,67,49,68],[49,100,49,101],[49,133,49,134],[49,166,49,167],[48,1,48,2],[46,34,46,35],[46,67,46,68],[46,100,46,101],[46,133,46,134],[46,166,46,167],[47,1,47,2],[47,34,47,35],[47,67,47,68],[47,100,47,101],[47,133,47,134],[47,166,47,167],[46,1,46,2],[1,198,5,198],[29,133,29,134],[30,133,30,134],[31,133,31,134],[32,133,32,134],[33,133,33,134],[34,133,34,134],[35,133,35,134],[36,133,36,134],[29,166,29,167],[30,166,30,167],[31,166,31,167],[32,166,32,167],[33,166,33,167],[34,166,34,167],[35,166,35,167],[36,166,36,167],[1,164,3,164],[6,133,6,134],[7,133,7,134],[8,133,8,134],[9,133,9,134],[10,133,10,134],[1,152,3,152],[29,67,29,68],[30,67,30,68],[31,67,31,68],[32,67,32,68],[33,67,33,68],[34,67,34,68],[35,67,35,68],[36,67,36,68],[29,100,29,101],[30,100,30,101],[31,100,31,101],[32,100,32,101],[33,100,33,101],[34,100,34,101],[35,100,35,101],[36,100,36,101],[45,34,45,35],[41,34,41,35],[42,34,42,35],[43,34,43,35],[44,34,44,35],[29,1,29,2],[30,1,30,2],[31,1,31,2],[32,1,32,2],[33,1,33,2],[34,1,34,2],[35,1,35,2],[36,1,36,2],[29,34,29,35],[30,34,30,35],[31,34,31,35],[32,34,32,35],[33,34,33,35],[34,34,34,35],[35,34,35,35],[36,34,36,35],[37,34,37,35],[38,34,38,35],[39,34,39,35],[40,34,40,35],[23,34,23,35],[24,34,24,35],[25,34,25,35],[26,34,26,35],[27,34,27,35],[20,34,20,35],[21,34,21,35],[22,34,22,35],[13,34,13,35],[14,34,14,35],[15,34,15,35],[16,34,16,35],[17,34,17,35],[28,34,28,35],[12,34,12,35],[1,63,3,63],[18,34,18,35],[19,34,19,35],[8,34,8,35],[9,34,9,35],[10,34,10,35],[11,34,11,35],[1,64,3,64],[1,65,3,65],[6,34,6,35],[7,34,7,35],[1,58,3,58],[1,59,3,59],[1,60,3,60],[1,61,3,61],[1,62,3,62],[1,43,3,43],[1,44,3,44],[1,45,3,45],[1,46,3,46],[1,47,3,47],[1,35,3,35],[1,34,5,34],[1,36,3,36],[1,37,3,37],[1,38,3,38],[1,39,3,39],[1,40,3,40],[1,41,3,41],[1,42,3,42],[1,31,3,31],[1,32,3,32],[0,0,0,32],[1,33,5,33],[0,33,0,65],[1,48,3,48],[1,49,3,49],[1,50,3,50],[1,51,3,51],[1,52,3,52],[1,53,3,53],[1,54,3,54],[1,55,3,55],[1,56,3,56],[1,57,3,57],[1,27,3,27],[1,28,3,28],[1,29,3,29],[1,30,3,30],[1,2,3,2],[1,22,3,22],[1,23,3,23],[1,24,3,24],[1,25,3,25],[1,0,5,0],[1,1,5,1],[1,3,3,3],[1,4,3,4],[1,5,3,5],[1,6,3,6],[1,7,3,7],[16,1,16,2],[6,1,6,2],[7,1,7,2],[8,1,8,2],[9,1,9,2],[10,1,10,2],[11,1,11,2],[12,1,12,2],[13,1,13,2],[14,1,14,2],[15,1,15,2],[28,1,28,2],[17,1,17,2],[18,1,18,2],[19,1,19,2],[20,1,20,2],[21,1,21,2],[22,1,22,2],[23,1,23,2],[24,1,24,2],[25,1,25,2],[26,1,26,2],[27,1,27,2],[37,1,37,2],[38,1,38,2],[39,1,39,2],[40,1,40,2],[41,1,41,2],[42,1,42,2],[43,1,43,2],[44,1,44,2],[45,1,45,2],[1,8,3,8],[1,9,3,9],[1,10,3,10],[1,11,3,11],[1,26,3,26],[1,17,3,17],[1,18,3,18],[1,19,3,19],[1,20,3,20],[1,21,3,21],[1,12,3,12],[1,13,3,13],[1,14,3,14],[1,15,3,15],[1,16,3,16],[16,67,16,68],[17,67,17,68],[18,67,18,68],[19,67,19,68],[1,66,5,66],[1,67,5,67],[1,68,3,68],[6,67,6,68],[7,67,7,68],[8,67,8,68],[9,67,9,68],[10,67,10,68],[45,67,45,68],[1,69,3,69],[37,67,37,68],[38,67,38,68],[39,67,39,68],[40,67,40,68],[41,67,41,68],[42,67,42,68],[43,67,43,68],[44,67,44,68],[20,67,20,68],[21,67,21,68],[22,67,22,68],[23,67,23,68],[24,67,24,68],[25,67,25,68],[26,67,26,68],[27,67,27,68],[28,67,28,68],[11,67,11,68],[12,67,12,68],[13,67,13,68],[14,67,14,68],[15,67,15,68],[1,70,3,70],[1,71,3,71],[1,72,3,72],[1,73,3,73],[1,74,3,74],[1,75,3,75],[1,76,3,76],[1,77,3,77],[1,78,3,78],[1,89,3,89],[1,90,3,90],[1,91,3,91],[1,92,3,92],[1,93,3,93],[1,94,3,94],[1,95,3,95],[1,96,3,96],[1,79,3,79],[1,80,3,80],[1,81,3,81],[1,82,3,82],[1,83,3,83],[1,84,3,84],[1,85,3,85],[1,86,3,86],[1,87,3,87],[1,97,3,97],[1,98,3,98],[0,66,0,98],[51,67,51,68],[0,99,0,131],[1,99,5,99],[1,100,5,100],[1,101,3,101],[1,102,3,102],[1,103,3,103],[1,104,3,104],[1,105,3,105],[1,106,3,106],[1,107,3,107],[1,108,3,108],[1,109,3,109],[1,110,3,110],[1,111,3,111],[1,112,3,112],[1,113,3,113],[1,114,3,114],[1,115,3,115],[1,116,3,116],[1,88,3,88],[1,126,3,126],[1,127,3,127],[1,128,3,128],[1,129,3,129],[1,130,3,130],[1,131,3,131],[6,100,6,101],[7,100,7,101],[8,100,8,101],[1,117,3,117],[1,118,3,118],[1,119,3,119],[1,120,3,120],[1,121,3,121],[1,122,3,122],[1,123,3,123],[1,124,3,124],[1,125,3,125],[9,100,9,101],[10,100,10,101],[11,100,11,101],[12,100,12,101],[13,100,13,101],[14,100,14,101],[15,100,15,101],[16,100,16,101],[17,100,17,101],[18,100,18,101],[19,100,19,101],[20,100,20,101],[21,100,21,101],[22,100,22,101],[23,100,23,101],[24,100,24,101],[25,100,25,101],[26,100,26,101],[44,100,44,101],[45,100,45,101],[27,100,27,101],[28,100,28,101],[37,100,37,101],[38,100,38,101],[39,100,39,101],[40,100,40,101],[41,100,41,101],[42,100,42,101],[43,100,43,101],[0,132,0,164],[1,132,5,132],[1,133,5,133],[1,134,3,134],[1,135,3,135],[1,136,3,136],[1,137,3,137],[1,138,3,138],[1,139,3,139],[1,140,3,140],[1,141,3,141],[1,142,3,142],[1,143,3,143],[1,144,3,144],[1,145,3,145],[1,146,3,146],[1,147,3,147],[1,148,3,148],[1,149,3,149],[1,150,3,150],[1,151,3,151],[1,161,3,161],[1,162,3,162],[1,163,3,163],[1,153,3,153],[1,154,3,154],[1,155,3,155],[1,156,3,156],[1,157,3,157],[1,158,3,158],[1,159,3,159],[1,160,3,160],[11,133,11,134],[12,133,12,134],[13,133,13,134],[14,133,14,134],[15,133,15,134],[16,133,16,134],[17,133,17,134],[18,133,18,134],[19,133,19,134],[20,133,20,134],[21,133,21,134],[22,133,22,134],[23,133,23,134],[24,133,24,134],[25,133,25,134],[26,133,26,134],[27,133,27,134],[28,133,28,134],[37,133,37,134],[38,133,38,134],[39,133,39,134],[40,133,40,134],[41,133,41,134],[42,133,42,134],[43,133,43,134],[44,133,44,134],[45,133,45,134],[0,165,0,197],[1,165,5,165],[1,166,5,166],[1,167,3,167],[1,168,3,168],[1,169,3,169],[1,170,3,170],[1,171,3,171],[1,172,3,172],[1,173,3,173],[1,174,3,174],[1,175,3,175],[1,176,3,176],[1,177,3,177],[1,178,3,178],[1,179,3,179],[1,196,3,196],[1,197,3,197],[1,189,3,189],[1,190,3,190],[1,191,3,191],[1,192,3,192],[1,193,3,193],[1,194,3,194],[1,195,3,195],[6,166,6,167],[7,166,7,167],[8,166,8,167],[9,166,9,167],[10,166,10,167],[11,166,11,167],[12,166,12,167],[1,187,3,187],[1,188,3,188],[1,180,3,180],[1,181,3,181],[1,182,3,182],[1,183,3,183],[1,184,3,184],[1,185,3,185],[1,186,3,186],[13,166,13,167],[14,166,14,167],[15,166,15,167],[16,166,16,167],[17,166,17,167],[18,166,18,167],[19,166,19,167],[20,166,20,167],[21,166,21,167],[39,166,39,167],[40,166,40,167],[41,166,41,167],[42,166,42,167],[43,166,43,167],[44,166,44,167],[45,166,45,167],[51,168,51,197],[22,166,22,167],[23,166,23,167],[24,166,24,167],[25,166,25,167],[26,166,26,167],[27,166,27,167],[28,166,28,167],[37,166,37,167],[38,166,38,167],[52,168,52,197],[51,3,51,32],[52,3,52,32],[51,36,51,65],[52,36,52,65],[51,69,51,98],[52,69,52,98],[51,102,51,131],[52,102,52,131],[51,135,51,164],[52,135,52,164],[51,100,51,101],[51,34,51,35],[51,166,51,167],[51,133,51,134]]}
[{"$f":"\"แบบบันทึกเวลาการเข้าร่วม กิจกรรม\"&ตั้งค่า!C20&\"  ชั้น\"&ตั้งค่า!C17&\" ภาคเรียนที่ 1 \"","v":"แบบบันทึกเวลาการเข้าร่วม กิจกรรม  ชั้น ภาคเรียนที่ 1 "},null,null,null,null,null,null,null,null,null,null,null,null,null,null,null,null,null,null,null,null,null,null,null,null,null,null,null,null,null,null,null,null,{"$f":"A1","v":"แบบบันทึกเวลาการเข้าร่วม กิจกรรม  ชั้น ภาคเรียนที่ 1 "},null,null,null,null,null,null,null,null,null,null,null,null,null,null,null,null,null,null,null,null,null,null,null,null,null,null,null,null,null,null,null,null,{"$f":"AH1","v":"แบบบันทึกเวลาการเข้าร่วม กิจกรรม  ชั้น ภาคเรียนที่ 1 "},null,null,null,null,null,null,null,null,null,null,null,null,null,null,null,null,null,null,null,null,null,null,null,null,null,null,null,null,null,null,null,null,{"$f":"BO1","v":"แบบบันทึกเวลาการเข้าร่วม กิจกรรม  ชั้น ภาคเรียนที่ 1 "},null,null,null,null,null,null,null,null,null,null,null,null,null,null,null,null,null,null,null,null,null,null,null,null,null,null,null,null,null,null,null,null,{"$f":"CV1","v":"แบบบันทึกเวลาการเข้าร่วม กิจกรรม  ชั้น ภาคเรียนที่ 1 "},null,null,null,null,null,null,null,null,null,null,null,null,null,null,null,null,null,null,null,null,null,null,null,null,null,null,null,null,null,null,null,null,{"$f":"EC1","v":"แบบบันทึกเวลาการเข้าร่วม กิจกรรม  ชั้น ภาคเรียนที่ 1 "},null,null,null,null,null,null,null,null,null,null,null,null,null,null,null,null,null,null,null,null,null,null,null,null,null,null,null,null,null,null,null,null,null,"ย"]
["ที่","ชื่อ-สกุล","วัน เดือน ปี","","","","","","","","","","","","","","","","","","","","","","","","","","","","","","","ที่",{"$f":"B2","v":"ชื่อ-สกุล"},{"$f":"C2","v":"วัน เดือน ปี"},null,null,null,null,null,null,null,null,null,null,null,null,null,null,null,null,null,null,null,null,null,null,null,null,null,null,null,null,null,null,"ที่",{"$f":"AI2","v":"ชื่อ-สกุล"},{"$f":"AJ2","v":"วัน เดือน ปี"},null,null,null,null,null,null,null,null,null,null,null,null,null,null,null,null,null,null,null,null,null,null,null,null,null,null,null,null,null,null,"ที่",{"$f":"BP2","v":"ชื่อ-สกุล"},{"$f":"BQ2","v":"วัน เดือน ปี"},null,null,null,null,null,null,null,null,null,null,null,null,null,null,null,null,null,null,null,null,null,null,null,null,null,null,null,null,null,null,"ที่",{"$f":"CW2","v":"ชื่อ-สกุล"},{"$f":"CX2","v":"วัน เดือน ปี"},null,null,null,null,null,null,null,null,null,null,null,null,null,null,null,null,null,null,null,null,null,null,null,null,null,null,null,null,null,null,"ที่",{"$f":"ED2","v":"ชื่อ-สกุล"},{"$f":"EE2","v":"วัน เดือน ปี"},null,null,null,null,null,null,null,null,null,null,null,null,null,null,null,null,null,null,null,null,null,null,null,null,null,null,null,null,null,null,"หมายเหตุ"]
[]
[]
[null,null,"วัน",null,null,null,null,null,null,null,null,null,null,null,null,null,null,null,null,null,null,null,null,null,null,null,null,null,null,null,null,null,null,null,null,{"$f":"C5","v":"วัน"},null,null,null,null,null,null,null,null,null,null,null,null,null,null,null,null,null,null,null,null,null,null,null,null,null,null,null,null,null,null,null,null,{"$f":"AJ5","v":"วัน"},null,null,null,null,null,null,null,null,null,null,null,null,null,null,null,null,null,null,null,null,null,null,null,null,null,null,null,null,null,null,null,null,{"$f":"BQ5","v":"วัน"},null,null,null,null,null,null,null,null,null,null,null,null,null,null,null,null,null,null,null,null,null,null,null,null,null,null,null,null,null,null,null,null,{"$f":"CX5","v":"วัน"},null,null,null,null,null,null,null,null,null,null,null,null,null,null,null,null,null,null,null,null,null,null,null,null,null,null,null,null,null,null,null,null,{"$f":"EE5","v":"วัน"}]
[null,null,"จำนวนคาบ",null,null,null,null,null,null,null,null,null,null,null,null,null,null,null,null,null,null,null,null,null,null,null,null,null,null,null,null,null,null,null,null,{"$f":"C6","v":"จำนวนคาบ"},null,null,null,null,null,null,null,null,null,null,null,null,null,null,null,null,null,null,null,null,null,null,null,null,null,null,null,null,null,null,null,null,{"$f":"AJ6","v":"จำนวนคาบ"},null,null,null,null,null,null,null,null,null,null,null,null,null,null,null,null,null,null,null,null,null,null,null,null,null,null,null,null,null,null,null,null,{"$f":"BQ6","v":"จำนวนคาบ"},null,null,null,null,null,null,null,null,null,null,null,null,null,null,null,null,null,null,null,null,null,null,null,null,null,null,null,null,null,null,null,null,{"$f":"CX6","v":"จำนวนคาบ"},null,null,null,null,null,null,null,null,null,null,null,null,null,null,null,null,null,null,null,null,null,null,null,null,null,null,null,null,null,null,null,null,{"$f":"EE6","v":"จำนวนคาบ"}]
[{"$f":"รายชื่อนักเรียน!B6","v":0},{"$f":"IF(รายชื่อนักเรียน!E6=\"\",\"\",รายชื่อนักเรียน!E6)","v":""},null,null,null,null,null,null,null,null,null,null,null,null,null,null,null,null,null,null,null,null,null,null,null,null,null,null,null,null,null,null,null,{"$f":"A7","v":0},{"$f":"B7","v":""},null,null,null,null,null,null,null,null,null,null,null,null,null,null,null,null,null,null,null,null,null,null,null,null,null,null,null,null,null,null,null,{"$f":"AH7","v":0},{"$f":"AI7","v":""},null,null,null,null,null,null,null,null,null,null,null,null,null,null,null,null,null,null,null,null,null,null,null,null,null,null,null,null,null,null,null,{"$f":"BO7","v":0},{"$f":"BP7","v":""},null,null,null,null,null,null,null,null,null,null,null,null,null,null,null,null,null,null,null,null,null,null,null,null,null,null,null,null,null,null,null,{"$f":"CV7","v":0},{"$f":"CW7","v":""},null,null,null,null,null,null,null,null,null,null,null,null,null,null,null,null,null,null,null,null,null,null,null,null,null,null,null,null,null,null,null,{"$f":"EC7","v":0},{"$f":"ED7","v":""},null,null,null,null,null,null,null,null,null,null,null,null,null,null,null,null,null,null,null,null,null,null,null,null,null,null,null,null,null,null,null,{"$f":"IF(รายชื่อนักเรียน!$F6=\"\",\"\",รายชื่อนักเรียน!$F6)","v":""},null,null,"ย้าย"]
[{"$f":"รายชื่อนักเรียน!B7","v":0},{"$f":"IF(รายชื่อนักเรียน!E7=\"\",\"\",รายชื่อนักเรียน!E7)","v":""},null,null,null,null,null,null,null,null,null,null,null,null,null,null,null,null,null,null,null,null,null,null,null,null,null,null,null,null,null,null,null,{"$f":"A8","v":0},{"$f":"B8","v":""},null,null,null,null,null,null,null,null,null,null,null,null,null,null,null,null,null,null,null,null,null,null,null,null,null,null,null,null,null,null,null,{"$f":"AH8","v":0},{"$f":"AI8","v":""},null,null,null,null,null,null,null,null,null,null,null,null,null,null,null,null,null,null,null,null,null,null,null,null,null,null,null,null,null,null,null,{"$f":"BO8","v":0},{"$f":"BP8","v":""},null,null,null,null,null,null,null,null,null,null,null,null,null,null,null,null,null,null,null,null,null,null,null,null,null,null,null,null,null,null,null,{"$f":"CV8","v":0},{"$f":"CW8","v":""},null,null,null,null,null,null,null,null,null,null,null,null,null,null,null,null,null,null,null,null,null,null,null,null,null,null,null,null,null,null,null,{"$f":"EC8","v":0},{"$f":"ED8","v":""},null,null,null,null,null,null,null,null,null,null,null,null,null,null,null,null,null,null,null,null,null,null,null,null,null,null,null,null,null,null,null,{"$f":"IF(รายชื่อนักเรียน!$F7=\"\",\"\",รายชื่อนักเรียน!$F7)","v":""}]
[{"$f":"รายชื่อนักเรียน!B8","v":0},{"$f":"IF(รายชื่อนักเรียน!E8=\"\",\"\",รายชื่อนักเรียน!E8)","v":""},null,null,null,null,null,null,null,null,null,null,null,null,null,null,null,null,null,null,null,null,null,null,null,null,null,null,null,null,null,null,null,0,{"$f":"B9","v":""},null,null,null,null,null,null,null,null,null,null,null,null,null,null,null,null,null,null,null,null,null,null,null,null,null,null,null,null,null,null,null,0,{"$f":"AI9","v":""},null,null,null,null,null,null,null,null,null,null,null,null,null,null,null,null,null,null,null,null,null,null,null,null,null,null,null,null,null,null,null,0,{"$f":"BP9","v":""},null,null,null,null,null,null,null,null,null,null,null,null,null,null,null,null,null,null,null,null,null,null,null,null,null,null,null,null,null,null,null,0,{"$f":"CW9","v":""},null,null,null,null,null,null,null,null,null,null,null,null,null,null,null,null,null,null,null,null,null,null,null,null,null,null,null,null,null,null,null,0,{"$f":"ED9","v":""},null,null,null,null,null,null,null,null,null,null,null,null,null,null,null,null,null,null,null,null,null,null,null,null,null,null,null,null,null,null,null,{"$f":"IF(รายชื่อนักเรียน!$F8=\"\",\"\",รายชื่อนักเรียน!$F8)","v":""}]
[{"$f":"รายชื่อนักเรียน!B9","v":0},{"$f":"IF(รายชื่อนักเรียน!E9=\"\",\"\",รายชื่อนักเรียน!E9)","v":""},null,null,null,null,null,null,null,null,null,null,null,null,null,null,null,null,null,null,null,null,null,null,null,null,null,null,null,null,null,null,null,0,{"$f":"B10","v":""},null,null,null,null,null,null,null,null,null,null,null,null,null,null,null,null,null,null,null,null,null,null,null,null,null,null,null,null,null,null,null,0,{"$f":"AI10","v":""},null,null,null,null,null,null,null,null,null,null,null,null,null,null,null,null,null,null,null,null,null,null,null,null,null,null,null,null,null,null,null,0,{"$f":"BP10","v":""},null,null,null,null,null,null,null,null,null,null,null,null,null,null,null,null,null,null,null,null,null,null,null,null,null,null,null,null,null,null,null,0,{"$f":"CW10","v":""},null,null,null,null,null,null,null,null,null,null,null,null,null,null,null,null,null,null,null,null,null,null,null,null,null,null,null,null,null,null,null,0,{"$f":"ED10","v":""},null,null,null,null,null,null,null,null,null,null,null,null,null,null,null,null,null,null,null,null,null,null,null,null,null,null,null,null,null,null,null,{"$f":"IF(รายชื่อนักเรียน!$F9=\"\",\"\",รายชื่อนักเรียน!$F9)","v":""}]
[{"$f":"รายชื่อนักเรียน!B10","v":0},{"$f":"IF(รายชื่อนักเรียน!E10=\"\",\"\",รายชื่อนักเรียน!E10)","v":""},null,null,null,null,null,null,null,null,null,null,null,null,null,null,null,null,null,null,null,null,null,null,null,null,null,null,null,null,null,null,null,0,{"$f":"B11","v":""},null,null,null,null,null,null,null,null,null,null,null,null,null,null,null,null,null,null,null,null,null,null,null,null,null,null,null,null,null,null,null,0,{"$f":"AI11","v":""},null,null,null,null,null,null,null,null,null,null,null,null,null,null,null,null,null,null,null,null,null,null,null,null,null,null,null,null,null,null,null,0,"",null,null,null,null,null,null,null,null,null,null,null,null,null,null,null,null,null,null,null,null,null,null,null,null,null,null,null,null,null,null,null,0,"",null,null,null,null,null,null,null,null,null,null,null,null,null,null,null,null,null,null,null,null,null,null,null,null,null,null,null,null,null,null,null,0,"",null,null,null,null,null,null,null,null,null,null,null,null,null,null,null,null,null,null,null,null,null,null,null,null,null,null,null,null,null,null,null,{"$f":"IF(รายชื่อนักเรียน!$F10=\"\",\"\",รายชื่อนักเรียน!$F10)","v":""}]
[{"$f":"รายชื่อนักเรียน!B11","v":0},{"$f":"IF(รายชื่อนักเรียน!E11=\"\",\"\",รายชื่อนักเรียน!E11)","v":""},null,null,null,null,null,null,null,null,null,null,null,null,null,null,null,null,null,null,null,null,null,null,null,null,null,null,null,null,null,null,null,0,"",null,null,null,null,null,null,null,null,null,null,null,null,null,null,null,null,null,null,null,null,null,null,null,null,null,null,null,null,null,null,null,0,"",null,null,null,null,null,null,null,null,null,null,null,null,null,null,null,null,null,null,null,null,null,null,null,null,null,null,null,null,null,null,null,0,"",null,null,null,null,null,null,null,null,null,null,null,null,null,null,null,null,null,null,null,null,null,null,null,null,null,null,null,null,null,null,null,0,"",null,null,null,null,null,null,null,null,null,null,null,null,null,null,null,null,null,null,null,null,null,null,null,null,null,null,null,null,null,null,null,0,"",null,null,null,null,null,null,null,null,null,null,null,null,null,null,null,null,null,null,null,null,null,null,null,null,null,null,null,null,null,null,null,{"$f":"IF(รายชื่อนักเรียน!$F11=\"\",\"\",รายชื่อนักเรียน!$F11)","v":""}]
[{"$f":"รายชื่อนักเรียน!B12","v":0},{"$f":"IF(รายชื่อนักเรียน!E12=\"\",\"\",รายชื่อนักเรียน!E12)","v":""},null,null,null,null,null,null,null,null,null,null,null,null,null,null,null,null,null,null,null,null,null,null,null,null,null,null,null,null,null,null,null,0,"",null,null,null,null,null,null,null,null,null,null,null,null,null,null,null,null,null,null,null,null,null,null,null,null,null,null,null,null,null,null,null,0,"",null,null,null,null,null,null,null,null,null,null,null,null,null,null,null,null,null,null,null,null,null,null,null,null,null,null,null,null,null,null,null,0,"",null,null,null,null,null,null,null,null,null,null,null,null,null,null,null,null,null,null,null,null,null,null,null,null,null,null,null,null,null,null,null,0,"",null,null,null,null,null,null,null,null,null,null,null,null,null,null,null,null,null,null,null,null,null,null,null,null,null,null,null,null,null,null,null,0,"",null,null,null,null,null,null,null,null,null,null,null,null,null,null,null,null,null,null,null,null,null,null,null,null,null,null,null,null,null,null,null,{"$f":"IF(รายชื่อนักเรียน!$F12=\"\",\"\",รายชื่อนักเรียน!$F12)","v":""}]
[{"$f":"รายชื่อนักเรียน!B13","v":0},{"$f":"IF(รายชื่อนักเรียน!E13=\"\",\"\",รายชื่อนักเรียน!E13)","v":""},null,null,null,null,null,null,null,null,null,null,null,null,null,null,null,null,null,null,null,null,null,null,null,null,null,null,null,null,null,null,null,0,"",null,null,null,null,null,null,null,null,null,null,null,null,null,null,null,null,null,null,null,null,null,null,null,null,null,null,null,null,null,null,null,0,"",null,null,null,null,null,null,null,null,null,null,null,null,null,null,null,null,null,null,null,null,null,null,null,null,null,null,null,null,null,null,null,0,"",null,null,null,null,null,null,null,null,null,null,null,null,null,null,null,null,null,null,null,null,null,null,null,null,null,null,null,null,null,null,null,0,"",null,null,null,null,null,null,null,null,null,null,null,null,null,null,null,null,null,null,null,null,null,null,null,null,null,null,null,null,null,null,null,0,"",null,null,null,null,null,null,null,null,null,null,null,null,null,null,null,null,null,null,null,null,null,null,null,null,null,null,null,null,null,null,null,{"$f":"IF(รายชื่อนักเรียน!$F13=\"\",\"\",รายชื่อนักเรียน!$F13)","v":""}]
[{"$f":"รายชื่อนักเรียน!B14","v":0},{"$f":"IF(รายชื่อนักเรียน!E14=\"\",\"\",รายชื่อนักเรียน!E14)","v":""},null,null,null,null,null,null,null,null,null,null,null,null,null,null,null,null,null,null,null,null,null,null,null,null,null,null,null,null,null,null,null,0,"",null,null,null,null,null,null,null,null,null,null,null,null,null,null,null,null,null,null,null,null,null,null,null,null,null,null,null,null,null,null,null,0,"",null,null,null,null,null,null,null,null,null,null,null,null,null,null,null,null,null,null,null,null,null,null,null,null,null,null,null,null,null,null,null,0,"",null,null,null,null,null,null,null,null,null,null,null,null,null,null,null,null,null,null,null,null,null,null,null,null,null,null,null,null,null,null,null,0,"",null,null,null,null,null,null,null,null,null,null,null,null,null,null,null,null,null,null,null,null,null,null,null,null,null,null,null,null,null,null,null,0,"",null,null,null,null,null,null,null,null,null,null,null,null,null,null,null,null,null,null,null,null,null,null,null,null,null,null,null,null,null,null,null,{"$f":"IF(รายชื่อนักเรียน!$F14=\"\",\"\",รายชื่อนักเรียน!$F14)","v":""}]
[{"$f":"รายชื่อนักเรียน!B15","v":0},{"$f":"IF(รายชื่อนักเรียน!E15=\"\",\"\",รายชื่อนักเรียน!E15)","v":""},null,null,null,null,null,null,null,null,null,null,null,null,null,null,null,null,null,null,null,null,null,null,null,null,null,null,null,null,null,null,null,0,"",null,null,null,null,null,null,null,null,null,null,null,null,null,null,null,null,null,null,null,null,null,null,null,null,null,null,null,null,null,null,null,0,"",null,null,null,null,null,null,null,null,null,null,null,null,null,null,null,null,null,null,null,null,null,null,null,null,null,null,null,null,null,null,null,0,"",null,null,null,null,null,null,null,null,null,null,null,null,null,null,null,null,null,null,null,null,null,null,null,null,null,null,null,null,null,null,null,0,"",null,null,null,null,null,null,null,null,null,null,null,null,null,null,null,null,null,null,null,null,null,null,null,null,null,null,null,null,null,null,null,0,"",null,null,null,null,null,null,null,null,null,null,null,null,null,null,null,null,null,null,null,null,null,null,null,null,null,null,null,null,null,null,null,{"$f":"IF(รายชื่อนักเรียน!$F15=\"\",\"\",รายชื่อนักเรียน!$F15)","v":""}]
[{"$f":"รายชื่อนักเรียน!B16","v":0},{"$f":"IF(รายชื่อนักเรียน!E16=\"\",\"\",รายชื่อนักเรียน!E16)","v":""},null,null,null,null,null,null,null,null,null,null,null,null,null,null,null,null,null,null,null,null,null,null,null,null,null,null,null,null,null,null,null,0,"",null,null,null,null,null,null,null,null,null,null,null,null,null,null,null,null,null,null,null,null,null,null,null,null,null,null,null,null,null,null,null,0,"",null,null,null,null,null,null,null,null,null,null,null,null,null,null,null,null,null,null,null,null,null,null,null,null,null,null,null,null,null,null,null,0,"",null,null,null,null,null,null,null,null,null,null,null,null,null,null,null,null,null,null,null,null,null,null,null,null,null,null,null,null,null,null,null,0,"",null,null,null,null,null,null,null,null,null,null,null,null,null,null,null,null,null,null,null,null,null,null,null,null,null,null,null,null,null,null,null,0,"",null,null,null,null,null,null,null,null,null,null,null,null,null,null,null,null,null,null,null,null,null,null,null,null,null,null,null,null,null,null,null,{"$f":"IF(รายชื่อนักเรียน!$F16=\"\",\"\",รายชื่อนักเรียน!$F16)","v":""}]
[{"$f":"รายชื่อนักเรียน!B17","v":0},{"$f":"IF(รายชื่อนักเรียน!E17=\"\",\"\",รายชื่อนักเรียน!E17)","v":""},null,null,null,null,null,null,null,null,null,null,null,null,null,null,null,null,null,null,null,null,null,null,null,null,null,null,null,null,null,null,null,0,"",null,null,null,null,null,null,null,null,null,null,null,null,null,null,null,null,null,null,null,null,null,null,null,null,null,null,null,null,null,null,null,0,"",null,null,null,null,null,null,null,null,null,null,null,null,null,null,null,null,null,null,null,null,null,null,null,null,null,null,null,null,null,null,null,0,"",null,null,null,null,null,null,null,null,null,null,null,null,null,null,null,null,null,null,null,null,null,null,null,null,null,null,null,null,null,null,null,0,"",null,null,null,null,null,null,null,null,null,null,null,null,null,null,null,null,null,null,null,null,null,null,null,null,null,null,null,null,null,null,null,0,"",null,null,null,null,null,null,null,null,null,null,null,null,null,null,null,null,null,null,null,null,null,null,null,null,null,null,null,null,null,null,null,{"$f":"IF(รายชื่อนักเรียน!$F17=\"\",\"\",รายชื่อนักเรียน!$F17)","v":""}]
[{"$f":"รายชื่อนักเรียน!B18","v":0},{"$f":"IF(รายชื่อนักเรียน!E18=\"\",\"\",รายชื่อนักเรียน!E18)","v":""},null,null,null,null,null,null,null,null,null,null,null,null,null,null,null,null,null,null,null,null,null,null,null,null,null,null,null,null,null,null,null,0,"",null,null,null,null,null,null,null,null,null,null,null,null,null,null,null,null,null,null,null,null,null,null,null,null,null,null,null,null,null,null,null,0,"",null,null,null,null,null,null,null,null,null,null,null,null,null,null,null,null,null,null,null,null,null,null,null,null,null,null,null,null,null,null,null,0,"",null,null,null,null,null,null,null,null,null,null,null,null,null,null,null,null,null,null,null,null,null,null,null,null,null,null,null,null,null,null,null,0,"",null,null,null,null,null,null,null,null,null,null,null,null,null,null,null,null,null,null,null,null,null,null,null,null,null,null,null,null,null,null,null,0,"",null,null,null,null,null,null,null,null,null,null,null,null,null,null,null,null,null,null,null,null,null,null,null,null,null,null,null,null,null,null,null,{"$f":"IF(รายชื่อนักเรียน!$F18=\"\",\"\",รายชื่อนักเรียน!$F18)","v":""}]
[{"$f":"รายชื่อนักเรียน!B19","v":0},{"$f":"IF(รายชื่อนักเรียน!E19=\"\",\"\",รายชื่อนักเรียน!E19)","v":""},null,null,null,null,null,null,null,null,null,null,null,null,null,null,null,null,null,null,null,null,null,null,null,null,null,null,null,null,null,null,null,0,"",null,null,null,null,null,null,null,null,null,null,null,null,null,null,null,null,null,null,null,null,null,null,null,null,null,null,null,null,null,null,null,0,"",null,null,null,null,null,null,null,null,null,null,null,null,null,null,null,null,null,null,null,null,null,null,null,null,null,null,null,null,null,null,null,0,"",null,null,null,null,null,null,null,null,null,null,null,null,null,null,null,null,null,null,null,null,null,null,null,null,null,null,null,null,null,null,null,0,"",null,null,null,null,null,null,null,null,null,null,null,null,null,null,null,null,null,null,null,null,null,null,null,null,null,null,null,null,null,null,null,0,"",null,null,null,null,null,null,null,null,null,null,null,null,null,null,null,null,null,null,null,null,null,null,null,null,null,null,null,null,null,null,null,{"$f":"IF(รายชื่อนักเรียน!$F19=\"\",\"\",รายชื่อนักเรียน!$F19)","v":""}]
[{"$f":"รายชื่อนักเรียน!B20","v":0},{"$f":"IF(รายชื่อนักเรียน!E20=\"\",\"\",รายชื่อนักเรียน!E20)","v":""},null,null,null,null,null,null,null,null,null,null,null,null,null,null,null,null,null,null,null,null,null,null,null,null,null,null,null,null,null,null,null,0,"",null,null,null,null,null,null,null,null,null,null,null,null,null,null,null,null,null,null,null,null,null,null,null,null,null,null,null,null,null,null,null,0,"",null,null,null,null,null,null,null,null,null,null,null,null,null,null,null,null,null,null,null,null,null,null,null,null,null,null,null,null,null,null,null,0,"",null,null,null,null,null,null,null,null,null,null,null,null,null,null,null,null,null,null,null,null,null,null,null,null,null,null,null,null,null,null,null,0,"",null,null,null,null,null,null,null,null,null,null,null,null,null,null,null,null,null,null,null,null,null,null,null,null,null,null,null,null,null,null,null,0,"",null,null,null,null,null,null,null,null,null,null,null,null,null,null,null,null,null,null,null,null,null,null,null,null,null,null,null,null,null,null,null,{"$f":"IF(รายชื่อนักเรียน!$F20=\"\",\"\",รายชื่อนักเรียน!$F20)","v":""}]
[{"$f":"รายชื่อนักเรียน!B21","v":0},{"$f":"IF(รายชื่อนักเรียน!E21=\"\",\"\",รายชื่อนักเรียน!E21)","v":""},null,null,null,null,null,null,null,null,null,null,null,null,null,null,null,null,null,null,null,null,null,null,null,null,null,null,null,null,null,null,null,0,"",null,null,null,null,null,null,null,null,null,null,null,null,null,null,null,null,null,null,null,null,null,null,null,null,null,null,null,null,null,null,null,0,"",null,null,null,null,null,null,null,null,null,null,null,null,null,null,null,null,null,null,null,null,null,null,null,null,null,null,null,null,null,null,null,0,"",null,null,null,null,null,null,null,null,null,null,null,null,null,null,null,null,null,null,null,null,null,null,null,null,null,null,null,null,null,null,null,0,"",null,null,null,null,null,null,null,null,null,null,null,null,null,null,null,null,null,null,null,null,null,null,null,null,null,null,null,null,null,null,null,0,"",null,null,null,null,null,null,null,null,null,null,null,null,null,null,null,null,null,null,null,null,null,null,null,null,null,null,null,null,null,null,null,{"$f":"IF(รายชื่อนักเรียน!$F21=\"\",\"\",รายชื่อนักเรียน!$F21)","v":""}]
[{"$f":"รายชื่อนักเรียน!B22","v":0},{"$f":"IF(รายชื่อนักเรียน!E22=\"\",\"\",รายชื่อนักเรียน!E22)","v":""},null,null,null,null,null,null,null,null,null,null,null,null,null,null,null,null,null,null,null,null,null,null,null,null,null,null,null,null,null,null,null,0,"",null,null,null,null,null,null,null,null,null,null,null,null,null,null,null,null,null,null,null,null,null,null,null,null,null,null,null,null,null,null,null,0,"",null,null,null,null,null,null,null,null,null,null,null,null,null,null,null,null,null,null,null,null,null,null,null,null,null,null,null,null,null,null,null,0,"",null,null,null,null,null,null,null,null,null,null,null,null,null,null,null,null,null,null,null,null,null,null,null,null,null,null,null,null,null,null,null,0,"",null,null,null,null,null,null,null,null,null,null,null,null,null,null,null,null,null,null,null,null,null,null,null,null,null,null,null,null,null,null,null,0,"",null,null,null,null,null,null,null,null,null,null,null,null,null,null,null,null,null,null,null,null,null,null,null,null,null,null,null,null,null,null,null,{"$f":"IF(รายชื่อนักเรียน!$F22=\"\",\"\",รายชื่อนักเรียน!$F22)","v":""}]
[{"$f":"รายชื่อนักเรียน!B23","v":0},{"$f":"IF(รายชื่อนักเรียน!E23=\"\",\"\",รายชื่อนักเรียน!E23)","v":""},null,null,null,null,null,null,null,null,null,null,null,null,null,null,null,null,null,null,null,null,null,null,null,null,null,null,null,null,null,null,null,0,"",null,null,null,null,null,null,null,null,null,null,null,null,null,null,null,null,null,null,null,null,null,null,null,null,null,null,null,null,null,null,null,0,"",null,null,null,null,null,null,null,null,null,null,null,null,null,null,null,null,null,null,null,null,null,null,null,null,null,null,null,null,null,null,null,0,"",null,null,null,null,null,null,null,null,null,null,null,null,null,null,null,null,null,null,null,null,null,null,null,null,null,null,null,null,null,null,null,0,"",null,null,null,null,null,null,null,null,null,null,null,null,null,null,null,null,null,null,null,null,null,null,null,null,null,null,null,null,null,null,null,0,"",null,null,null,null,null,null,null,null,null,null,null,null,null,null,null,null,null,null,null,null,null,null,null,null,null,null,null,null,null,null,null,{"$f":"IF(รายชื่อนักเรียน!$F23=\"\",\"\",รายชื่อนักเรียน!$F23)","v":""}]
[{"$f":"รายชื่อนักเรียน!B24","v":0},{"$f":"IF(รายชื่อนักเรียน!E24=\"\",\"\",รายชื่อนักเรียน!E24)","v":""},null,null,null,null,null,null,null,null,null,null,null,null,null,null,null,null,null,null,null,null,null,null,null,null,null,null,null,null,null,null,null,0,"",null,null,null,null,null,null,null,null,null,null,null,null,null,null,null,null,null,null,null,null,null,null,null,null,null,null,null,null,null,null,null,0,"",null,null,null,null,null,null,null,null,null,null,null,null,null,null,null,null,null,null,null,null,null,null,null,null,null,null,null,null,null,null,null,0,"",null,null,null,null,null,null,null,null,null,null,null,null,null,null,null,null,null,null,null,null,null,null,null,null,null,null,null,null,null,null,null,0,"",null,null,null,null,null,null,null,null,null,null,null,null,null,null,null,null,null,null,null,null,null,null,null,null,null,null,null,null,null,null,null,0,"",null,null,null,null,null,null,null,null,null,null,null,null,null,null,null,null,null,null,null,null,null,null,null,null,null,null,null,null,null,null,null,{"$f":"IF(รายชื่อนักเรียน!$F24=\"\",\"\",รายชื่อนักเรียน!$F24)","v":""}]
[{"$f":"รายชื่อนักเรียน!B25","v":0},{"$f":"IF(รายชื่อนักเรียน!E25=\"\",\"\",รายชื่อนักเรียน!E25)","v":""},null,null,null,null,null,null,null,null,null,null,null,null,null,null,null,null,null,null,null,null,null,null,null,null,null,null,null,null,null,null,null,0,"",null,null,null,null,null,null,null,null,null,null,null,null,null,null,null,null,null,null,null,null,null,null,null,null,null,null,null,null,null,null,null,0,"",null,null,null,null,null,null,null,null,null,null,null,null,null,null,null,null,null,null,null,null,null,null,null,null,null,null,null,null,null,null,null,0,"",null,null,null,null,null,null,null,null,null,null,null,null,null,null,null,null,null,null,null,null,null,null,null,null,null,null,null,null,null,null,null,0,"",null,null,null,null,null,null,null,null,null,null,null,null,null,null,null,null,null,null,null,null,null,null,null,null,null,null,null,null,null,null,null,0,"",null,null,null,null,null,null,null,null,null,null,null,null,null,null,null,null,null,null,null,null,null,null,null,null,null,null,null,null,null,null,null,{"$f":"IF(รายชื่อนักเรียน!$F25=\"\",\"\",รายชื่อนักเรียน!$F25)","v":""}]
[{"$f":"รายชื่อนักเรียน!B26","v":0},{"$f":"IF(รายชื่อนักเรียน!E26=\"\",\"\",รายชื่อนักเรียน!E26)","v":""},null,null,null,null,null,null,null,null,null,null,null,null,null,null,null,null,null,null,null,null,null,null,null,null,null,null,null,null,null,null,null,0,"",null,null,null,null,null,null,null,null,null,null,null,null,null,null,null,null,null,null,null,null,null,null,null,null,null,null,null,null,null,null,null,0,"",null,null,null,null,null,null,null,null,null,null,null,null,null,null,null,null,null,null,null,null,null,null,null,null,null,null,null,null,null,null,null,0,"",null,null,null,null,null,null,null,null,null,null,null,null,null,null,null,null,null,null,null,null,null,null,null,null,null,null,null,null,null,null,null,0,"",null,null,null,null,null,null,null,null,null,null,null,null,null,null,null,null,null,null,null,null,null,null,null,null,null,null,null,null,null,null,null,0,"",null,null,null,null,null,null,null,null,null,null,null,null,null,null,null,null,null,null,null,null,null,null,null,null,null,null,null,null,null,null,null,{"$f":"IF(รายชื่อนักเรียน!$F26=\"\",\"\",รายชื่อนักเรียน!$F26)","v":""}]
[{"$f":"รายชื่อนักเรียน!B27","v":0},{"$f":"IF(รายชื่อนักเรียน!E27=\"\",\"\",รายชื่อนักเรียน!E27)","v":""},null,null,null,null,null,null,null,null,null,null,null,null,null,null,null,null,null,null,null,null,null,null,null,null,null,null,null,null,null,null,null,0,"",null,null,null,null,null,null,null,null,null,null,null,null,null,null,null,null,null,null,null,null,null,null,null,null,null,null,null,null,null,null,null,0,"",null,null,null,null,null,null,null,null,null,null,null,null,null,null,null,null,null,null,null,null,null,null,null,null,null,null,null,null,null,null,null,0,"",null,null,null,null,null,null,null,null,null,null,null,null,null,null,null,null,null,null,null,null,null,null,null,null,null,null,null,null,null,null,null,0,"",null,null,null,null,null,null,null,null,null,null,null,null,null,null,null,null,null,null,null,null,null,null,null,null,null,null,null,null,null,null,null,0,"",null,null,null,null,null,null,null,null,null,null,null,null,null,null,null,null,null,null,null,null,null,null,null,null,null,null,null,null,null,null,null,{"$f":"IF(รายชื่อนักเรียน!$F27=\"\",\"\",รายชื่อนักเรียน!$F27)","v":""}]
[{"$f":"รายชื่อนักเรียน!B28","v":0},{"$f":"IF(รายชื่อนักเรียน!E28=\"\",\"\",รายชื่อนักเรียน!E28)","v":""},null,null,null,null,null,null,null,null,null,null,null,null,null,null,null,null,null,null,null,null,null,null,null,null,null,null,null,null,null,null,null,0,"",null,null,null,null,null,null,null,null,null,null,null,null,null,null,null,null,null,null,null,null,null,null,null,null,null,null,null,null,null,null,null,0,"",null,null,null,null,null,null,null,null,null,null,null,null,null,null,null,null,null,null,null,null,null,null,null,null,null,null,null,null,null,null,null,0,"",null,null,null,null,null,null,null,null,null,null,null,null,null,null,null,null,null,null,null,null,null,null,null,null,null,null,null,null,null,null,null,0,"",null,null,null,null,null,null,null,null,null,null,null,null,null,null,null,null,null,null,null,null,null,null,null,null,null,null,null,null,null,null,null,0,"",null,null,null,null,null,null,null,null,null,null,null,null,null,null,null,null,null,null,null,null,null,null,null,null,null,null,null,null,null,null,null,{"$f":"IF(รายชื่อนักเรียน!$F28=\"\",\"\",รายชื่อนักเรียน!$F28)","v":""}]
[{"$f":"รายชื่อนักเรียน!B29","v":0},{"$f":"IF(รายชื่อนักเรียน!E29=\"\",\"\",รายชื่อนักเรียน!E29)","v":""},null,null,null,null,null,null,null,null,null,null,null,null,null,null,null,null,null,null,null,null,null,null,null,null,null,null,null,null,null,null,null,0,"",null,null,null,null,null,null,null,null,null,null,null,null,null,null,null,null,null,null,null,null,null,null,null,null,null,null,null,null,null,null,null,0,"",null,null,null,null,null,null,null,null,null,null,null,null,null,null,null,null,null,null,null,null,null,null,null,null,null,null,null,null,null,null,null,0,"",null,null,null,null,null,null,null,null,null,null,null,null,null,null,null,null,null,null,null,null,null,null,null,null,null,null,null,null,null,null,null,0,"",null,null,null,null,null,null,null,null,null,null,null,null,null,null,null,null,null,null,null,null,null,null,null,null,null,null,null,null,null,null,null,0,"",null,null,null,null,null,null,null,null,null,null,null,null,null,null,null,null,null,null,null,null,null,null,null,null,null,null,null,null,null,null,null,{"$f":"IF(รายชื่อนักเรียน!$F29=\"\",\"\",รายชื่อนักเรียน!$F29)","v":""}]
[{"$f":"รายชื่อนักเรียน!B30","v":0},{"$f":"IF(รายชื่อนักเรียน!E30=\"\",\"\",รายชื่อนักเรียน!E30)","v":""},null,null,null,null,null,null,null,null,null,null,null,null,null,null,null,null,null,null,null,null,null,null,null,null,null,null,null,null,null,null,null,0,"",null,null,null,null,null,null,null,null,null,null,null,null,null,null,null,null,null,null,null,null,null,null,null,null,null,null,null,null,null,null,null,0,"",null,null,null,null,null,null,null,null,null,null,null,null,null,null,null,null,null,null,null,null,null,null,null,null,null,null,null,null,null,null,null,0,"",null,null,null,null,null,null,null,null,null,null,null,null,null,null,null,null,null,null,null,null,null,null,null,null,null,null,null,null,null,null,null,0,"",null,null,null,null,null,null,null,null,null,null,null,null,null,null,null,null,null,null,null,null,null,null,null,null,null,null,null,null,null,null,null,0,"",null,null,null,null,null,null,null,null,null,null,null,null,null,null,null,null,null,null,null,null,null,null,null,null,null,null,null,null,null,null,null,{"$f":"IF(รายชื่อนักเรียน!$F30=\"\",\"\",รายชื่อนักเรียน!$F30)","v":""}]
[{"$f":"รายชื่อนักเรียน!B31","v":0},{"$f":"IF(รายชื่อนักเรียน!E31=\"\",\"\",รายชื่อนักเรียน!E31)","v":""},null,null,null,null,null,null,null,null,null,null,null,null,null,null,null,null,null,null,null,null,null,null,null,null,null,null,null,null,null,null,null,0,"",null,null,null,null,null,null,null,null,null,null,null,null,null,null,null,null,null,null,null,null,null,null,null,null,null,null,null,null,null,null,null,0,"",null,null,null,null,null,null,null,null,null,null,null,null,null,null,null,null,null,null,null,null,null,null,null,null,null,null,null,null,null,null,null,0,"",null,null,null,null,null,null,null,null,null,null,null,null,null,null,null,null,null,null,null,null,null,null,null,null,null,null,null,null,null,null,null,0,"",null,null,null,null,null,null,null,null,null,null,null,null,null,null,null,null,null,null,null,null,null,null,null,null,null,null,null,null,null,null,null,0,"",null,null,null,null,null,null,null,null,null,null,null,null,null,null,null,null,null,null,null,null,null,null,null,null,null,null,null,null,null,null,null,{"$f":"IF(รายชื่อนักเรียน!$F31=\"\",\"\",รายชื่อนักเรียน!$F31)","v":""}]
[{"$f":"รายชื่อนักเรียน!B32","v":0},{"$f":"IF(รายชื่อนักเรียน!E32=\"\",\"\",รายชื่อนักเรียน!E32)","v":""},null,null,null,null,null,null,null,null,null,null,null,null,null,null,null,null,null,null,null,null,null,null,null,null,null,null,null,null,null,null,null,0,"",null,null,null,null,null,null,null,null,null,null,null,null,null,null,null,null,null,null,null,null,null,null,null,null,null,null,null,null,null,null,null,0,"",null,null,null,null,null,null,null,null,null,null,null,null,null,null,null,null,null,null,null,null,null,null,null,null,null,null,null,null,null,null,null,0,"",null,null,null,null,null,null,null,null,null,null,null,null,null,null,null,null,null,null,null,null,null,null,null,null,null,null,null,null,null,null,null,0,"",null,null,null,null,null,null,null,null,null,null,null,null,null,null,null,null,null,null,null,null,null,null,null,null,null,null,null,null,null,null,null,0,"",null,null,null,null,null,null,null,null,null,null,null,null,null,null,null,null,null,null,null,null,null,null,null,null,null,null,null,null,null,null,null,{"$f":"IF(รายชื่อนักเรียน!$F32=\"\",\"\",รายชื่อนักเรียน!$F32)","v":""}]
[{"$f":"รายชื่อนักเรียน!B33","v":0},{"$f":"IF(รายชื่อนักเรียน!E33=\"\",\"\",รายชื่อนักเรียน!E33)","v":""},null,null,null,null,null,null,null,null,null,null,null,null,null,null,null,null,null,null,null,null,null,null,null,null,null,null,null,null,null,null,null,0,"",null,null,null,null,null,null,null,null,null,null,null,null,null,null,null,null,null,null,null,null,null,null,null,null,null,null,null,null,null,null,null,0,"",null,null,null,null,null,null,null,null,null,null,null,null,null,null,null,null,null,null,null,null,null,null,null,null,null,null,null,null,null,null,null,0,"",null,null,null,null,null,null,null,null,null,null,null,null,null,null,null,null,null,null,null,null,null,null,null,null,null,null,null,null,null,null,null,0,"",null,null,null,null,null,null,null,null,null,null,null,null,null,null,null,null,null,null,null,null,null,null,null,null,null,null,null,null,null,null,null,0,"",null,null,null,null,null,null,null,null,null,null,null,null,null,null,null,null,null,null,null,null,null,null,null,null,null,null,null,null,null,null,null,{"$f":"IF(รายชื่อนักเรียน!$F33=\"\",\"\",รายชื่อนักเรียน!$F33)","v":""}]
[{"$f":"รายชื่อนักเรียน!B34","v":0},{"$f":"IF(รายชื่อนักเรียน!E34=\"\",\"\",รายชื่อนักเรียน!E34)","v":""},null,null,null,null,null,null,null,null,null,null,null,null,null,null,null,null,null,null,null,null,null,null,null,null,null,null,null,null,null,null,null,0,"",null,null,null,null,null,null,null,null,null,null,null,null,null,null,null,null,null,null,null,null,null,null,null,null,null,null,null,null,null,null,null,0,"",null,null,null,null,null,null,null,null,null,null,null,null,null,null,null,null,null,null,null,null,null,null,null,null,null,null,null,null,null,null,null,0,"",null,null,null,null,null,null,null,null,null,null,null,null,null,null,null,null,null,null,null,null,null,null,null,null,null,null,null,null,null,null,null,0,"",null,null,null,null,null,null,null,null,null,null,null,null,null,null,null,null,null,null,null,null,null,null,null,null,null,null,null,null,null,null,null,0,"",null,null,null,null,null,null,null,null,null,null,null,null,null,null,null,null,null,null,null,null,null,null,null,null,null,null,null,null,null,null,null,{"$f":"IF(รายชื่อนักเรียน!$F34=\"\",\"\",รายชื่อนักเรียน!$F34)","v":""}]
[{"$f":"รายชื่อนักเรียน!B35","v":0},{"$f":"IF(รายชื่อนักเรียน!E35=\"\",\"\",รายชื่อนักเรียน!E35)","v":""},null,null,null,null,null,null,null,null,null,null,null,null,null,null,null,null,null,null,null,null,null,null,null,null,null,null,null,null,null,null,null,0,"",null,null,null,null,null,null,null,null,null,null,null,null,null,null,null,null,null,null,null,null,null,null,null,null,null,null,null,null,null,null,null,0,"",null,null,null,null,null,null,null,null,null,null,null,null,null,null,null,null,null,null,null,null,null,null,null,null,null,null,null,null,null,null,null,0,"",null,null,null,null,null,null,null,null,null,null,null,null,null,null,null,null,null,null,null,null,null,null,null,null,null,null,null,null,null,null,null,0,"",null,null,null,null,null,null,null,null,null,null,null,null,null,null,null,null,null,null,null,null,null,null,null,null,null,null,null,null,null,null,null,0,"",null,null,null,null,null,null,null,null,null,null,null,null,null,null,null,null,null,null,null,null,null,null,null,null,null,null,null,null,null,null,null,{"$f":"IF(รายชื่อนักเรียน!$F35=\"\",\"\",รายชื่อนักเรียน!$F35)","v":""}]
[{"$f":"รายชื่อนักเรียน!B36","v":0},{"$f":"IF(รายชื่อนักเรียน!E36=\"\",\"\",รายชื่อนักเรียน!E36)","v":""},null,null,null,null,null,null,null,null,null,null,null,null,null,null,null,null,null,null,null,null,null,null,null,null,null,null,null,null,null,null,null,0,"",null,null,null,null,null,null,null,null,null,null,null,null,null,null,null,null,null,null,null,null,null,null,null,null,null,null,null,null,null,null,null,0,"",null,null,null,null,null,null,null,null,null,null,null,null,null,null,null,null,null,null,null,null,null,null,null,null,null,null,null,null,null,null,null,0,"",null,null,null,null,null,null,null,null,null,null,null,null,null,null,null,null,null,null,null,null,null,null,null,null,null,null,null,null,null,null,null,0,"",null,null,null,null,null,null,null,null,null,null,null,null,null,null,null,null,null,null,null,null,null,null,null,null,null,null,null,null,null,null,null,0,"",null,null,null,null,null,null,null,null,null,null,null,null,null,null,null,null,null,null,null,null,null,null,null,null,null,null,null,null,null,null,null,{"$f":"IF(รายชื่อนักเรียน!$F36=\"\",\"\",รายชื่อนักเรียน!$F36)","v":""}]
[{"$f":"รายชื่อนักเรียน!B37","v":0},{"$f":"IF(รายชื่อนักเรียน!E37=\"\",\"\",รายชื่อนักเรียน!E37)","v":""},null,null,null,null,null,null,null,null,null,null,null,null,null,null,null,null,null,null,null,null,null,null,null,null,null,null,null,null,null,null,null,0,"",null,null,null,null,null,null,null,null,null,null,null,null,null,null,null,null,null,null,null,null,null,null,null,null,null,null,null,null,null,null,null,0,"",null,null,null,null,null,null,null,null,null,null,null,null,null,null,null,null,null,null,null,null,null,null,null,null,null,null,null,null,null,null,null,0,"",null,null,null,null,null,null,null,null,null,null,null,null,null,null,null,null,null,null,null,null,null,null,null,null,null,null,null,null,null,null,null,0,"",null,null,null,null,null,null,null,null,null,null,null,null,null,null,null,null,null,null,null,null,null,null,null,null,null,null,null,null,null,null,null,0,"",null,null,null,null,null,null,null,null,null,null,null,null,null,null,null,null,null,null,null,null,null,null,null,null,null,null,null,null,null,null,null,{"$f":"IF(รายชื่อนักเรียน!$F37=\"\",\"\",รายชื่อนักเรียน!$F37)","v":""}]
[{"$f":"รายชื่อนักเรียน!B38","v":0},{"$f":"IF(รายชื่อนักเรียน!E38=\"\",\"\",รายชื่อนักเรียน!E38)","v":""},null,null,null,null,null,null,null,null,null,null,null,null,null,null,null,null,null,null,null,null,null,null,null,null,null,null,null,null,null,null,null,0,"",null,null,null,null,null,null,null,null,null,null,null,null,null,null,null,null,null,null,null,null,null,null,null,null,null,null,null,null,null,null,null,0,"",null,null,null,null,null,null,null,null,null,null,null,null,null,null,null,null,null,null,null,null,null,null,null,null,null,null,null,null,null,null,null,0,"",null,null,null,null,null,null,null,null,null,null,null,null,null,null,null,null,null,null,null,null,null,null,null,null,null,null,null,null,null,null,null,0,"",null,null,null,null,null,null,null,null,null,null,null,null,null,null,null,null,null,null,null,null,null,null,null,null,null,null,null,null,null,null,null,0,"",null,null,null,null,null,null,null,null,null,null,null,null,null,null,null,null,null,null,null,null,null,null,null,null,null,null,null,null,null,null,null,{"$f":"IF(รายชื่อนักเรียน!$F38=\"\",\"\",รายชื่อนักเรียน!$F38)","v":""}]
[{"$f":"รายชื่อนักเรียน!B39","v":0},{"$f":"IF(รายชื่อนักเรียน!E39=\"\",\"\",รายชื่อนักเรียน!E39)","v":""},null,null,null,null,null,null,null,null,null,null,null,null,null,null,null,null,null,null,null,null,null,null,null,null,null,null,null,null,null,null,null,0,"",null,null,null,null,null,null,null,null,null,null,null,null,null,null,null,null,null,null,null,null,null,null,null,null,null,null,null,null,null,null,null,0,"",null,null,null,null,null,null,null,null,null,null,null,null,null,null,null,null,null,null,null,null,null,null,null,null,null,null,null,null,null,null,null,0,"",null,null,null,null,null,null,null,null,null,null,null,null,null,null,null,null,null,null,null,null,null,null,null,null,null,null,null,null,null,null,null,0,"",null,null,null,null,null,null,null,null,null,null,null,null,null,null,null,null,null,null,null,null,null,null,null,null,null,null,null,null,null,null,null,0,"",null,null,null,null,null,null,null,null,null,null,null,null,null,null,null,null,null,null,null,null,null,null,null,null,null,null,null,null,null,null,null,{"$f":"IF(รายชื่อนักเรียน!$F39=\"\",\"\",รายชื่อนักเรียน!$F39)","v":""}]
[{"$f":"รายชื่อนักเรียน!B40","v":0},{"$f":"IF(รายชื่อนักเรียน!E40=\"\",\"\",รายชื่อนักเรียน!E40)","v":""},null,null,null,null,null,null,null,null,null,null,null,null,null,null,null,null,null,null,null,null,null,null,null,null,null,null,null,null,null,null,null,0,"",null,null,null,null,null,null,null,null,null,null,null,null,null,null,null,null,null,null,null,null,null,null,null,null,null,null,null,null,null,null,null,0,"",null,null,null,null,null,null,null,null,null,null,null,null,null,null,null,null,null,null,null,null,null,null,null,null,null,null,null,null,null,null,null,0,"",null,null,null,null,null,null,null,null,null,null,null,null,null,null,null,null,null,null,null,null,null,null,null,null,null,null,null,null,null,null,null,0,"",null,null,null,null,null,null,null,null,null,null,null,null,null,null,null,null,null,null,null,null,null,null,null,null,null,null,null,null,null,null,null,0,"",null,null,null,null,null,null,null,null,null,null,null,null,null,null,null,null,null,null,null,null,null,null,null,null,null,null,null,null,null,null,null,{"$f":"IF(รายชื่อนักเรียน!$F40=\"\",\"\",รายชื่อนักเรียน!$F40)","v":""}]
[{"$f":"รายชื่อนักเรียน!B41","v":0},{"$f":"IF(รายชื่อนักเรียน!E41=\"\",\"\",รายชื่อนักเรียน!E41)","v":""},null,null,null,null,null,null,null,null,null,null,null,null,null,null,null,null,null,null,null,null,null,null,null,null,null,null,null,null,null,null,null,0,"",null,null,null,null,null,null,null,null,null,null,null,null,null,null,null,null,null,null,null,null,null,null,null,null,null,null,null,null,null,null,null,0,"",null,null,null,null,null,null,null,null,null,null,null,null,null,null,null,null,null,null,null,null,null,null,null,null,null,null,null,null,null,null,null,0,"",null,null,null,null,null,null,null,null,null,null,null,null,null,null,null,null,null,null,null,null,null,null,null,null,null,null,null,null,null,null,null,0,"",null,null,null,null,null,null,null,null,null,null,null,null,null,null,null,null,null,null,null,null,null,null,null,null,null,null,null,null,null,null,null,0,"",null,null,null,null,null,null,null,null,null,null,null,null,null,null,null,null,null,null,null,null,null,null,null,null,null,null,null,null,null,null,null,{"$f":"IF(รายชื่อนักเรียน!$F41=\"\",\"\",รายชื่อนักเรียน!$F41)","v":""}]
[{"$f":"รายชื่อนักเรียน!B42","v":0},{"$f":"IF(รายชื่อนักเรียน!E42=\"\",\"\",รายชื่อนักเรียน!E42)","v":""},null,null,null,null,null,null,null,null,null,null,null,null,null,null,null,null,null,null,null,null,null,null,null,null,null,null,null,null,null,null,null,0,"",null,null,null,null,null,null,null,null,null,null,null,null,null,null,null,null,null,null,null,null,null,null,null,null,null,null,null,null,null,null,null,0,"",null,null,null,null,null,null,null,null,null,null,null,null,null,null,null,null,null,null,null,null,null,null,null,null,null,null,null,null,null,null,null,0,"",null,null,null,null,null,null,null,null,null,null,null,null,null,null,null,null,null,null,null,null,null,null,null,null,null,null,null,null,null,null,null,0,"",null,null,null,null,null,null,null,null,null,null,null,null,null,null,null,null,null,null,null,null,null,null,null,null,null,null,null,null,null,null,null,0,"",null,null,null,null,null,null,null,null,null,null,null,null,null,null,null,null,null,null,null,null,null,null,null,null,null,null,null,null,null,null,null,{"$f":"IF(รายชื่อนักเรียน!$F42=\"\",\"\",รายชื่อนักเรียน!$F42)","v":""}]
[{"$f":"รายชื่อนักเรียน!B43","v":0},{"$f":"IF(รายชื่อนักเรียน!E43=\"\",\"\",รายชื่อนักเรียน!E43)","v":""},null,null,null,null,null,null,null,null,null,null,null,null,null,null,null,null,null,null,null,null,null,null,null,null,null,null,null,null,null,null,null,0,"",null,null,null,null,null,null,null,null,null,null,null,null,null,null,null,null,null,null,null,null,null,null,null,null,null,null,null,null,null,null,null,0,"",null,null,null,null,null,null,null,null,null,null,null,null,null,null,null,null,null,null,null,null,null,null,null,null,null,null,null,null,null,null,null,0,"",null,null,null,null,null,null,null,null,null,null,null,null,null,null,null,null,null,null,null,null,null,null,null,null,null,null,null,null,null,null,null,0,"",null,null,null,null,null,null,null,null,null,null,null,null,null,null,null,null,null,null,null,null,null,null,null,null,null,null,null,null,null,null,null,0,"",null,null,null,null,null,null,null,null,null,null,null,null,null,null,null,null,null,null,null,null,null,null,null,null,null,null,null,null,null,null,null,{"$f":"IF(รายชื่อนักเรียน!$F43=\"\",\"\",รายชื่อนักเรียน!$F43)","v":""}]
[{"$f":"รายชื่อนักเรียน!B44","v":0},{"$f":"IF(รายชื่อนักเรียน!E44=\"\",\"\",รายชื่อนักเรียน!E44)","v":""},null,null,null,null,null,null,null,null,null,null,null,null,null,null,null,null,null,null,null,null,null,null,null,null,null,null,null,null,null,null,null,0,"",null,null,null,null,null,null,null,null,null,null,null,null,null,null,null,null,null,null,null,null,null,null,null,null,null,null,null,null,null,null,null,0,"",null,null,null,null,null,null,null,null,null,null,null,null,null,null,null,null,null,null,null,null,null,null,null,null,null,null,null,null,null,null,null,0,"",null,null,null,null,null,null,null,null,null,null,null,null,null,null,null,null,null,null,null,null,null,null,null,null,null,null,null,null,null,null,null,0,"",null,null,null,null,null,null,null,null,null,null,null,null,null,null,null,null,null,null,null,null,null,null,null,null,null,null,null,null,null,null,null,0,"",null,null,null,null,null,null,null,null,null,null,null,null,null,null,null,null,null,null,null,null,null,null,null,null,null,null,null,null,null,null,null,{"$f":"IF(รายชื่อนักเรียน!$F44=\"\",\"\",รายชื่อนักเรียน!$F44)","v":""}]
[{"$f":"รายชื่อนักเรียน!B45","v":0},{"$f":"IF(รายชื่อนักเรียน!E45=\"\",\"\",รายชื่อนักเรียน!E45)","v":""},null,null,null,null,null,null,null,null,null,null,null,null,null,null,null,null,null,null,null,null,null,null,null,null,null,null,null,null,null,null,null,0,"",null,null,null,null,null,null,null,null,null,null,null,null,null,null,null,null,null,null,null,null,null,null,null,null,null,null,null,null,null,null,null,0,"",null,null,null,null,null,null,null,null,null,null,null,null,null,null,null,null,null,null,null,null,null,null,null,null,null,null,null,null,null,null,null,0,"",null,null,null,null,null,null,null,null,null,null,null,null,null,null,null,null,null,null,null,null,null,null,null,null,null,null,null,null,null,null,null,0,"",null,null,null,null,null,null,null,null,null,null,null,null,null,null,null,null,null,null,null,null,null,null,null,null,null,null,null,null,null,null,null,0,"",null,null,null,null,null,null,null,null,null,null,null,null,null,null,null,null,null,null,null,null,null,null,null,null,null,null,null,null,null,null,null,{"$f":"IF(รายชื่อนักเรียน!$F45=\"\",\"\",รายชื่อนักเรียน!$F45)","v":""}]
[{"$f":"รายชื่อนักเรียน!B46","v":0},{"$f":"IF(รายชื่อนักเรียน!E46=\"\",\"\",รายชื่อนักเรียน!E46)","v":""},null,null,null,null,null,null,null,null,null,null,null,null,null,null,null,null,null,null,null,null,null,null,null,null,null,null,null,null,null,null,null,{"$f":"A47","v":0},{"$f":"B47","v":""},null,null,null,null,null,null,null,null,null,null,null,null,null,null,null,null,null,null,null,null,null,null,null,null,null,null,null,null,null,null,null,{"$f":"AH47","v":0},{"$f":"AI47","v":""},null,null,null,null,null,null,null,null,null,null,null,null,null,null,null,null,null,null,null,null,null,null,null,null,null,null,null,null,null,null,null,{"$f":"BO47","v":0},{"$f":"BP47","v":""},null,null,null,null,null,null,null,null,null,null,null,null,null,null,null,null,null,null,null,null,null,null,null,null,null,null,null,null,null,null,null,{"$f":"CV47","v":0},{"$f":"CW47","v":""},null,null,null,null,null,null,null,null,null,null,null,null,null,null,null,null,null,null,null,null,null,null,null,null,null,null,null,null,null,null,null,{"$f":"EC47","v":0},{"$f":"ED47","v":""},null,null,null,null,null,null,null,null,null,null,null,null,null,null,null,null,null,null,null,null,null,null,null,null,null,null,null,null,null,null,null,{"$f":"IF(รายชื่อนักเรียน!$F46=\"\",\"\",รายชื่อนักเรียน!$F46)","v":""}]
[{"$f":"รายชื่อนักเรียน!B47","v":0},{"$f":"IF(รายชื่อนักเรียน!E47=\"\",\"\",รายชื่อนักเรียน!E47)","v":""},null,null,null,null,null,null,null,null,null,null,null,null,null,null,null,null,null,null,null,null,null,null,null,null,null,null,null,null,null,null,null,0,"",null,null,null,null,null,null,null,null,null,null,null,null,null,null,null,null,null,null,null,null,null,null,null,null,null,null,null,null,null,null,null,0,"",null,null,null,null,null,null,null,null,null,null,null,null,null,null,null,null,null,null,null,null,null,null,null,null,null,null,null,null,null,null,null,0,"",null,null,null,null,null,null,null,null,null,null,null,null,null,null,null,null,null,null,null,null,null,null,null,null,null,null,null,null,null,null,null,0,"",null,null,null,null,null,null,null,null,null,null,null,null,null,null,null,null,null,null,null,null,null,null,null,null,null,null,null,null,null,null,null,0,"",null,null,null,null,null,null,null,null,null,null,null,null,null,null,null,null,null,null,null,null,null,null,null,null,null,null,null,null,null,null,null,{"$f":"IF(รายชื่อนักเรียน!$F47=\"\",\"\",รายชื่อนักเรียน!$F47)","v":""}]
[{"$f":"รายชื่อนักเรียน!B48","v":0},{"$f":"IF(รายชื่อนักเรียน!E48=\"\",\"\",รายชื่อนักเรียน!E48)","v":""},null,null,null,null,null,null,null,null,null,null,null,null,null,null,null,null,null,null,null,null,null,null,null,null,null,null,null,null,null,null,null,0,"",null,null,null,null,null,null,null,null,null,null,null,null,null,null,null,null,null,null,null,null,null,null,null,null,null,null,null,null,null,null,null,0,"",null,null,null,null,null,null,null,null,null,null,null,null,null,null,null,null,null,null,null,null,null,null,null,null,null,null,null,null,null,null,null,0,"",null,null,null,null,null,null,null,null,null,null,null,null,null,null,null,null,null,null,null,null,null,null,null,null,null,null,null,null,null,null,null,0,"",null,null,null,null,null,null,null,null,null,null,null,null,null,null,null,null,null,null,null,null,null,null,null,null,null,null,null,null,null,null,null,0,"",null,null,null,null,null,null,null,null,null,null,null,null,null,null,null,null,null,null,null,null,null,null,null,null,null,null,null,null,null,null,null,{"$f":"IF(รายชื่อนักเรียน!$F48=\"\",\"\",รายชื่อนักเรียน!$F48)","v":""}]
[{"$f":"รายชื่อนักเรียน!B49","v":0},{"$f":"IF(รายชื่อนักเรียน!E49=\"\",\"\",รายชื่อนักเรียน!E49)","v":""},null,null,null,null,null,null,null,null,null,null,null,null,null,null,null,null,null,null,null,null,null,null,null,null,null,null,null,null,null,null,null,0,"",null,null,null,null,null,null,null,null,null,null,null,null,null,null,null,null,null,null,null,null,null,null,null,null,null,null,null,null,null,null,null,0,"",null,null,null,null,null,null,null,null,null,null,null,null,null,null,null,null,null,null,null,null,null,null,null,null,null,null,null,null,null,null,null,0,"",null,null,null,null,null,null,null,null,null,null,null,null,null,null,null,null,null,null,null,null,null,null,null,null,null,null,null,null,null,null,null,0,"",null,null,null,null,null,null,null,null,null,null,null,null,null,null,null,null,null,null,null,null,null,null,null,null,null,null,null,null,null,null,null,0,"",null,null,null,null,null,null,null,null,null,null,null,null,null,null,null,null,null,null,null,null,null,null,null,null,null,null,null,null,null,null,null,{"$f":"IF(รายชื่อนักเรียน!$F49=\"\",\"\",รายชื่อนักเรียน!$F49)","v":""}]
[{"$f":"รายชื่อนักเรียน!B50","v":0},{"$f":"IF(รายชื่อนักเรียน!E50=\"\",\"\",รายชื่อนักเรียน!E50)","v":""},null,null,null,null,null,null,null,null,null,null,null,null,null,null,null,null,null,null,null,null,null,null,null,null,null,null,null,null,null,null,null,0,"",null,null,null,null,null,null,null,null,null,null,null,null,null,null,null,null,null,null,null,null,null,null,null,null,null,null,null,null,null,null,null,0,"",null,null,null,null,null,null,null,null,null,null,null,null,null,null,null,null,null,null,null,null,null,null,null,null,null,null,null,null,null,null,null,0,"",null,null,null,null,null,null,null,null,null,null,null,null,null,null,null,null,null,null,null,null,null,null,null,null,null,null,null,null,null,null,null,0,"",null,null,null,null,null,null,null,null,null,null,null,null,null,null,null,null,null,null,null,null,null,null,null,null,null,null,null,null,null,null,null,0,"",null,null,null,null,null,null,null,null,null,null,null,null,null,null,null,null,null,null,null,null,null,null,null,null,null,null,null,null,null,null,null,{"$f":"IF(รายชื่อนักเรียน!$F50=\"\",\"\",รายชื่อนักเรียน!$F50)","v":""}]
[null,"วันหยุด",null,null,null,null,null,null,null,null,null,null,null,null,null,null,null,null,null,null,null,null,null,null,null,null,null,null,null,null,null,null,null,null,"วันหยุด",null,null,null,null,null,null,null,null,null,null,null,null,null,null,null,null,null,null,null,null,null,null,null,null,null,null,null,null,null,null,null,null,"วันหยุด",null,null,null,null,null,null,null,null,null,null,null,null,null,null,null,null,null,null,null,null,null,null,null,null,null,null,null,null,null,null,null,null,"วันหยุด",null,null,null,null,null,null,null,null,null,null,null,null,null,null,null,null,null,null,null,null,null,null,null,null,null,null,null,null,null,null,null,null,"วันหยุด",null,null,null,null,null,null,null,null,null,null,null,null,null,null,null,null,null,null,null,null,null,null,null,null,null,null,null,null,null,null,null,null,"วันหยุด"]
[]
[null,null,"หมายเหตุ :","ลาป่วย = ป   ,  ลากิจ = ล   ,  ขาดเรียน  =  ข   ,   มาเรียน  =   /",null,null,null,null,null,null,null,null,null,null,null,null,null,null,null,null,null,null,null,null,null,null,null,null,null,null,null,null,null,null,null,"หมายเหตุ :","ลาป่วย = ป   ,  ลากิจ = ล   ,  ขาดเรียน  =  ข   ,   มาเรียน  =   /",null,null,null,null,null,null,null,null,null,null,null,null,null,null,null,null,null,null,null,null,null,null,null,null,null,null,null,null,null,null,null,"หมายเหตุ :","ลาป่วย = ป   ,  ลากิจ = ล   ,  ขาดเรียน  =  ข   ,   มาเรียน  =   /",null,null,null,null,null,null,null,null,null,null,null,null,null,null,null,null,null,null,null,null,null,null,null,null,null,null,null,null,null,null,null,"หมายเหตุ :","ลาป่วย = ป   ,  ลากิจ = ล   ,  ขาดเรียน  =  ข   ,   มาเรียน  =   /",null,null,null,null,null,null,null,null,null,null,null,null,null,null,null,null,null,null,null,null,null,null,null,null,null,null,null,null,null,null,null,"หมายเหตุ :","ลาป่วย = ป   ,  ลากิจ = ล   ,  ขาดเรียน  =  ข   ,   มาเรียน  =   /",null,null,null,null,null,null,null,null,null,null,null,null,null,null,null,null,null,null,null,null,null,null,null,null,null,null,null,null,null,null,null,"หมายเหตุ :","ลาป่วย = ป   ,  ลากิจ = ล   ,  ขาดเรียน  =  ข   ,   มาเรียน  =   /"]

{"sheet":"บันทึกการเข้าร่วมกิจกรรมT2","index":5,"n_rows":54,"n_cols":202,"rows_kept":54,"cut":false,"hidden":false,"merged":[[50,1,50,2],[50,34,50,35],[50,67,50,68],[50,100,50,101],[50,133,50,134],[50,166,50,167],[48,1,48,2],[48,34,48,35],[48,67,48,68],[48,100,48,101],[48,133,48,134],[48,166,48,167],[49,1,49,2],[49,34,49,35],[49,67,49,68],[49,100,49,101],[49,133,49,134],[49,166,49,167],[43,166,43,167],[44,166,44,167],[37,100,37,101],[38,100,38,101],[39,100,39,101],[40,133,40,134],[41,133,41,134],[42,133,42,134],[43,133,43,134],[44,133,44,134],[40,100,40,101],[41,100,41,101],[42,100,42,101],[43,100,43,101],[44,100,44,101],[1,198,5,198],[51,1,51,2],[51,3,51,32],[51,34,51,35],[51,36,51,65],[51,67,51,68],[51,69,51,98],[51,100,51,101],[51,102,51,131],[51,133,51,134],[51,135,51,164],[51,166,51,167],[51,168,51,197],[37,166,37,167],[38,166,38,167],[39,166,39,167],[40,166,40,167],[41,166,41,167],[42,166,42,167],[40,67,40,68],[41,67,41,68],[42,67,42,68],[43,67,43,68],[44,67,44,68],[52,3,52,32],[52,36,52,65],[52,69,52,98],[52,102,52,131],[52,135,52,164],[52,168,52,197],[45,1,45,2],[45,34,45,35],[45,67,45,68],[45,100,45,101],[45,133,45,134],[45,166,45,167],[46,1,46,2],[46,34,46,35],[46,67,46,68],[46,100,46,101],[46,133,46,134],[46,166,46,167],[47,1,47,2],[47,34,47,35],[47,67,47,68],[47,100,47,101],[47,133,47,134],[47,166,47,167],[36,1,36,2],[36,34,36,35],[36,67,36,68],[36,100,36,101],[36,133,36,134],[36,166,36,167],[37,1,37,2],[38,1,38,2],[39,1,39,2],[37,67,37,68],[38,67,38,68],[39,67,39,68],[37,133,37,134],[38,133,38,134],[39,133,39,134],[40,1,40,2],[41,1,41,2],[42,1,42,2],[43,1,43,2],[44,1,44,2],[37,34,37,35],[38,34,38,35],[39,34,39,35],[40,34,40,35],[41,34,41,35],[42,34,42,35],[43,34,43,35],[44,34,44,35],[35,1,35,2],[35,34,35,35],[35,67,35,68],[35,100,35,101],[35,133,35,134],[35,166,35,167],[34,1,34,2],[34,34,34,35],[34,67,34,68],[34,100,34,101],[34,133,34,134],[34,166,34,167],[33,1,33,2],[33,34,33,35],[33,67,33,68],[33,100,33,101],[33,133,33,134],[33,166,33,167],[32,1,32,2],[32,34,32,35],[32,67,32,68],[32,100,32,101],[32,133,32,134],[32,166,32,167],[31,1,31,2],[31,34,31,35],[31,67,31,68],[31,100,31,101],[31,133,31,134],[31,166,31,167],[30,1,30,2],[30,34,30,35],[30,67,30,68],[30,100,30,101],[30,133,30,134],[30,166,30,167],[29,1,29,2],[29,34,29,35],[29,67,29,68],[29,100,29,101],[29,133,29,134],[29,166,29,167],[28,1,28,2],[28,34,28,35],[28,67,28,68],[28,100,28,101],[28,133,28,134],[28,166,28,167],[27,1,27,2],[27,34,27,35],[27,67,27,68],[27,100,27,101],[27,133,27,134],[27,166,27,167],[26,1,26,2],[26,34,26,35],[26,67,26,68],[26,100,26,101],[26,133,26,134],[26,166,26,167],[25,1,25,2],[25,34,25,35],[25,67,25,68],[25,100,25,101],[25,133,25,134],[25,166,25,167],[24,1,24,2],[24,34,24,35],[24,67,24,68],[24,100,24,101],[24,133,24,134],[24,166,24,167],[23,1,23,2],[23,34,23,35],[23,67,23,68],[23,100,23,101],[23,133,23,134],[23,166,23,167],[22,1,22,2],[22,34,22,35],[22,67,22,68],[22,100,22,101],[22,133,22,134],[22,166,22,167],[21,1,21,2],[21,34,21,35],[21,67,21,68],[21,100,21,101],[21,133,21,134],[21,166,21,167],[20,1,20,2],[20,34,20,35],[20,67,20,68],[20,100,20,101],[20,133,20,134],[20,166,20,167],[19,1,19,2],[19,34,19,35],[19,67,19,68],[19,100,19,101],[19,133,19,134],[19,166,19,167],[18,1,18,2],[18,34,18,35],[18,67,18,68],[18,100,18,101],[18,133,18,134],[18,166,18,167],[17,1,17,2],[17,34,17,35],[17,67,17,68],[17,100,17,101],[17,133,17,134],[17,166,17,167],[16,1,16,2],[16,34,16,35],[16,67,16,68],[16,100,16,101],[16,133,16,134],[16,166,16,167],[15,1,15,2],[15,34,15,35],[15,67,15,68],[15,100,15,101],[15,133,15,134],[15,166,15,167],[14,1,14,2],[14,34,14,35],[14,67,14,68],[14,100,14,101],[14,133,14,134],[14,166,14,167],[13,1,13,2],[13,34,13,35],[13,67,13,68],[13,100,13,101],[13,133,13,134],[13,166,13,167],[12,1,12,2],[12,34,12,35],[12,67,12,68],[12,100,12,101],[12,133,12,134],[12,166,12,167],[11,1,11,2],[11,34,11,35],[11,67,11,68],[11,100,11,101],[11,133,11,134],[11,166,11,167],[10,1,10,2],[10,34,10,35],[10,67,10,68],[10,100,10,101],[10,133,10,134],[10,166,10,167],[9,1,9,2],[9,34,9,35],[9,67,9,68],[9,100,9,101],[9,133,9,134],[9,166,9,167],[8,1,8,2],[8,34,8,35],[8,67,8,68],[8,100,8,101],[8,133,8,134],[8,166,8,167],[7,1,7,2],[7,34,7,35],[7,67,7,68],[7,100,7,101],[7,133,7,134],[7,166,7,167],[6,1,6,2],[6,34,6,35],[6,67,6,68],[6,100,6,101],[6,133,6,134],[6,166,6,167],[1,192,3,192],[1,193,3,193],[1,194,3,194],[1,195,3,195],[1,196,3,196],[1,197,3,197],[1,186,3,186],[1,187,3,187],[1,188,3,188],[1,189,3,189],[1,190,3,190],[1,191,3,191],[1,180,3,180],[1,181,3,181],[1,182,3,182],[1,183,3,183],[1,184,3,184],[1,185,3,185],[1,174,3,174],[1,175,3,175],[1,176,3,176],[1,177,3,177],[1,178,3,178],[1,179,3,179],[1,168,3,168],[1,169,3,169],[1,170,3,170],[1,171,3,171],[1,172,3,172],[1,173,3,173],[1,162,3,162],[1,163,3,163],[1,164,3,164],[1,165,5,165],[1,166,5,166],[1,167,3,167],[1,156,3,156],[1,157,3,157],[1,158,3,158],[1,159,3,159],[1,160,3,160],[1,161,3,161],[1,150,3,150],[1,151,3,151],[1,152,3,152],[1,153,3,153],[1,154,3,154],[1,155,3,155],[1,144,3,144],[1,145,3,145],[1,146,3,146],[1,147,3,147],[1,148,3,148],[1,149,3,149],[1,138,3,138],[1,139,3,139],[1,140,3,140],[1,141,3,141],[1,142,3,142],[1,143,3,143],[1,132,5,132],[1,133,5,133],[1,134,3,134],[1,135,3,135],[1,136,3,136],[1,137,3,137],[1,126,3,126],[1,127,3,127],[1,128,3,128],[1,129,3,129],[1,130,3,130],[1,131,3,131],[1,120,3,120],[1,121,3,121],[1,122,3,122],[1,123,3,123],[1,124,3,124],[1,125,3,125],[1,114,3,114],[1,115,3,115],[1,116,3,116],[1,117,3,117],[1,118,3,118],[1,119,3,119],[1,108,3,108],[1,109,3,109],[1,110,3,110],[1,111,3,111],[1,112,3,112],[1,113,3,113],[1,102,3,102],[1,103,3,103],[1,104,3,104],[1,105,3,105],[1,106,3,106],[1,107,3,107],[1,96,3,96],[1,97,3,97],[1,98,3,98],[1,99,5,99],[1,100,5,100],[1,101,3,101],[1,90,3,90],[1,91,3,91],[1,92,3,92],[1,93,3,93],[1,94,3,94],[1,95,3,95],[1,84,3,84],[1,85,3,85],[1,86,3,86],[1,87,3,87],[1,88,3,88],[1,89,3,89],[1,78,3,78],[1,79,3,79],[1,80,3,80],[1,81,3,81],[1,82,3,82],[1,83,3,83],[1,72,3,72],[1,73,3,73],[1,74,3,74],[1,75,3,75],[1,76,3,76],[1,77,3,77],[1,66,5,66],[1,67,5,67],[1,68,3,68],[1,69,3,69],[1,70,3,70],[1,71,3,71],[1,60,3,60],[1,61,3,61],[1,62,3,62],[1,63,3,63],[1,64,3,64],[1,65,3,65],[1,54,3,54],[1,55,3,55],[1,56,3,56],[1,57,3,57],[1,58,3,58],[1,59,3,59],[1,48,3,48],[1,49,3,49],[1,50,3,50],[1,51,3,51],[1,52,3,52],[1,53,3,53],[1,42,3,42],[1,43,3,43],[1,44,3,44],[1,45,3,45],[1,46,3,46],[1,47,3,47],[1,36,3,36],[1,37,3,37],[1,38,3,38],[1,39,3,39],[1,40,3,40],[1,41,3,41],[1,30,3,30],[1,31,3,31],[1,32,3,32],[1,33,5,33],[1,34,5,34],[1,35,3,35],[1,24,3,24],[1,25,3,25],[1,26,3,26],[1,27,3,27],[1,28,3,28],[1,29,3,29],[1,18,3,18],[1,19,3,19],[1,20,3,20],[1,21,3,21],[1,22,3,22],[1,23,3,23],[0,99,0,131],[0,132,0,164],[0,165,0,197],[1,0,5,0],[1,1,5,1],[1,2,3,2],[1,3,3,3],[1,4,3,4],[1,5,3,5],[0,0,0,32],[0,33,0,65],[0,66,0,98],[1,12,3,12],[1,13,3,13],[1,14,3,14],[1,15,3,15],[1,16,3,16],[1,17,3,17],[1,6,3,6],[1,7,3,7],[1,8,3,8],[1,9,3,9],[1,10,3,10],[1,11,3,11]]}
[{"$f":"\"แบบบันทึกเวลาการเข้าร่วม กิจกรรม\"&ตั้งค่า!C20&\"  ชั้น\"&ตั้งค่า!C17&\" ภาคเรียนที่ 2 \"","v":"แบบบันทึกเวลาการเข้าร่วม กิจกรรม  ชั้น ภาคเรียนที่ 2 "},null,null,null,null,null,null,null,null,null,null,null,null,null,null,null,null,null,null,null,null,null,null,null,null,null,null,null,null,null,null,null,null,{"$f":"A1","v":"แบบบันทึกเวลาการเข้าร่วม กิจกรรม  ชั้น ภาคเรียนที่ 2 "},null,null,null,null,null,null,null,null,null,null,null,null,null,null,null,null,null,null,null,null,null,null,null,null,null,null,null,null,null,null,null,null,{"$f":"AH1","v":"แบบบันทึกเวลาการเข้าร่วม กิจกรรม  ชั้น ภาคเรียนที่ 2 "},null,null,null,null,null,null,null,null,null,null,null,null,null,null,null,null,null,null,null,null,null,null,null,null,null,null,null,null,null,null,null,null,{"$f":"BO1","v":"แบบบันทึกเวลาการเข้าร่วม กิจกรรม  ชั้น ภาคเรียนที่ 2 "},null,null,null,null,null,null,null,null,null,null,null,null,null,null,null,null,null,null,null,null,null,null,null,null,null,null,null,null,null,null,null,null,{"$f":"CV1","v":"แบบบันทึกเวลาการเข้าร่วม กิจกรรม  ชั้น ภาคเรียนที่ 2 "},null,null,null,null,null,null,null,null,null,null,null,null,null,null,null,null,null,null,null,null,null,null,null,null,null,null,null,null,null,null,null,null,{"$f":"EC1","v":"แบบบันทึกเวลาการเข้าร่วม กิจกรรม  ชั้น ภาคเรียนที่ 2 "},null,null,null,null,null,null,null,null,null,null,null,null,null,null,null,null,null,null,null,null,null,null,null,null,null,null,null,null,null,null,null,null,null,"ย"]
["ที่","ชื่อ-สกุล","วัน เดือน ปี","","","","","","","","","","","","","","","","","","","","","","","","","","","","","","","ที่",{"$f":"B2","v":"ชื่อ-สกุล"},{"$f":"C2","v":"วัน เดือน ปี"},null,null,null,null,null,null,null,null,null,null,null,null,null,null,null,null,null,null,null,null,null,null,null,null,null,null,null,null,null,null,"ที่",{"$f":"AI2","v":"ชื่อ-สกุล"},{"$f":"AJ2","v":"วัน เดือน ปี"},null,null,null,null,null,null,null,null,null,null,null,null,null,null,null,null,null,null,null,null,null,null,null,null,null,null,null,null,null,null,"ที่",{"$f":"BP2","v":"ชื่อ-สกุล"},{"$f":"BQ2","v":"วัน เดือน ปี"},null,null,null,null,null,null,null,null,null,null,null,null,null,null,null,null,null,null,null,null,null,null,null,null,null,null,null,null,null,null,"ที่",{"$f":"CW2","v":"ชื่อ-สกุล"},{"$f":"CX2","v":"วัน เดือน ปี"},null,null,null,null,null,null,null,null,null,null,null,null,null,null,null,null,null,null,null,null,null,null,null,null,null,null,null,null,null,null,"ที่",{"$f":"ED2","v":"ชื่อ-สกุล"},{"$f":"EE2","v":"วัน เดือน ปี"},null,null,null,null,null,null,null,null,null,null,null,null,null,null,null,null,null,null,null,null,null,null,null,null,null,null,null,null,null,null,"หมายเหตุ"]
[]
[]
[null,null,"วัน",null,null,null,null,null,null,null,null,null,null,null,null,null,null,null,null,null,null,null,null,null,null,null,null,null,null,null,null,null,null,null,null,{"$f":"C5","v":"วัน"},null,null,null,null,null,null,null,null,null,null,null,null,null,null,null,null,null,null,null,null,null,null,null,null,null,null,null,null,null,null,null,null,{"$f":"AJ5","v":"วัน"},null,null,null,null,null,null,null,null,null,null,null,null,null,null,null,null,null,null,null,null,null,null,null,null,null,null,null,null,null,null,null,null,{"$f":"BQ5","v":"วัน"},null,null,null,null,null,null,null,null,null,null,null,null,null,null,null,null,null,null,null,null,null,null,null,null,null,null,null,null,null,null,null,null,{"$f":"CX5","v":"วัน"},null,null,null,null,null,null,null,null,null,null,null,null,null,null,null,null,null,null,null,null,null,null,null,null,null,null,null,null,null,null,null,null,{"$f":"EE5","v":"วัน"}]
[null,null,"จำนวนคาบ",null,null,null,null,null,null,null,null,null,null,null,null,null,null,null,null,null,null,null,null,null,null,null,null,null,null,null,null,null,null,null,null,{"$f":"C6","v":"จำนวนคาบ"},null,null,null,null,null,null,null,null,null,null,null,null,null,null,null,null,null,null,null,null,null,null,null,null,null,null,null,null,null,null,null,null,{"$f":"AJ6","v":"จำนวนคาบ"},null,null,null,null,null,null,null,null,null,null,null,null,null,null,null,null,null,null,null,null,null,null,null,null,null,null,null,null,null,null,null,null,{"$f":"BQ6","v":"จำนวนคาบ"},null,null,null,null,null,null,null,null,null,null,null,null,null,null,null,null,null,null,null,null,null,null,null,null,null,null,null,null,null,null,null,null,{"$f":"CX6","v":"จำนวนคาบ"},null,null,null,null,null,null,null,null,null,null,null,null,null,null,null,null,null,null,null,null,null,null,null,null,null,null,null,null,null,null,null,null,{"$f":"EE6","v":"จำนวนคาบ"}]
[{"$f":"รายชื่อนักเรียน!B6","v":0},{"$f":"IF(รายชื่อนักเรียน!E6=\"\",\"\",รายชื่อนักเรียน!E6)","v":""},null,null,null,null,null,null,null,null,null,null,null,null,null,null,null,null,null,null,null,null,null,null,null,null,null,null,null,null,null,null,null,{"$f":"A7","v":0},{"$f":"B7","v":""},null,null,null,null,null,null,null,null,null,null,null,null,null,null,null,null,null,null,null,null,null,null,null,null,null,null,null,null,null,null,null,{"$f":"AH7","v":0},{"$f":"AI7","v":""},null,null,null,null,null,null,null,null,null,null,null,null,null,null,null,null,null,null,null,null,null,null,null,null,null,null,null,null,null,null,null,{"$f":"BO7","v":0},{"$f":"BP7","v":""},null,null,null,null,null,null,null,null,null,null,null,null,null,null,null,null,null,null,null,null,null,null,null,null,null,null,null,null,null,null,null,{"$f":"CV7","v":0},{"$f":"CW7","v":""},null,null,null,null,null,null,null,null,null,null,null,null,null,null,null,null,null,null,null,null,null,null,null,null,null,null,null,null,null,null,null,1,{"$f":"ED7","v":""},null,null,null,null,null,null,null,null,null,null,null,null,null,null,null,null,null,null,null,null,null,null,null,null,null,null,null,null,null,null,null,{"$f":"IF(รายชื่อนักเรียน!$F6=\"\",\"\",รายชื่อนักเรียน!$F6)","v":""},null,null,"ย้าย"]
[{"$f":"รายชื่อนักเรียน!B7","v":0},{"$f":"IF(รายชื่อนักเรียน!E7=\"\",\"\",รายชื่อนักเรียน!E7)","v":""},null,null,null,null,null,null,null,null,null,null,null,null,null,null,null,null,null,null,null,null,null,null,null,null,null,null,null,null,null,null,null,{"$f":"A8","v":0},{"$f":"B8","v":""},null,null,null,null,null,null,null,null,null,null,null,null,null,null,null,null,null,null,null,null,null,null,null,null,null,null,null,null,null,null,null,{"$f":"AH8","v":0},{"$f":"AI8","v":""},null,null,null,null,null,null,null,null,null,null,null,null,null,null,null,null,null,null,null,null,null,null,null,null,null,null,null,null,null,null,null,{"$f":"BO8","v":0},{"$f":"BP8","v":""},null,null,null,null,null,null,null,null,null,null,null,null,null,null,null,null,null,null,null,null,null,null,null,null,null,null,null,null,null,null,null,{"$f":"CV8","v":0},{"$f":"CW8","v":""},null,null,null,null,null,null,null,null,null,null,null,null,null,null,null,null,null,null,null,null,null,null,null,null,null,null,null,null,null,null,null,2,{"$f":"ED8","v":""},null,null,null,null,null,null,null,null,null,null,null,null,null,null,null,null,null,null,null,null,null,null,null,null,null,null,null,null,null,null,null,{"$f":"IF(รายชื่อนักเรียน!$F7=\"\",\"\",รายชื่อนักเรียน!$F7)","v":""}]
[{"$f":"รายชื่อนักเรียน!B8","v":0},{"$f":"IF(รายชื่อนักเรียน!E8=\"\",\"\",รายชื่อนักเรียน!E8)","v":""},null,null,null,null,null,null,null,null,null,null,null,null,null,null,null,null,null,null,null,null,null,null,null,null,null,null,null,null,null,null,null,0,{"$f":"B9","v":""},null,null,null,null,null,null,null,null,null,null,null,null,null,null,null,null,null,null,null,null,null,null,null,null,null,null,null,null,null,null,null,0,{"$f":"AI9","v":""},null,null,null,null,null,null,null,null,null,null,null,null,null,null,null,null,null,null,null,null,null,null,null,null,null,null,null,null,null,null,null,0,{"$f":"BP9","v":""},null,null,null,null,null,null,null,null,null,null,null,null,null,null,null,null,null,null,null,null,null,null,null,null,null,null,null,null,null,null,null,0,{"$f":"CW9","v":""},null,null,null,null,null,null,null,null,null,null,null,null,null,null,null,null,null,null,null,null,null,null,null,null,null,null,null,null,null,null,null,3,{"$f":"ED9","v":""},null,null,null,null,null,null,null,null,null,null,null,null,null,null,null,null,null,null,null,null,null,null,null,null,null,null,null,null,null,null,null,{"$f":"IF(รายชื่อนักเรียน!$F8=\"\",\"\",รายชื่อนักเรียน!$F8)","v":""}]
[{"$f":"รายชื่อนักเรียน!B9","v":0},{"$f":"IF(รายชื่อนักเรียน!E9=\"\",\"\",รายชื่อนักเรียน!E9)","v":""},null,null,null,null,null,null,null,null,null,null,null,null,null,null,null,null,null,null,null,null,null,null,null,null,null,null,null,null,null,null,null,0,{"$f":"B10","v":""},null,null,null,null,null,null,null,null,null,null,null,null,null,null,null,null,null,null,null,null,null,null,null,null,null,null,null,null,null,null,null,0,{"$f":"AI10","v":""},null,null,null,null,null,null,null,null,null,null,null,null,null,null,null,null,null,null,null,null,null,null,null,null,null,null,null,null,null,null,null,0,{"$f":"BP10","v":""},null,null,null,null,null,null,null,null,null,null,null,null,null,null,null,null,null,null,null,null,null,null,null,null,null,null,null,null,null,null,null,0,{"$f":"CW10","v":""},null,null,null,null,null,null,null,null,null,null,null,null,null,null,null,null,null,null,null,null,null,null,null,null,null,null,null,null,null,null,null,4,{"$f":"ED10","v":""},null,null,null,null,null,null,null,null,null,null,null,null,null,null,null,null,null,null,null,null,null,null,null,null,null,null,null,null,null,null,null,{"$f":"IF(รายชื่อนักเรียน!$F9=\"\",\"\",รายชื่อนักเรียน!$F9)","v":""}]
[{"$f":"รายชื่อนักเรียน!B10","v":0},{"$f":"IF(รายชื่อนักเรียน!E10=\"\",\"\",รายชื่อนักเรียน!E10)","v":""},null,null,null,null,null,null,null,null,null,null,null,null,null,null,null,null,null,null,null,null,null,null,null,null,null,null,null,null,null,null,null,0,"",null,null,null,null,null,null,null,null,null,null,null,null,null,null,null,null,null,null,null,null,null,null,null,null,null,null,null,null,null,null,null,0,"",null,null,null,null,null,null,null,null,null,null,null,null,null,null,null,null,null,null,null,null,null,null,null,null,null,null,null,null,null,null,null,0,"",null,null,null,null,null,null,null,null,null,null,null,null,null,null,null,null,null,null,null,null,null,null,null,null,null,null,null,null,null,null,null,0,"",null,null,null,null,null,null,null,null,null,null,null,null,null,null,null,null,null,null,null,null,null,null,null,null,null,null,null,null,null,null,null,5,"",null,null,null,null,null,null,null,null,null,null,null,null,null,null,null,null,null,null,null,null,null,null,null,null,null,null,null,null,null,null,null,{"$f":"IF(รายชื่อนักเรียน!$F10=\"\",\"\",รายชื่อนักเรียน!$F10)","v":""}]
[{"$f":"รายชื่อนักเรียน!B11","v":0},{"$f":"IF(รายชื่อนักเรียน!E11=\"\",\"\",รายชื่อนักเรียน!E11)","v":""},null,null,null,null,null,null,null,null,null,null,null,null,null,null,null,null,null,null,null,null,null,null,null,null,null,null,null,null,null,null,null,0,"",null,null,null,null,null,null,null,null,null,null,null,null,null,null,null,null,null,null,null,null,null,null,null,null,null,null,null,null,null,null,null,0,"",null,null,null,null,null,null,null,null,null,null,null,null,null,null,null,null,null,null,null,null,null,null,null,null,null,null,null,null,null,null,null,0,"",null,null,null,null,null,null,null,null,null,null,null,null,null,null,null,null,null,null,null,null,null,null,null,null,null,null,null,null,null,null,null,0,"",null,null,null,null,null,null,null,null,null,null,null,null,null,null,null,null,null,null,null,null,null,null,null,null,null,null,null,null,null,null,null,6,"",null,null,null,null,null,null,null,null,null,null,null,null,null,null,null,null,null,null,null,null,null,null,null,null,null,null,null,null,null,null,null,{"$f":"IF(รายชื่อนักเรียน!$F11=\"\",\"\",รายชื่อนักเรียน!$F11)","v":""}]
[{"$f":"รายชื่อนักเรียน!B12","v":0},{"$f":"IF(รายชื่อนักเรียน!E12=\"\",\"\",รายชื่อนักเรียน!E12)","v":""},null,null,null,null,null,null,null,null,null,null,null,null,null,null,null,null,null,null,null,null,null,null,null,null,null,null,null,null,null,null,null,0,"",null,null,null,null,null,null,null,null,null,null,null,null,null,null,null,null,null,null,null,null,null,null,null,null,null,null,null,null,null,null,null,0,"",null,null,null,null,null,null,null,null,null,null,null,null,null,null,null,null,null,null,null,null,null,null,null,null,null,null,null,null,null,null,null,0,"",null,null,null,null,null,null,null,null,null,null,null,null,null,null,null,null,null,null,null,null,null,null,null,null,null,null,null,null,null,null,null,0,"",null,null,null,null,null,null,null,null,null,null,null,null,null,null,null,null,null,null,null,null,null,null,null,null,null,null,null,null,null,null,null,7,"",null,null,null,null,null,null,null,null,null,null,null,null,null,null,null,null,null,null,null,null,null,null,null,null,null,null,null,null,null,null,null,{"$f":"IF(รายชื่อนักเรียน!$F12=\"\",\"\",รายชื่อนักเรียน!$F12)","v":""}]
[{"$f":"รายชื่อนักเรียน!B13","v":0},{"$f":"IF(รายชื่อนักเรียน!E13=\"\",\"\",รายชื่อนักเรียน!E13)","v":""},null,null,null,null,null,null,null,null,null,null,null,null,null,null,null,null,null,null,null,null,null,null,null,null,null,null,null,null,null,null,null,0,"",null,null,null,null,null,null,null,null,null,null,null,null,null,null,null,null,null,null,null,null,null,null,null,null,null,null,null,null,null,null,null,0,"",null,null,null,null,null,null,null,null,null,null,null,null,null,null,null,null,null,null,null,null,null,null,null,null,null,null,null,null,null,null,null,0,"",null,null,null,null,null,null,null,null,null,null,null,null,null,null,null,null,null,null,null,null,null,null,null,null,null,null,null,null,null,null,null,0,"",null,null,null,null,null,null,null,null,null,null,null,null,null,null,null,null,null,null,null,null,null,null,null,null,null,null,null,null,null,null,null,8,"",null,null,null,null,null,null,null,null,null,null,null,null,null,null,null,null,null,null,null,null,null,null,null,null,null,null,null,null,null,null,null,{"$f":"IF(รายชื่อนักเรียน!$F13=\"\",\"\",รายชื่อนักเรียน!$F13)","v":""}]
[{"$f":"รายชื่อนักเรียน!B14","v":0},{"$f":"IF(รายชื่อนักเรียน!E14=\"\",\"\",รายชื่อนักเรียน!E14)","v":""},null,null,null,null,null,null,null,null,null,null,null,null,null,null,null,null,null,null,null,null,null,null,null,null,null,null,null,null,null,null,null,0,"",null,null,null,null,null,null,null,null,null,null,null,null,null,null,null,null,null,null,null,null,null,null,null,null,null,null,null,null,null,null,null,0,"",null,null,null,null,null,null,null,null,null,null,null,null,null,null,null,null,null,null,null,null,null,null,null,null,null,null,null,null,null,null,null,0,"",null,null,null,null,null,null,null,null,null,null,null,null,null,null,null,null,null,null,null,null,null,null,null,null,null,null,null,null,null,null,null,0,"",null,null,null,null,null,null,null,null,null,null,null,null,null,null,null,null,null,null,null,null,null,null,null,null,null,null,null,null,null,null,null,9,"",null,null,null,null,null,null,null,null,null,null,null,null,null,null,null,null,null,null,null,null,null,null,null,null,null,null,null,null,null,null,null,{"$f":"IF(รายชื่อนักเรียน!$F14=\"\",\"\",รายชื่อนักเรียน!$F14)","v":""}]
[{"$f":"รายชื่อนักเรียน!B15","v":0},{"$f":"IF(รายชื่อนักเรียน!E15=\"\",\"\",รายชื่อนักเรียน!E15)","v":""},null,null,null,null,null,null,null,null,null,null,null,null,null,null,null,null,null,null,null,null,null,null,null,null,null,null,null,null,null,null,null,0,"",null,null,null,null,null,null,null,null,null,null,null,null,null,null,null,null,null,null,null,null,null,null,null,null,null,null,null,null,null,null,null,0,"",null,null,null,null,null,null,null,null,null,null,null,null,null,null,null,null,null,null,null,null,null,null,null,null,null,null,null,null,null,null,null,0,"",null,null,null,null,null,null,null,null,null,null,null,null,null,null,null,null,null,null,null,null,null,null,null,null,null,null,null,null,null,null,null,0,"",null,null,null,null,null,null,null,null,null,null,null,null,null,null,null,null,null,null,null,null,null,null,null,null,null,null,null,null,null,null,null,10,"",null,null,null,null,null,null,null,null,null,null,null,null,null,null,null,null,null,null,null,null,null,null,null,null,null,null,null,null,null,null,null,{"$f":"IF(รายชื่อนักเรียน!$F15=\"\",\"\",รายชื่อนักเรียน!$F15)","v":""}]
[{"$f":"รายชื่อนักเรียน!B16","v":0},{"$f":"IF(รายชื่อนักเรียน!E16=\"\",\"\",รายชื่อนักเรียน!E16)","v":""},null,null,null,null,null,null,null,null,null,null,null,null,null,null,null,null,null,null,null,null,null,null,null,null,null,null,null,null,null,null,null,0,"",null,null,null,null,null,null,null,null,null,null,null,null,null,null,null,null,null,null,null,null,null,null,null,null,null,null,null,null,null,null,null,0,"",null,null,null,null,null,null,null,null,null,null,null,null,null,null,null,null,null,null,null,null,null,null,null,null,null,null,null,null,null,null,null,0,"",null,null,null,null,null,null,null,null,null,null,null,null,null,null,null,null,null,null,null,null,null,null,null,null,null,null,null,null,null,null,null,0,"",null,null,null,null,null,null,null,null,null,null,null,null,null,null,null,null,null,null,null,null,null,null,null,null,null,null,null,null,null,null,null,11,"",null,null,null,null,null,null,null,null,null,null,null,null,null,null,null,null,null,null,null,null,null,null,null,null,null,null,null,null,null,null,null,{"$f":"IF(รายชื่อนักเรียน!$F16=\"\",\"\",รายชื่อนักเรียน!$F16)","v":""}]
[{"$f":"รายชื่อนักเรียน!B17","v":0},{"$f":"IF(รายชื่อนักเรียน!E17=\"\",\"\",รายชื่อนักเรียน!E17)","v":""},null,null,null,null,null,null,null,null,null,null,null,null,null,null,null,null,null,null,null,null,null,null,null,null,null,null,null,null,null,null,null,0,"",null,null,null,null,null,null,null,null,null,null,null,null,null,null,null,null,null,null,null,null,null,null,null,null,null,null,null,null,null,null,null,0,"",null,null,null,null,null,null,null,null,null,null,null,null,null,null,null,null,null,null,null,null,null,null,null,null,null,null,null,null,null,null,null,0,"",null,null,null,null,null,null,null,null,null,null,null,null,null,null,null,null,null,null,null,null,null,null,null,null,null,null,null,null,null,null,null,0,"",null,null,null,null,null,null,null,null,null,null,null,null,null,null,null,null,null,null,null,null,null,null,null,null,null,null,null,null,null,null,null,12,"",null,null,null,null,null,null,null,null,null,null,null,null,null,null,null,null,null,null,null,null,null,null,null,null,null,null,null,null,null,null,null,{"$f":"IF(รายชื่อนักเรียน!$F17=\"\",\"\",รายชื่อนักเรียน!$F17)","v":""}]
[{"$f":"รายชื่อนักเรียน!B18","v":0},{"$f":"IF(รายชื่อนักเรียน!E18=\"\",\"\",รายชื่อนักเรียน!E18)","v":""},null,null,null,null,null,null,null,null,null,null,null,null,null,null,null,null,null,null,null,null,null,null,null,null,null,null,null,null,null,null,null,0,"",null,null,null,null,null,null,null,null,null,null,null,null,null,null,null,null,null,null,null,null,null,null,null,null,null,null,null,null,null,null,null,0,"",null,null,null,null,null,null,null,null,null,null,null,null,null,null,null,null,null,null,null,null,null,null,null,null,null,null,null,null,null,null,null,0,"",null,null,null,null,null,null,null,null,null,null,null,null,null,null,null,null,null,null,null,null,null,null,null,null,null,null,null,null,null,null,null,0,"",null,null,null,null,null,null,null,null,null,null,null,null,null,null,null,null,null,null,null,null,null,null,null,null,null,null,null,null,null,null,null,13,"",null,null,null,null,null,null,null,null,null,null,null,null,null,null,null,null,null,null,null,null,null,null,null,null,null,null,null,null,null,null,null,{"$f":"IF(รายชื่อนักเรียน!$F18=\"\",\"\",รายชื่อนักเรียน!$F18)","v":""}]
[{"$f":"รายชื่อนักเรียน!B19","v":0},{"$f":"IF(รายชื่อนักเรียน!E19=\"\",\"\",รายชื่อนักเรียน!E19)","v":""},null,null,null,null,null,null,null,null,null,null,null,null,null,null,null,null,null,null,null,null,null,null,null,null,null,null,null,null,null,null,null,0,"",null,null,null,null,null,null,null,null,null,null,null,null,null,null,null,null,null,null,null,null,null,null,null,null,null,null,null,null,null,null,null,0,"",null,null,null,null,null,null,null,null,null,null,null,null,null,null,null,null,null,null,null,null,null,null,null,null,null,null,null,null,null,null,null,0,"",null,null,null,null,null,null,null,null,null,null,null,null,null,null,null,null,null,null,null,null,null,null,null,null,null,null,null,null,null,null,null,0,"",null,null,null,null,null,null,null,null,null,null,null,null,null,null,null,null,null,null,null,null,null,null,null,null,null,null,null,null,null,null,null,14,"",null,null,null,null,null,null,null,null,null,null,null,null,null,null,null,null,null,null,null,null,null,null,null,null,null,null,null,null,null,null,null,{"$f":"IF(รายชื่อนักเรียน!$F19=\"\",\"\",รายชื่อนักเรียน!$F19)","v":""}]
[{"$f":"รายชื่อนักเรียน!B20","v":0},{"$f":"IF(รายชื่อนักเรียน!E20=\"\",\"\",รายชื่อนักเรียน!E20)","v":""},null,null,null,null,null,null,null,null,null,null,null,null,null,null,null,null,null,null,null,null,null,null,null,null,null,null,null,null,null,null,null,0,"",null,null,null,null,null,null,null,null,null,null,null,null,null,null,null,null,null,null,null,null,null,null,null,null,null,null,null,null,null,null,null,0,"",null,null,null,null,null,null,null,null,null,null,null,null,null,null,null,null,null,null,null,null,null,null,null,null,null,null,null,null,null,null,null,0,"",null,null,null,null,null,null,null,null,null,null,null,null,null,null,null,null,null,null,null,null,null,null,null,null,null,null,null,null,null,null,null,0,"",null,null,null,null,null,null,null,null,null,null,null,null,null,null,null,null,null,null,null,null,null,null,null,null,null,null,null,null,null,null,null,15,"",null,null,null,null,null,null,null,null,null,null,null,null,null,null,null,null,null,null,null,null,null,null,null,null,null,null,null,null,null,null,null,{"$f":"IF(รายชื่อนักเรียน!$F20=\"\",\"\",รายชื่อนักเรียน!$F20)","v":""}]
[{"$f":"รายชื่อนักเรียน!B21","v":0},{"$f":"IF(รายชื่อนักเรียน!E21=\"\",\"\",รายชื่อนักเรียน!E21)","v":""},null,null,null,null,null,null,null,null,null,null,null,null,null,null,null,null,null,null,null,null,null,null,null,null,null,null,null,null,null,null,null,0,"",null,null,null,null,null,null,null,null,null,null,null,null,null,null,null,null,null,null,null,null,null,null,null,null,null,null,null,null,null,null,null,0,"",null,null,null,null,null,null,null,null,null,null,null,null,null,null,null,null,null,null,null,null,null,null,null,null,null,null,null,null,null,null,null,0,"",null,null,null,null,null,null,null,null,null,null,null,null,null,null,null,null,null,null,null,null,null,null,null,null,null,null,null,null,null,null,null,0,"",null,null,null,null,null,null,null,null,null,null,null,null,null,null,null,null,null,null,null,null,null,null,null,null,null,null,null,null,null,null,null,16,"",null,null,null,null,null,null,null,null,null,null,null,null,null,null,null,null,null,null,null,null,null,null,null,null,null,null,null,null,null,null,null,{"$f":"IF(รายชื่อนักเรียน!$F21=\"\",\"\",รายชื่อนักเรียน!$F21)","v":""}]
[{"$f":"รายชื่อนักเรียน!B22","v":0},{"$f":"IF(รายชื่อนักเรียน!E22=\"\",\"\",รายชื่อนักเรียน!E22)","v":""},null,null,null,null,null,null,null,null,null,null,null,null,null,null,null,null,null,null,null,null,null,null,null,null,null,null,null,null,null,null,null,0,"",null,null,null,null,null,null,null,null,null,null,null,null,null,null,null,null,null,null,null,null,null,null,null,null,null,null,null,null,null,null,null,0,"",null,null,null,null,null,null,null,null,null,null,null,null,null,null,null,null,null,null,null,null,null,null,null,null,null,null,null,null,null,null,null,0,"",null,null,null,null,null,null,null,null,null,null,null,null,null,null,null,null,null,null,null,null,null,null,null,null,null,null,null,null,null,null,null,0,"",null,null,null,null,null,null,null,null,null,null,null,null,null,null,null,null,null,null,null,null,null,null,null,null,null,null,null,null,null,null,null,17,"",null,null,null,null,null,null,null,null,null,null,null,null,null,null,null,null,null,null,null,null,null,null,null,null,null,null,null,null,null,null,null,{"$f":"IF(รายชื่อนักเรียน!$F22=\"\",\"\",รายชื่อนักเรียน!$F22)","v":""}]
[{"$f":"รายชื่อนักเรียน!B23","v":0},{"$f":"IF(รายชื่อนักเรียน!E23=\"\",\"\",รายชื่อนักเรียน!E23)","v":""},null,null,null,null,null,null,null,null,null,null,null,null,null,null,null,null,null,null,null,null,null,null,null,null,null,null,null,null,null,null,null,0,"",null,null,null,null,null,null,null,null,null,null,null,null,null,null,null,null,null,null,null,null,null,null,null,null,null,null,null,null,null,null,null,0,"",null,null,null,null,null,null,null,null,null,null,null,null,null,null,null,null,null,null,null,null,null,null,null,null,null,null,null,null,null,null,null,0,"",null,null,null,null,null,null,null,null,null,null,null,null,null,null,null,null,null,null,null,null,null,null,null,null,null,null,null,null,null,null,null,0,"",null,null,null,null,null,null,null,null,null,null,null,null,null,null,null,null,null,null,null,null,null,null,null,null,null,null,null,null,null,null,null,18,"",null,null,null,null,null,null,null,null,null,null,null,null,null,null,null,null,null,null,null,null,null,null,null,null,null,null,null,null,null,null,null,{"$f":"IF(รายชื่อนักเรียน!$F23=\"\",\"\",รายชื่อนักเรียน!$F23)","v":""}]
[{"$f":"รายชื่อนักเรียน!B24","v":0},{"$f":"IF(รายชื่อนักเรียน!E24=\"\",\"\",รายชื่อนักเรียน!E24)","v":""},null,null,null,null,null,null,null,null,null,null,null,null,null,null,null,null,null,null,null,null,null,null,null,null,null,null,null,null,null,null,null,0,"",null,null,null,null,null,null,null,null,null,null,null,null,null,null,null,null,null,null,null,null,null,null,null,null,null,null,null,null,null,null,null,0,"",null,null,null,null,null,null,null,null,null,null,null,null,null,null,null,null,null,null,null,null,null,null,null,null,null,null,null,null,null,null,null,0,"",null,null,null,null,null,null,null,null,null,null,null,null,null,null,null,null,null,null,null,null,null,null,null,null,null,null,null,null,null,null,null,0,"",null,null,null,null,null,null,null,null,null,null,null,null,null,null,null,null,null,null,null,null,null,null,null,null,null,null,null,null,null,null,null,19,"",null,null,null,null,null,null,null,null,null,null,null,null,null,null,null,null,null,null,null,null,null,null,null,null,null,null,null,null,null,null,null,{"$f":"IF(รายชื่อนักเรียน!$F24=\"\",\"\",รายชื่อนักเรียน!$F24)","v":""}]
[{"$f":"รายชื่อนักเรียน!B25","v":0},{"$f":"IF(รายชื่อนักเรียน!E25=\"\",\"\",รายชื่อนักเรียน!E25)","v":""},null,null,null,null,null,null,null,null,null,null,null,null,null,null,null,null,null,null,null,null,null,null,null,null,null,null,null,null,null,null,null,0,"",null,null,null,null,null,null,null,null,null,null,null,null,null,null,null,null,null,null,null,null,null,null,null,null,null,null,null,null,null,null,null,0,"",null,null,null,null,null,null,null,null,null,null,null,null,null,null,null,null,null,null,null,null,null,null,null,null,null,null,null,null,null,null,null,0,"",null,null,null,null,null,null,null,null,null,null,null,null,null,null,null,null,null,null,null,null,null,null,null,null,null,null,null,null,null,null,null,0,"",null,null,null,null,null,null,null,null,null,null,null,null,null,null,null,null,null,null,null,null,null,null,null,null,null,null,null,null,null,null,null,20,"",null,null,null,null,null,null,null,null,null,null,null,null,null,null,null,null,null,null,null,null,null,null,null,null,null,null,null,null,null,null,null,{"$f":"IF(รายชื่อนักเรียน!$F25=\"\",\"\",รายชื่อนักเรียน!$F25)","v":""}]
[{"$f":"รายชื่อนักเรียน!B26","v":0},{"$f":"IF(รายชื่อนักเรียน!E26=\"\",\"\",รายชื่อนักเรียน!E26)","v":""},null,null,null,null,null,null,null,null,null,null,null,null,null,null,null,null,null,null,null,null,null,null,null,null,null,null,null,null,null,null,null,0,"",null,null,null,null,null,null,null,null,null,null,null,null,null,null,null,null,null,null,null,null,null,null,null,null,null,null,null,null,null,null,null,0,"",null,null,null,null,null,null,null,null,null,null,null,null,null,null,null,null,null,null,null,null,null,null,null,null,null,null,null,null,null,null,null,0,"",null,null,null,null,null,null,null,null,null,null,null,null,null,null,null,null,null,null,null,null,null,null,null,null,null,null,null,null,null,null,null,0,"",null,null,null,null,null,null,null,null,null,null,null,null,null,null,null,null,null,null,null,null,null,null,null,null,null,null,null,null,null,null,null,21,"",null,null,null,null,null,null,null,null,null,null,null,null,null,null,null,null,null,null,null,null,null,null,null,null,null,null,null,null,null,null,null,{"$f":"IF(รายชื่อนักเรียน!$F26=\"\",\"\",รายชื่อนักเรียน!$F26)","v":""}]
[{"$f":"รายชื่อนักเรียน!B27","v":0},{"$f":"IF(รายชื่อนักเรียน!E27=\"\",\"\",รายชื่อนักเรียน!E27)","v":""},null,null,null,null,null,null,null,null,null,null,null,null,null,null,null,null,null,null,null,null,null,null,null,null,null,null,null,null,null,null,null,0,"",null,null,null,null,null,null,null,null,null,null,null,null,null,null,null,null,null,null,null,null,null,null,null,null,null,null,null,null,null,null,null,0,"",null,null,null,null,null,null,null,null,null,null,null,null,null,null,null,null,null,null,null,null,null,null,null,null,null,null,null,null,null,null,null,0,"",null,null,null,null,null,null,null,null,null,null,null,null,null,null,null,null,null,null,null,null,null,null,null,null,null,null,null,null,null,null,null,0,"",null,null,null,null,null,null,null,null,null,null,null,null,null,null,null,null,null,null,null,null,null,null,null,null,null,null,null,null,null,null,null,22,"",null,null,null,null,null,null,null,null,null,null,null,null,null,null,null,null,null,null,null,null,null,null,null,null,null,null,null,null,null,null,null,{"$f":"IF(รายชื่อนักเรียน!$F27=\"\",\"\",รายชื่อนักเรียน!$F27)","v":""}]
[{"$f":"รายชื่อนักเรียน!B28","v":0},{"$f":"IF(รายชื่อนักเรียน!E28=\"\",\"\",รายชื่อนักเรียน!E28)","v":""},null,null,null,null,null,null,null,null,null,null,null,null,null,null,null,null,null,null,null,null,null,null,null,null,null,null,null,null,null,null,null,0,"",null,null,null,null,null,null,null,null,null,null,null,null,null,null,null,null,null,null,null,null,null,null,null,null,null,null,null,null,null,null,null,0,"",null,null,null,null,null,null,null,null,null,null,null,null,null,null,null,null,null,null,null,null,null,null,null,null,null,null,null,null,null,null,null,0,"",null,null,null,null,null,null,null,null,null,null,null,null,null,null,null,null,null,null,null,null,null,null,null,null,null,null,null,null,null,null,null,0,"",null,null,null,null,null,null,null,null,null,null,null,null,null,null,null,null,null,null,null,null,null,null,null,null,null,null,null,null,null,null,null,23,"",null,null,null,null,null,null,null,null,null,null,null,null,null,null,null,null,null,null,null,null,null,null,null,null,null,null,null,null,null,null,null,{"$f":"IF(รายชื่อนักเรียน!$F28=\"\",\"\",รายชื่อนักเรียน!$F28)","v":""}]
[{"$f":"รายชื่อนักเรียน!B29","v":0},{"$f":"IF(รายชื่อนักเรียน!E29=\"\",\"\",รายชื่อนักเรียน!E29)","v":""},null,null,null,null,null,null,null,null,null,null,null,null,null,null,null,null,null,null,null,null,null,null,null,null,null,null,null,null,null,null,null,0,"",null,null,null,null,null,null,null,null,null,null,null,null,null,null,null,null,null,null,null,null,null,null,null,null,null,null,null,null,null,null,null,0,"",null,null,null,null,null,null,null,null,null,null,null,null,null,null,null,null,null,null,null,null,null,null,null,null,null,null,null,null,null,null,null,0,"",null,null,null,null,null,null,null,null,null,null,null,null,null,null,null,null,null,null,null,null,null,null,null,null,null,null,null,null,null,null,null,0,"",null,null,null,null,null,null,null,null,null,null,null,null,null,null,null,null,null,null,null,null,null,null,null,null,null,null,null,null,null,null,null,24,"",null,null,null,null,null,null,null,null,null,null,null,null,null,null,null,null,null,null,null,null,null,null,null,null,null,null,null,null,null,null,null,{"$f":"IF(รายชื่อนักเรียน!$F29=\"\",\"\",รายชื่อนักเรียน!$F29)","v":""}]
[{"$f":"รายชื่อนักเรียน!B30","v":0},{"$f":"IF(รายชื่อนักเรียน!E30=\"\",\"\",รายชื่อนักเรียน!E30)","v":""},null,null,null,null,null,null,null,null,null,null,null,null,null,null,null,null,null,null,null,null,null,null,null,null,null,null,null,null,null,null,null,0,"",null,null,null,null,null,null,null,null,null,null,null,null,null,null,null,null,null,null,null,null,null,null,null,null,null,null,null,null,null,null,null,0,"",null,null,null,null,null,null,null,null,null,null,null,null,null,null,null,null,null,null,null,null,null,null,null,null,null,null,null,null,null,null,null,0,"",null,null,null,null,null,null,null,null,null,null,null,null,null,null,null,null,null,null,null,null,null,null,null,null,null,null,null,null,null,null,null,0,"",null,null,null,null,null,null,null,null,null,null,null,null,null,null,null,null,null,null,null,null,null,null,null,null,null,null,null,null,null,null,null,25,"",null,null,null,null,null,null,null,null,null,null,null,null,null,null,null,null,null,null,null,null,null,null,null,null,null,null,null,null,null,null,null,{"$f":"IF(รายชื่อนักเรียน!$F30=\"\",\"\",รายชื่อนักเรียน!$F30)","v":""}]
[{"$f":"รายชื่อนักเรียน!B31","v":0},{"$f":"IF(รายชื่อนักเรียน!E31=\"\",\"\",รายชื่อนักเรียน!E31)","v":""},null,null,null,null,null,null,null,null,null,null,null,null,null,null,null,null,null,null,null,null,null,null,null,null,null,null,null,null,null,null,null,0,"",null,null,null,null,null,null,null,null,null,null,null,null,null,null,null,null,null,null,null,null,null,null,null,null,null,null,null,null,null,null,null,0,"",null,null,null,null,null,null,null,null,null,null,null,null,null,null,null,null,null,null,null,null,null,null,null,null,null,null,null,null,null,null,null,0,"",null,null,null,null,null,null,null,null,null,null,null,null,null,null,null,null,null,null,null,null,null,null,null,null,null,null,null,null,null,null,null,0,"",null,null,null,null,null,null,null,null,null,null,null,null,null,null,null,null,null,null,null,null,null,null,null,null,null,null,null,null,null,null,null,26,"",null,null,null,null,null,null,null,null,null,null,null,null,null,null,null,null,null,null,null,null,null,null,null,null,null,null,null,null,null,null,null,{"$f":"IF(รายชื่อนักเรียน!$F31=\"\",\"\",รายชื่อนักเรียน!$F31)","v":""}]
[{"$f":"รายชื่อนักเรียน!B32","v":0},{"$f":"IF(รายชื่อนักเรียน!E32=\"\",\"\",รายชื่อนักเรียน!E32)","v":""},null,null,null,null,null,null,null,null,null,null,null,null,null,null,null,null,null,null,null,null,null,null,null,null,null,null,null,null,null,null,null,0,"",null,null,null,null,null,null,null,null,null,null,null,null,null,null,null,null,null,null,null,null,null,null,null,null,null,null,null,null,null,null,null,0,"",null,null,null,null,null,null,null,null,null,null,null,null,null,null,null,null,null,null,null,null,null,null,null,null,null,null,null,null,null,null,null,0,"",null,null,null,null,null,null,null,null,null,null,null,null,null,null,null,null,null,null,null,null,null,null,null,null,null,null,null,null,null,null,null,0,"",null,null,null,null,null,null,null,null,null,null,null,null,null,null,null,null,null,null,null,null,null,null,null,null,null,null,null,null,null,null,null,27,"",null,null,null,null,null,null,null,null,null,null,null,null,null,null,null,null,null,null,null,null,null,null,null,null,null,null,null,null,null,null,null,{"$f":"IF(รายชื่อนักเรียน!$F32=\"\",\"\",รายชื่อนักเรียน!$F32)","v":""}]
[{"$f":"รายชื่อนักเรียน!B33","v":0},{"$f":"IF(รายชื่อนักเรียน!E33=\"\",\"\",รายชื่อนักเรียน!E33)","v":""},null,null,null,null,null,null,null,null,null,null,null,null,null,null,null,null,null,null,null,null,null,null,null,null,null,null,null,null,null,null,null,0,"",null,null,null,null,null,null,null,null,null,null,null,null,null,null,null,null,null,null,null,null,null,null,null,null,null,null,null,null,null,null,null,0,"",null,null,null,null,null,null,null,null,null,null,null,null,null,null,null,null,null,null,null,null,null,null,null,null,null,null,null,null,null,null,null,0,"",null,null,null,null,null,null,null,null,null,null,null,null,null,null,null,null,null,null,null,null,null,null,null,null,null,null,null,null,null,null,null,0,"",null,null,null,null,null,null,null,null,null,null,null,null,null,null,null,null,null,null,null,null,null,null,null,null,null,null,null,null,null,null,null,28,"",null,null,null,null,null,null,null,null,null,null,null,null,null,null,null,null,null,null,null,null,null,null,null,null,null,null,null,null,null,null,null,{"$f":"IF(รายชื่อนักเรียน!$F33=\"\",\"\",รายชื่อนักเรียน!$F33)","v":""}]
[{"$f":"รายชื่อนักเรียน!B34","v":0},{"$f":"IF(รายชื่อนักเรียน!E34=\"\",\"\",รายชื่อนักเรียน!E34)","v":""},null,null,null,null,null,null,null,null,null,null,null,null,null,null,null,null,null,null,null,null,null,null,null,null,null,null,null,null,null,null,null,0,"",null,null,null,null,null,null,null,null,null,null,null,null,null,null,null,null,null,null,null,null,null,null,null,null,null,null,null,null,null,null,null,0,"",null,null,null,null,null,null,null,null,null,null,null,null,null,null,null,null,null,null,null,null,null,null,null,null,null,null,null,null,null,null,null,0,"",null,null,null,null,null,null,null,null,null,null,null,null,null,null,null,null,null,null,null,null,null,null,null,null,null,null,null,null,null,null,null,0,"",null,null,null,null,null,null,null,null,null,null,null,null,null,null,null,null,null,null,null,null,null,null,null,null,null,null,null,null,null,null,null,29,"",null,null,null,null,null,null,null,null,null,null,null,null,null,null,null,null,null,null,null,null,null,null,null,null,null,null,null,null,null,null,null,{"$f":"IF(รายชื่อนักเรียน!$F34=\"\",\"\",รายชื่อนักเรียน!$F34)","v":""}]
[{"$f":"รายชื่อนักเรียน!B35","v":0},{"$f":"IF(รายชื่อนักเรียน!E35=\"\",\"\",รายชื่อนักเรียน!E35)","v":""},null,null,null,null,null,null,null,null,null,null,null,null,null,null,null,null,null,null,null,null,null,null,null,null,null,null,null,null,null,null,null,0,"",null,null,null,null,null,null,null,null,null,null,null,null,null,null,null,null,null,null,null,null,null,null,null,null,null,null,null,null,null,null,null,0,"",null,null,null,null,null,null,null,null,null,null,null,null,null,null,null,null,null,null,null,null,null,null,null,null,null,null,null,null,null,null,null,0,"",null,null,null,null,null,null,null,null,null,null,null,null,null,null,null,null,null,null,null,null,null,null,null,null,null,null,null,null,null,null,null,0,"",null,null,null,null,null,null,null,null,null,null,null,null,null,null,null,null,null,null,null,null,null,null,null,null,null,null,null,null,null,null,null,30,"",null,null,null,null,null,null,null,null,null,null,null,null,null,null,null,null,null,null,null,null,null,null,null,null,null,null,null,null,null,null,null,{"$f":"IF(รายชื่อนักเรียน!$F35=\"\",\"\",รายชื่อนักเรียน!$F35)","v":""}]
[{"$f":"รายชื่อนักเรียน!B36","v":0},{"$f":"IF(รายชื่อนักเรียน!E36=\"\",\"\",รายชื่อนักเรียน!E36)","v":""},null,null,null,null,null,null,null,null,null,null,null,null,null,null,null,null,null,null,null,null,null,null,null,null,null,null,null,null,null,null,null,0,"",null,null,null,null,null,null,null,null,null,null,null,null,null,null,null,null,null,null,null,null,null,null,null,null,null,null,null,null,null,null,null,0,"",null,null,null,null,null,null,null,null,null,null,null,null,null,null,null,null,null,null,null,null,null,null,null,null,null,null,null,null,null,null,null,0,"",null,null,null,null,null,null,null,null,null,null,null,null,null,null,null,null,null,null,null,null,null,null,null,null,null,null,null,null,null,null,null,0,"",null,null,null,null,null,null,null,null,null,null,null,null,null,null,null,null,null,null,null,null,null,null,null,null,null,null,null,null,null,null,null,31,"",null,null,null,null,null,null,null,null,null,null,null,null,null,null,null,null,null,null,null,null,null,null,null,null,null,null,null,null,null,null,null,{"$f":"IF(รายชื่อนักเรียน!$F36=\"\",\"\",รายชื่อนักเรียน!$F36)","v":""}]
[{"$f":"รายชื่อนักเรียน!B37","v":0},{"$f":"IF(รายชื่อนักเรียน!E37=\"\",\"\",รายชื่อนักเรียน!E37)","v":""},null,null,null,null,null,null,null,null,null,null,null,null,null,null,null,null,null,null,null,null,null,null,null,null,null,null,null,null,null,null,null,0,"",null,null,null,null,null,null,null,null,null,null,null,null,null,null,null,null,null,null,null,null,null,null,null,null,null,null,null,null,null,null,null,0,"",null,null,null,null,null,null,null,null,null,null,null,null,null,null,null,null,null,null,null,null,null,null,null,null,null,null,null,null,null,null,null,0,"",null,null,null,null,null,null,null,null,null,null,null,null,null,null,null,null,null,null,null,null,null,null,null,null,null,null,null,null,null,null,null,0,"",null,null,null,null,null,null,null,null,null,null,null,null,null,null,null,null,null,null,null,null,null,null,null,null,null,null,null,null,null,null,null,32,"",null,null,null,null,null,null,null,null,null,null,null,null,null,null,null,null,null,null,null,null,null,null,null,null,null,null,null,null,null,null,null,{"$f":"IF(รายชื่อนักเรียน!$F37=\"\",\"\",รายชื่อนักเรียน!$F37)","v":""}]
[{"$f":"รายชื่อนักเรียน!B38","v":0},{"$f":"IF(รายชื่อนักเรียน!E38=\"\",\"\",รายชื่อนักเรียน!E38)","v":""},null,null,null,null,null,null,null,null,null,null,null,null,null,null,null,null,null,null,null,null,null,null,null,null,null,null,null,null,null,null,null,0,"",null,null,null,null,null,null,null,null,null,null,null,null,null,null,null,null,null,null,null,null,null,null,null,null,null,null,null,null,null,null,null,0,"",null,null,null,null,null,null,null,null,null,null,null,null,null,null,null,null,null,null,null,null,null,null,null,null,null,null,null,null,null,null,null,0,"",null,null,null,null,null,null,null,null,null,null,null,null,null,null,null,null,null,null,null,null,null,null,null,null,null,null,null,null,null,null,null,0,"",null,null,null,null,null,null,null,null,null,null,null,null,null,null,null,null,null,null,null,null,null,null,null,null,null,null,null,null,null,null,null,33,"",null,null,null,null,null,null,null,null,null,null,null,null,null,null,null,null,null,null,null,null,null,null,null,null,null,null,null,null,null,null,null,{"$f":"IF(รายชื่อนักเรียน!$F38=\"\",\"\",รายชื่อนักเรียน!$F38)","v":""}]
[{"$f":"รายชื่อนักเรียน!B39","v":0},{"$f":"IF(รายชื่อนักเรียน!E39=\"\",\"\",รายชื่อนักเรียน!E39)","v":""},null,null,null,null,null,null,null,null,null,null,null,null,null,null,null,null,null,null,null,null,null,null,null,null,null,null,null,null,null,null,null,0,"",null,null,null,null,null,null,null,null,null,null,null,null,null,null,null,null,null,null,null,null,null,null,null,null,null,null,null,null,null,null,null,0,"",null,null,null,null,null,null,null,null,null,null,null,null,null,null,null,null,null,null,null,null,null,null,null,null,null,null,null,null,null,null,null,0,"",null,null,null,null,null,null,null,null,null,null,null,null,null,null,null,null,null,null,null,null,null,null,null,null,null,null,null,null,null,null,null,0,"",null,null,null,null,null,null,null,null,null,null,null,null,null,null,null,null,null,null,null,null,null,null,null,null,null,null,null,null,null,null,null,34,"",null,null,null,null,null,null,null,null,null,null,null,null,null,null,null,null,null,null,null,null,null,null,null,null,null,null,null,null,null,null,null,{"$f":"IF(รายชื่อนักเรียน!$F39=\"\",\"\",รายชื่อนักเรียน!$F39)","v":""}]
[{"$f":"รายชื่อนักเรียน!B40","v":0},{"$f":"IF(รายชื่อนักเรียน!E40=\"\",\"\",รายชื่อนักเรียน!E40)","v":""},null,null,null,null,null,null,null,null,null,null,null,null,null,null,null,null,null,null,null,null,null,null,null,null,null,null,null,null,null,null,null,0,"",null,null,null,null,null,null,null,null,null,null,null,null,null,null,null,null,null,null,null,null,null,null,null,null,null,null,null,null,null,null,null,0,"",null,null,null,null,null,null,null,null,null,null,null,null,null,null,null,null,null,null,null,null,null,null,null,null,null,null,null,null,null,null,null,0,"",null,null,null,null,null,null,null,null,null,null,null,null,null,null,null,null,null,null,null,null,null,null,null,null,null,null,null,null,null,null,null,0,"",null,null,null,null,null,null,null,null,null,null,null,null,null,null,null,null,null,null,null,null,null,null,null,null,null,null,null,null,null,null,null,35,"",null,null,null,null,null,null,null,null,null,null,null,null,null,null,null,null,null,null,null,null,null,null,null,null,null,null,null,null,null,null,null,{"$f":"IF(รายชื่อนักเรียน!$F40=\"\",\"\",รายชื่อนักเรียน!$F40)","v":""}]
[{"$f":"รายชื่อนักเรียน!B41","v":0},{"$f":"IF(รายชื่อนักเรียน!E41=\"\",\"\",รายชื่อนักเรียน!E41)","v":""},null,null,null,null,null,null,null,null,null,null,null,null,null,null,null,null,null,null,null,null,null,null,null,null,null,null,null,null,null,null,null,0,"",null,null,null,null,null,null,null,null,null,null,null,null,null,null,null,null,null,null,null,null,null,null,null,null,null,null,null,null,null,null,null,0,"",null,null,null,null,null,null,null,null,null,null,null,null,null,null,null,null,null,null,null,null,null,null,null,null,null,null,null,null,null,null,null,0,"",null,null,null,null,null,null,null,null,null,null,null,null,null,null,null,null,null,null,null,null,null,null,null,null,null,null,null,null,null,null,null,0,"",null,null,null,null,null,null,null,null,null,null,null,null,null,null,null,null,null,null,null,null,null,null,null,null,null,null,null,null,null,null,null,36,"",null,null,null,null,null,null,null,null,null,null,null,null,null,null,null,null,null,null,null,null,null,null,null,null,null,null,null,null,null,null,null,{"$f":"IF(รายชื่อนักเรียน!$F41=\"\",\"\",รายชื่อนักเรียน!$F41)","v":""}]
[{"$f":"รายชื่อนักเรียน!B42","v":0},{"$f":"IF(รายชื่อนักเรียน!E42=\"\",\"\",รายชื่อนักเรียน!E42)","v":""},null,null,null,null,null,null,null,null,null,null,null,null,null,null,null,null,null,null,null,null,null,null,null,null,null,null,null,null,null,null,null,0,"",null,null,null,null,null,null,null,null,null,null,null,null,null,null,null,null,null,null,null,null,null,null,null,null,null,null,null,null,null,null,null,0,"",null,null,null,null,null,null,null,null,null,null,null,null,null,null,null,null,null,null,null,null,null,null,null,null,null,null,null,null,null,null,null,0,"",null,null,null,null,null,null,null,null,null,null,null,null,null,null,null,null,null,null,null,null,null,null,null,null,null,null,null,null,null,null,null,0,"",null,null,null,null,null,null,null,null,null,null,null,null,null,null,null,null,null,null,null,null,null,null,null,null,null,null,null,null,null,null,null,37,"",null,null,null,null,null,null,null,null,null,null,null,null,null,null,null,null,null,null,null,null,null,null,null,null,null,null,null,null,null,null,null,{"$f":"IF(รายชื่อนักเรียน!$F42=\"\",\"\",รายชื่อนักเรียน!$F42)","v":""}]
[{"$f":"รายชื่อนักเรียน!B43","v":0},{"$f":"IF(รายชื่อนักเรียน!E43=\"\",\"\",รายชื่อนักเรียน!E43)","v":""},null,null,null,null,null,null,null,null,null,null,null,null,null,null,null,null,null,null,null,null,null,null,null,null,null,null,null,null,null,null,null,0,"",null,null,null,null,null,null,null,null,null,null,null,null,null,null,null,null,null,null,null,null,null,null,null,null,null,null,null,null,null,null,null,0,"",null,null,null,null,null,null,null,null,null,null,null,null,null,null,null,null,null,null,null,null,null,null,null,null,null,null,null,null,null,null,null,0,"",null,null,null,null,null,null,null,null,null,null,null,null,null,null,null,null,null,null,null,null,null,null,null,null,null,null,null,null,null,null,null,0,"",null,null,null,null,null,null,null,null,null,null,null,null,null,null,null,null,null,null,null,null,null,null,null,null,null,null,null,null,null,null,null,38,"",null,null,null,null,null,null,null,null,null,null,null,null,null,null,null,null,null,null,null,null,null,null,null,null,null,null,null,null,null,null,null,{"$f":"IF(รายชื่อนักเรียน!$F43=\"\",\"\",รายชื่อนักเรียน!$F43)","v":""}]
[{"$f":"รายชื่อนักเรียน!B44","v":0},{"$f":"IF(รายชื่อนักเรียน!E44=\"\",\"\",รายชื่อนักเรียน!E44)","v":""},null,null,null,null,null,null,null,null,null,null,null,null,null,null,null,null,null,null,null,null,null,null,null,null,null,null,null,null,null,null,null,0,"",null,null,null,null,null,null,null,null,null,null,null,null,null,null,null,null,null,null,null,null,null,null,null,null,null,null,null,null,null,null,null,0,"",null,null,null,null,null,null,null,null,null,null,null,null,null,null,null,null,null,null,null,null,null,null,null,null,null,null,null,null,null,null,null,0,"",null,null,null,null,null,null,null,null,null,null,null,null,null,null,null,null,null,null,null,null,null,null,null,null,null,null,null,null,null,null,null,0,"",null,null,null,null,null,null,null,null,null,null,null,null,null,null,null,null,null,null,null,null,null,null,null,null,null,null,null,null,null,null,null,39,"",null,null,null,null,null,null,null,null,null,null,null,null,null,null,null,null,null,null,null,null,null,null,null,null,null,null,null,null,null,null,null,{"$f":"IF(รายชื่อนักเรียน!$F44=\"\",\"\",รายชื่อนักเรียน!$F44)","v":""}]
[{"$f":"รายชื่อนักเรียน!B45","v":0},{"$f":"IF(รายชื่อนักเรียน!E45=\"\",\"\",รายชื่อนักเรียน!E45)","v":""},null,null,null,null,null,null,null,null,null,null,null,null,null,null,null,null,null,null,null,null,null,null,null,null,null,null,null,null,null,null,null,0,"",null,null,null,null,null,null,null,null,null,null,null,null,null,null,null,null,null,null,null,null,null,null,null,null,null,null,null,null,null,null,null,0,"",null,null,null,null,null,null,null,null,null,null,null,null,null,null,null,null,null,null,null,null,null,null,null,null,null,null,null,null,null,null,null,0,"",null,null,null,null,null,null,null,null,null,null,null,null,null,null,null,null,null,null,null,null,null,null,null,null,null,null,null,null,null,null,null,0,"",null,null,null,null,null,null,null,null,null,null,null,null,null,null,null,null,null,null,null,null,null,null,null,null,null,null,null,null,null,null,null,40,{"$f":"ED46","v":""},null,null,null,null,null,null,null,null,null,null,null,null,null,null,null,null,null,null,null,null,null,null,null,null,null,null,null,null,null,null,null,{"$f":"IF(รายชื่อนักเรียน!$F45=\"\",\"\",รายชื่อนักเรียน!$F45)","v":""}]
[{"$f":"รายชื่อนักเรียน!B46","v":0},{"$f":"IF(รายชื่อนักเรียน!E46=\"\",\"\",รายชื่อนักเรียน!E46)","v":""},null,null,null,null,null,null,null,null,null,null,null,null,null,null,null,null,null,null,null,null,null,null,null,null,null,null,null,null,null,null,null,{"$f":"A47","v":0},{"$f":"B47","v":""},null,null,null,null,null,null,null,null,null,null,null,null,null,null,null,null,null,null,null,null,null,null,null,null,null,null,null,null,null,null,null,{"$f":"AH47","v":0},{"$f":"AI47","v":""},null,null,null,null,null,null,null,null,null,null,null,null,null,null,null,null,null,null,null,null,null,null,null,null,null,null,null,null,null,null,null,{"$f":"BO47","v":0},{"$f":"BP47","v":""},null,null,null,null,null,null,null,null,null,null,null,null,null,null,null,null,null,null,null,null,null,null,null,null,null,null,null,null,null,null,null,{"$f":"CV47","v":0},{"$f":"CW47","v":""},null,null,null,null,null,null,null,null,null,null,null,null,null,null,null,null,null,null,null,null,null,null,null,null,null,null,null,null,null,null,null,41,"",null,null,null,null,null,null,null,null,null,null,null,null,null,null,null,null,null,null,null,null,null,null,null,null,null,null,null,null,null,null,null,{"$f":"IF(รายชื่อนักเรียน!$F46=\"\",\"\",รายชื่อนักเรียน!$F46)","v":""}]
[{"$f":"รายชื่อนักเรียน!B47","v":0},{"$f":"IF(รายชื่อนักเรียน!E47=\"\",\"\",รายชื่อนักเรียน!E47)","v":""},null,null,null,null,null,null,null,null,null,null,null,null,null,null,null,null,null,null,null,null,null,null,null,null,null,null,null,null,null,null,null,0,"",null,null,null,null,null,null,null,null,null,null,null,null,null,null,null,null,null,null,null,null,null,null,null,null,null,null,null,null,null,null,null,0,"",null,null,null,null,null,null,null,null,null,null,null,null,null,null,null,null,null,null,null,null,null,null,null,null,null,null,null,null,null,null,null,0,"",null,null,null,null,null,null,null,null,null,null,null,null,null,null,null,null,null,null,null,null,null,null,null,null,null,null,null,null,null,null,null,0,"",null,null,null,null,null,null,null,null,null,null,null,null,null,null,null,null,null,null,null,null,null,null,null,null,null,null,null,null,null,null,null,42,"",null,null,null,null,null,null,null,null,null,null,null,null,null,null,null,null,null,null,null,null,null,null,null,null,null,null,null,null,null,null,null,{"$f":"IF(รายชื่อนักเรียน!$F47=\"\",\"\",รายชื่อนักเรียน!$F47)","v":""}]
[{"$f":"รายชื่อนักเรียน!B48","v":0},{"$f":"IF(รายชื่อนักเรียน!E48=\"\",\"\",รายชื่อนักเรียน!E48)","v":""},null,null,null,null,null,null,null,null,null,null,null,null,null,null,null,null,null,null,null,null,null,null,null,null,null,null,null,null,null,null,null,0,"",null,null,null,null,null,null,null,null,null,null,null,null,null,null,null,null,null,null,null,null,null,null,null,null,null,null,null,null,null,null,null,0,"",null,null,null,null,null,null,null,null,null,null,null,null,null,null,null,null,null,null,null,null,null,null,null,null,null,null,null,null,null,null,null,0,"",null,null,null,null,null,null,null,null,null,null,null,null,null,null,null,null,null,null,null,null,null,null,null,null,null,null,null,null,null,null,null,0,"",null,null,null,null,null,null,null,null,null,null,null,null,null,null,null,null,null,null,null,null,null,null,null,null,null,null,null,null,null,null,null,43,"",null,null,null,null,null,null,null,null,null,null,null,null,null,null,null,null,null,null,null,null,null,null,null,null,null,null,null,null,null,null,null,{"$f":"IF(รายชื่อนักเรียน!$F48=\"\",\"\",รายชื่อนักเรียน!$F48)","v":""}]
[{"$f":"รายชื่อนักเรียน!B49","v":0},{"$f":"IF(รายชื่อนักเรียน!E49=\"\",\"\",รายชื่อนักเรียน!E49)","v":""},null,null,null,null,null,null,null,null,null,null,null,null,null,null,null,null,null,null,null,null,null,null,null,null,null,null,null,null,null,null,null,0,"",null,null,null,null,null,null,null,null,null,null,null,null,null,null,null,null,null,null,null,null,null,null,null,null,null,null,null,null,null,null,null,0,"",null,null,null,null,null,null,null,null,null,null,null,null,null,null,null,null,null,null,null,null,null,null,null,null,null,null,null,null,null,null,null,0,"",null,null,null,null,null,null,null,null,null,null,null,null,null,null,null,null,null,null,null,null,null,null,null,null,null,null,null,null,null,null,null,0,"",null,null,null,null,null,null,null,null,null,null,null,null,null,null,null,null,null,null,null,null,null,null,null,null,null,null,null,null,null,null,null,44,"",null,null,null,null,null,null,null,null,null,null,null,null,null,null,null,null,null,null,null,null,null,null,null,null,null,null,null,null,null,null,null,{"$f":"IF(รายชื่อนักเรียน!$F49=\"\",\"\",รายชื่อนักเรียน!$F49)","v":""}]
[{"$f":"รายชื่อนักเรียน!B50","v":0},{"$f":"IF(รายชื่อนักเรียน!E50=\"\",\"\",รายชื่อนักเรียน!E50)","v":""},null,null,null,null,null,null,null,null,null,null,null,null,null,null,null,null,null,null,null,null,null,null,null,null,null,null,null,null,null,null,null,0,"",null,null,null,null,null,null,null,null,null,null,null,null,null,null,null,null,null,null,null,null,null,null,null,null,null,null,null,null,null,null,null,0,"",null,null,null,null,null,null,null,null,null,null,null,null,null,null,null,null,null,null,null,null,null,null,null,null,null,null,null,null,null,null,null,0,"",null,null,null,null,null,null,null,null,null,null,null,null,null,null,null,null,null,null,null,null,null,null,null,null,null,null,null,null,null,null,null,0,"",null,null,null,null,null,null,null,null,null,null,null,null,null,null,null,null,null,null,null,null,null,null,null,null,null,null,null,null,null,null,null,45,"",null,null,null,null,null,null,null,null,null,null,null,null,null,null,null,null,null,null,null,null,null,null,null,null,null,null,null,null,null,null,null,{"$f":"IF(รายชื่อนักเรียน!$F50=\"\",\"\",รายชื่อนักเรียน!$F50)","v":""}]
[null,"วันหยุด",null,null,null,null,null,null,null,null,null,null,null,null,null,null,null,null,null,null,null,null,null,null,null,null,null,null,null,null,null,null,null,null,"วันหยุด",null,null,null,null,null,null,null,null,null,null,null,null,null,null,null,null,null,null,null,null,null,null,null,null,null,null,null,null,null,null,null,null,"วันหยุด",null,null,null,null,null,null,null,null,null,null,null,null,null,null,null,null,null,null,null,null,null,null,null,null,null,null,null,null,null,null,null,null,"วันหยุด",null,null,null,null,null,null,null,null,null,null,null,null,null,null,null,null,null,null,null,null,null,null,null,null,null,null,null,null,null,null,null,null,"วันหยุด",null,null,null,null,null,null,null,null,null,null,null,null,null,null,null,null,null,null,null,null,null,null,null,null,null,null,null,null,null,null,null,null,"วันหยุด"]
[]
[null,null,"หมายเหตุ :","ลาป่วย = ป   ,  ลากิจ = ล   ,  ขาดเรียน  =  ข   ,   มาเรียน  =   /",null,null,null,null,null,null,null,null,null,null,null,null,null,null,null,null,null,null,null,null,null,null,null,null,null,null,null,null,null,null,null,"หมายเหตุ :","ลาป่วย = ป   ,  ลากิจ = ล   ,  ขาดเรียน  =  ข   ,   มาเรียน  =   /",null,null,null,null,null,null,null,null,null,null,null,null,null,null,null,null,null,null,null,null,null,null,null,null,null,null,null,null,null,null,null,"หมายเหตุ :","ลาป่วย = ป   ,  ลากิจ = ล   ,  ขาดเรียน  =  ข   ,   มาเรียน  =   /",null,null,null,null,null,null,null,null,null,null,null,null,null,null,null,null,null,null,null,null,null,null,null,null,null,null,null,null,null,null,null,"หมายเหตุ :","ลาป่วย = ป   ,  ลากิจ = ล   ,  ขาดเรียน  =  ข   ,   มาเรียน  =   /",null,null,null,null,null,null,null,null,null,null,null,null,null,null,null,null,null,null,null,null,null,null,null,null,null,null,null,null,null,null,null,"หมายเหตุ :","ลาป่วย = ป   ,  ลากิจ = ล   ,  ขาดเรียน  =  ข   ,   มาเรียน  =   /",null,null,null,null,null,null,null,null,null,null,null,null,null,null,null,null,null,null,null,null,null,null,null,null,null,null,null,null,null,null,null,"หมายเหตุ :","ลาป่วย = ป   ,  ลากิจ = ล   ,  ขาดเรียน  =  ข   ,   มาเรียน  =   /"]

{"sheet":"สรุปเวลาการเข้าร่วมกิจกรรม","index":6,"n_rows":51,"n_cols":26,"rows_kept":51,"cut":false,"hidden":false,"merged":[[46,1,46,2],[47,1,47,2],[48,1,48,2],[49,1,49,2],[50,1,50,2],[30,1,30,2],[42,1,42,2],[43,1,43,2],[44,1,44,2],[45,1,45,2],[36,1,36,2],[37,1,37,2],[38,1,38,2],[39,1,39,2],[40,1,40,2],[41,1,41,2],[31,1,31,2],[32,1,32,2],[33,1,33,2],[34,1,34,2],[35,1,35,2],[29,1,29,2],[18,1,18,2],[19,1,19,2],[20,1,20,2],[21,1,21,2],[22,1,22,2],[23,1,23,2],[24,1,24,2],[25,1,25,2],[26,1,26,2],[27,1,27,2],[28,1,28,2],[17,1,17,2],[6,1,6,2],[7,1,7,2],[8,1,8,2],[9,1,9,2],[10,1,10,2],[11,1,11,2],[12,1,12,2],[13,1,13,2],[14,1,14,2],[15,1,15,2],[16,1,16,2],[3,12,5,12],[3,13,5,13],[3,14,5,14],[3,15,5,15],[3,16,5,16],[3,7,5,7],[3,8,5,8],[3,9,5,9],[3,10,5,10],[3,11,5,11],[0,0,0,19],[1,0,5,0],[1,1,5,2],[1,3,1,7],[1,8,1,12],[1,13,1,17],[1,18,5,18],[1,19,5,19],[2,3,2,5],[2,8,2,10],[3,17,5,17],[2,13,2,15],[3,3,5,3],[3,4,5,4],[3,5,5,5],[3,6,5,6]]}
[{"$f":"\"แบบสรุปเวลาการเข้าร่วม กิจกรรม\"&ตั้งค่า!C20&\"  ชั้น\"&ตั้งค่า!C17","v":"แบบสรุปเวลาการเข้าร่วม กิจกรรม  ชั้น"}]
["ที่","ชื่อ-สกุล",null,"ภาคเรียนที่ 1",null,null,null,null,"ภาคเรียนที่ 2",null,null,null,null,"รวม 1 ปีการศึกษา",null,null,null,null,"ผลการประเมิน","หมายเหตุ"]
[null,null,null,"เวลาเรียน",null,null,0,"ชม.","เวลาเรียน",null,null,0,"ชม.","เวลาเรียน",null,null,{"$f":"G3+L3","v":0},"ชม."]
[null,null,null,"ป่วย","ลา","ขาด","มาเรียน","ร้อยละ","ป่วย","ลา","ขาด","มาเรียน","ร้อยละ","ป่วย","ลา","ขาด","มาเรียน","ร้อยละ"]
[]
[]
[{"$f":"รายชื่อนักเรียน!B6","v":0},{"$f":"IF(รายชื่อนักเรียน!E6=\"\",\"\",รายชื่อนักเรียน!E6)","v":""},null,null,null,null,null,{"$f":"IF(B7=\"\",\"\",(G7/$G$3)*100)","v":""},null,null,null,null,{"$f":"IF(B7=\"\",\"\",(L7/$L$3)*100)","v":""},{"$f":"IF(B7=\"\",\"\",(D7+I7))","v":""},{"$f":"IF(B7=\"\",\"\",E7+J7)","v":""},{"$f":"IF(B7=\"\",\"\",F7+K7)","v":""},{"$f":"IF(B7=\"\",\"\",G7+L7)","v":""},{"$f":"IF(B7=\"\",\"\",(Q7/$Q$3)*100)","v":""},{"$f":"IF(OR(รายชื่อนักเรียน!F6=\"ย้าย\",R7=\"\"),\"\",IF(Q7=\"\",\"\",IF(R7>=80,\"ผ่าน\",\"ไม่ผ่าน\")))","v":""},{"$f":"IF(รายชื่อนักเรียน!$F6=\"\",\"\",รายชื่อนักเรียน!$F6)","v":""},null,null,null,null,"ย้าย","ไม่ผ่าน"]
[{"$f":"รายชื่อนักเรียน!B7","v":0},{"$f":"IF(รายชื่อนักเรียน!E7=\"\",\"\",รายชื่อนักเรียน!E7)","v":""},null,null,null,null,null,{"$f":"IF(B8=\"\",\"\",(G8/$G$3)*100)","v":""},null,null,null,null,{"$f":"IF(B8=\"\",\"\",(L8/$L$3)*100)","v":""},{"$f":"IF(B8=\"\",\"\",(D8+I8))","v":""},{"$f":"IF(B8=\"\",\"\",E8+J8)","v":""},{"$f":"IF(B8=\"\",\"\",F8+K8)","v":""},{"$f":"IF(B8=\"\",\"\",G8+L8)","v":""},{"$f":"IF(B8=\"\",\"\",(Q8/$Q$3)*100)","v":""},{"$f":"IF(OR(รายชื่อนักเรียน!F7=\"ย้าย\",R8=\"\"),\"\",IF(Q8=\"\",\"\",IF(R8>=80,\"ผ่าน\",\"ไม่ผ่าน\")))","v":""},{"$f":"IF(รายชื่อนักเรียน!$F7=\"\",\"\",รายชื่อนักเรียน!$F7)","v":""}]
[{"$f":"รายชื่อนักเรียน!B8","v":0},{"$f":"IF(รายชื่อนักเรียน!E8=\"\",\"\",รายชื่อนักเรียน!E8)","v":""},null,null,null,null,null,"",null,null,null,null,"","","","","","",{"$f":"IF(OR(รายชื่อนักเรียน!F8=\"ย้าย\",R9=\"\"),\"\",IF(Q9=\"\",\"\",IF(R9>=80,\"ผ่าน\",\"ไม่ผ่าน\")))","v":""},{"$f":"IF(รายชื่อนักเรียน!$F8=\"\",\"\",รายชื่อนักเรียน!$F8)","v":""}]
[{"$f":"รายชื่อนักเรียน!B9","v":0},{"$f":"IF(รายชื่อนักเรียน!E9=\"\",\"\",รายชื่อนักเรียน!E9)","v":""},null,null,null,null,null,"",null,null,null,null,"","","","","","",{"$f":"IF(OR(รายชื่อนักเรียน!F9=\"ย้าย\",R10=\"\"),\"\",IF(Q10=\"\",\"\",IF(R10>=80,\"ผ่าน\",\"ไม่ผ่าน\")))","v":""},{"$f":"IF(รายชื่อนักเรียน!$F9=\"\",\"\",รายชื่อนักเรียน!$F9)","v":""}]
[{"$f":"รายชื่อนักเรียน!B10","v":0},{"$f":"IF(รายชื่อนักเรียน!E10=\"\",\"\",รายชื่อนักเรียน!E10)","v":""},null,null,null,null,null,"",null,null,null,null,"","","","","","",{"$f":"IF(OR(รายชื่อนักเรียน!F10=\"ย้าย\",R11=\"\"),\"\",IF(Q11=\"\",\"\",IF(R11>=80,\"ผ่าน\",\"ไม่ผ่าน\")))","v":""},{"$f":"IF(รายชื่อนักเรียน!$F10=\"\",\"\",รายชื่อนักเรียน!$F10)","v":""}]
[{"$f":"รายชื่อนักเรียน!B11","v":0},{"$f":"IF(รายชื่อนักเรียน!E11=\"\",\"\",รายชื่อนักเรียน!E11)","v":""},null,null,null,null,null,"",null,null,null,null,"","","","","","",{"$f":"IF(OR(รายชื่อนักเรียน!F11=\"ย้าย\",R12=\"\"),\"\",IF(Q12=\"\",\"\",IF(R12>=80,\"ผ่าน\",\"ไม่ผ่าน\")))","v":""},{"$f":"IF(รายชื่อนักเรียน!$F11=\"\",\"\",รายชื่อนักเรียน!$F11)","v":""}]
[{"$f":"รายชื่อนักเรียน!B12","v":0},{"$f":"IF(รายชื่อนักเรียน!E12=\"\",\"\",รายชื่อนักเรียน!E12)","v":""},null,null,null,null,null,"",null,null,null,null,"","","","","","",{"$f":"IF(OR(รายชื่อนักเรียน!F12=\"ย้าย\",R13=\"\"),\"\",IF(Q13=\"\",\"\",IF(R13>=80,\"ผ่าน\",\"ไม่ผ่าน\")))","v":""},{"$f":"IF(รายชื่อนักเรียน!$F12=\"\",\"\",รายชื่อนักเรียน!$F12)","v":""}]
[{"$f":"รายชื่อนักเรียน!B13","v":0},{"$f":"IF(รายชื่อนักเรียน!E13=\"\",\"\",รายชื่อนักเรียน!E13)","v":""},null,null,null,null,null,"",null,null,null,null,"","","","","","",{"$f":"IF(OR(รายชื่อนักเรียน!F13=\"ย้าย\",R14=\"\"),\"\",IF(Q14=\"\",\"\",IF(R14>=80,\"ผ่าน\",\"ไม่ผ่าน\")))","v":""},{"$f":"IF(รายชื่อนักเรียน!$F13=\"\",\"\",รายชื่อนักเรียน!$F13)","v":""}]
[{"$f":"รายชื่อนักเรียน!B14","v":0},{"$f":"IF(รายชื่อนักเรียน!E14=\"\",\"\",รายชื่อนักเรียน!E14)","v":""},null,null,null,null,null,"",null,null,null,null,"","","","","","",{"$f":"IF(OR(รายชื่อนักเรียน!F14=\"ย้าย\",R15=\"\"),\"\",IF(Q15=\"\",\"\",IF(R15>=80,\"ผ่าน\",\"ไม่ผ่าน\")))","v":""},{"$f":"IF(รายชื่อนักเรียน!$F14=\"\",\"\",รายชื่อนักเรียน!$F14)","v":""}]
[{"$f":"รายชื่อนักเรียน!B15","v":0},{"$f":"IF(รายชื่อนักเรียน!E15=\"\",\"\",รายชื่อนักเรียน!E15)","v":""},null,null,null,null,null,"",null,null,null,null,"","","","","","",{"$f":"IF(OR(รายชื่อนักเรียน!F15=\"ย้าย\",R16=\"\"),\"\",IF(Q16=\"\",\"\",IF(R16>=80,\"ผ่าน\",\"ไม่ผ่าน\")))","v":""},{"$f":"IF(รายชื่อนักเรียน!$F15=\"\",\"\",รายชื่อนักเรียน!$F15)","v":""}]
[{"$f":"รายชื่อนักเรียน!B16","v":0},{"$f":"IF(รายชื่อนักเรียน!E16=\"\",\"\",รายชื่อนักเรียน!E16)","v":""},null,null,null,null,null,"",null,null,null,null,"","","","","","",{"$f":"IF(OR(รายชื่อนักเรียน!F16=\"ย้าย\",R17=\"\"),\"\",IF(Q17=\"\",\"\",IF(R17>=80,\"ผ่าน\",\"ไม่ผ่าน\")))","v":""},{"$f":"IF(รายชื่อนักเรียน!$F16=\"\",\"\",รายชื่อนักเรียน!$F16)","v":""}]
[{"$f":"รายชื่อนักเรียน!B17","v":0},{"$f":"IF(รายชื่อนักเรียน!E17=\"\",\"\",รายชื่อนักเรียน!E17)","v":""},null,null,null,null,null,"",null,null,null,null,"","","","","","",{"$f":"IF(OR(รายชื่อนักเรียน!F17=\"ย้าย\",R18=\"\"),\"\",IF(Q18=\"\",\"\",IF(R18>=80,\"ผ่าน\",\"ไม่ผ่าน\")))","v":""},{"$f":"IF(รายชื่อนักเรียน!$F17=\"\",\"\",รายชื่อนักเรียน!$F17)","v":""}]
[{"$f":"รายชื่อนักเรียน!B18","v":0},{"$f":"IF(รายชื่อนักเรียน!E18=\"\",\"\",รายชื่อนักเรียน!E18)","v":""},null,null,null,null,null,"",null,null,null,null,"","","","","","",{"$f":"IF(OR(รายชื่อนักเรียน!F18=\"ย้าย\",R19=\"\"),\"\",IF(Q19=\"\",\"\",IF(R19>=80,\"ผ่าน\",\"ไม่ผ่าน\")))","v":""},{"$f":"IF(รายชื่อนักเรียน!$F18=\"\",\"\",รายชื่อนักเรียน!$F18)","v":""}]
[{"$f":"รายชื่อนักเรียน!B19","v":0},{"$f":"IF(รายชื่อนักเรียน!E19=\"\",\"\",รายชื่อนักเรียน!E19)","v":""},null,null,null,null,null,"",null,null,null,null,"","","","","","",{"$f":"IF(OR(รายชื่อนักเรียน!F19=\"ย้าย\",R20=\"\"),\"\",IF(Q20=\"\",\"\",IF(R20>=80,\"ผ่าน\",\"ไม่ผ่าน\")))","v":""},{"$f":"IF(รายชื่อนักเรียน!$F19=\"\",\"\",รายชื่อนักเรียน!$F19)","v":""}]
[{"$f":"รายชื่อนักเรียน!B20","v":0},{"$f":"IF(รายชื่อนักเรียน!E20=\"\",\"\",รายชื่อนักเรียน!E20)","v":""},null,null,null,null,null,"",null,null,null,null,"","","","","","",{"$f":"IF(OR(รายชื่อนักเรียน!F20=\"ย้าย\",R21=\"\"),\"\",IF(Q21=\"\",\"\",IF(R21>=80,\"ผ่าน\",\"ไม่ผ่าน\")))","v":""},{"$f":"IF(รายชื่อนักเรียน!$F20=\"\",\"\",รายชื่อนักเรียน!$F20)","v":""}]
[{"$f":"รายชื่อนักเรียน!B21","v":0},{"$f":"IF(รายชื่อนักเรียน!E21=\"\",\"\",รายชื่อนักเรียน!E21)","v":""},null,null,null,null,null,"",null,null,null,null,"","","","","","",{"$f":"IF(OR(รายชื่อนักเรียน!F21=\"ย้าย\",R22=\"\"),\"\",IF(Q22=\"\",\"\",IF(R22>=80,\"ผ่าน\",\"ไม่ผ่าน\")))","v":""},{"$f":"IF(รายชื่อนักเรียน!$F21=\"\",\"\",รายชื่อนักเรียน!$F21)","v":""}]
[{"$f":"รายชื่อนักเรียน!B22","v":0},{"$f":"IF(รายชื่อนักเรียน!E22=\"\",\"\",รายชื่อนักเรียน!E22)","v":""},null,null,null,null,null,"",null,null,null,null,"","","","","","",{"$f":"IF(OR(รายชื่อนักเรียน!F22=\"ย้าย\",R23=\"\"),\"\",IF(Q23=\"\",\"\",IF(R23>=80,\"ผ่าน\",\"ไม่ผ่าน\")))","v":""},{"$f":"IF(รายชื่อนักเรียน!$F22=\"\",\"\",รายชื่อนักเรียน!$F22)","v":""}]
[{"$f":"รายชื่อนักเรียน!B23","v":0},{"$f":"IF(รายชื่อนักเรียน!E23=\"\",\"\",รายชื่อนักเรียน!E23)","v":""},null,null,null,null,null,"",null,null,null,null,"","","","","","",{"$f":"IF(OR(รายชื่อนักเรียน!F23=\"ย้าย\",R24=\"\"),\"\",IF(Q24=\"\",\"\",IF(R24>=80,\"ผ่าน\",\"ไม่ผ่าน\")))","v":""},{"$f":"IF(รายชื่อนักเรียน!$F23=\"\",\"\",รายชื่อนักเรียน!$F23)","v":""}]
[{"$f":"รายชื่อนักเรียน!B24","v":0},{"$f":"IF(รายชื่อนักเรียน!E24=\"\",\"\",รายชื่อนักเรียน!E24)","v":""},null,null,null,null,null,"",null,null,null,null,"","","","","","",{"$f":"IF(OR(รายชื่อนักเรียน!F24=\"ย้าย\",R25=\"\"),\"\",IF(Q25=\"\",\"\",IF(R25>=80,\"ผ่าน\",\"ไม่ผ่าน\")))","v":""},{"$f":"IF(รายชื่อนักเรียน!$F24=\"\",\"\",รายชื่อนักเรียน!$F24)","v":""}]
[{"$f":"รายชื่อนักเรียน!B25","v":0},{"$f":"IF(รายชื่อนักเรียน!E25=\"\",\"\",รายชื่อนักเรียน!E25)","v":""},null,null,null,null,null,"",null,null,null,null,"","","","","","",{"$f":"IF(OR(รายชื่อนักเรียน!F25=\"ย้าย\",R26=\"\"),\"\",IF(Q26=\"\",\"\",IF(R26>=80,\"ผ่าน\",\"ไม่ผ่าน\")))","v":""},{"$f":"IF(รายชื่อนักเรียน!$F25=\"\",\"\",รายชื่อนักเรียน!$F25)","v":""}]
[{"$f":"รายชื่อนักเรียน!B26","v":0},{"$f":"IF(รายชื่อนักเรียน!E26=\"\",\"\",รายชื่อนักเรียน!E26)","v":""},null,null,null,null,null,"",null,null,null,null,"","","","","","",{"$f":"IF(OR(รายชื่อนักเรียน!F26=\"ย้าย\",R27=\"\"),\"\",IF(Q27=\"\",\"\",IF(R27>=80,\"ผ่าน\",\"ไม่ผ่าน\")))","v":""},{"$f":"IF(รายชื่อนักเรียน!$F26=\"\",\"\",รายชื่อนักเรียน!$F26)","v":""}]
[{"$f":"รายชื่อนักเรียน!B27","v":0},{"$f":"IF(รายชื่อนักเรียน!E27=\"\",\"\",รายชื่อนักเรียน!E27)","v":""},null,null,null,null,null,"",null,null,null,null,"","","","","","",{"$f":"IF(OR(รายชื่อนักเรียน!F27=\"ย้าย\",R28=\"\"),\"\",IF(Q28=\"\",\"\",IF(R28>=80,\"ผ่าน\",\"ไม่ผ่าน\")))","v":""},{"$f":"IF(รายชื่อนักเรียน!$F27=\"\",\"\",รายชื่อนักเรียน!$F27)","v":""}]
[{"$f":"รายชื่อนักเรียน!B28","v":0},{"$f":"IF(รายชื่อนักเรียน!E28=\"\",\"\",รายชื่อนักเรียน!E28)","v":""},null,null,null,null,null,"",null,null,null,null,"","","","","","",{"$f":"IF(OR(รายชื่อนักเรียน!F28=\"ย้าย\",R29=\"\"),\"\",IF(Q29=\"\",\"\",IF(R29>=80,\"ผ่าน\",\"ไม่ผ่าน\")))","v":""},{"$f":"IF(รายชื่อนักเรียน!$F28=\"\",\"\",รายชื่อนักเรียน!$F28)","v":""}]
[{"$f":"รายชื่อนักเรียน!B29","v":0},{"$f":"IF(รายชื่อนักเรียน!E29=\"\",\"\",รายชื่อนักเรียน!E29)","v":""},null,null,null,null,null,"",null,null,null,null,"","","","","","",{"$f":"IF(OR(รายชื่อนักเรียน!F29=\"ย้าย\",R30=\"\"),\"\",IF(Q30=\"\",\"\",IF(R30>=80,\"ผ่าน\",\"ไม่ผ่าน\")))","v":""},{"$f":"IF(รายชื่อนักเรียน!$F29=\"\",\"\",รายชื่อนักเรียน!$F29)","v":""}]
[{"$f":"รายชื่อนักเรียน!B30","v":0},{"$f":"IF(รายชื่อนักเรียน!E30=\"\",\"\",รายชื่อนักเรียน!E30)","v":""},null,null,null,null,null,"",null,null,null,null,"","","","","","",{"$f":"IF(OR(รายชื่อนักเรียน!F30=\"ย้าย\",R31=\"\"),\"\",IF(Q31=\"\",\"\",IF(R31>=80,\"ผ่าน\",\"ไม่ผ่าน\")))","v":""},{"$f":"IF(รายชื่อนักเรียน!$F30=\"\",\"\",รายชื่อนักเรียน!$F30)","v":""}]
[{"$f":"รายชื่อนักเรียน!B31","v":0},{"$f":"IF(รายชื่อนักเรียน!E31=\"\",\"\",รายชื่อนักเรียน!E31)","v":""},null,null,null,null,null,"",null,null,null,null,"","","","","","",{"$f":"IF(OR(รายชื่อนักเรียน!F31=\"ย้าย\",R32=\"\"),\"\",IF(Q32=\"\",\"\",IF(R32>=80,\"ผ่าน\",\"ไม่ผ่าน\")))","v":""},{"$f":"IF(รายชื่อนักเรียน!$F31=\"\",\"\",รายชื่อนักเรียน!$F31)","v":""}]
[{"$f":"รายชื่อนักเรียน!B32","v":0},{"$f":"IF(รายชื่อนักเรียน!E32=\"\",\"\",รายชื่อนักเรียน!E32)","v":""},null,null,null,null,null,"",null,null,null,null,"","","","","","",{"$f":"IF(OR(รายชื่อนักเรียน!F32=\"ย้าย\",R33=\"\"),\"\",IF(Q33=\"\",\"\",IF(R33>=80,\"ผ่าน\",\"ไม่ผ่าน\")))","v":""},{"$f":"IF(รายชื่อนักเรียน!$F32=\"\",\"\",รายชื่อนักเรียน!$F32)","v":""}]
[{"$f":"รายชื่อนักเรียน!B33","v":0},{"$f":"IF(รายชื่อนักเรียน!E33=\"\",\"\",รายชื่อนักเรียน!E33)","v":""},null,null,null,null,null,"",null,null,null,null,"","","","","","",{"$f":"IF(OR(รายชื่อนักเรียน!F33=\"ย้าย\",R34=\"\"),\"\",IF(Q34=\"\",\"\",IF(R34>=80,\"ผ่าน\",\"ไม่ผ่าน\")))","v":""},{"$f":"IF(รายชื่อนักเรียน!$F33=\"\",\"\",รายชื่อนักเรียน!$F33)","v":""}]
[{"$f":"รายชื่อนักเรียน!B34","v":0},{"$f":"IF(รายชื่อนักเรียน!E34=\"\",\"\",รายชื่อนักเรียน!E34)","v":""},null,null,null,null,null,"",null,null,null,null,"","","","","","",{"$f":"IF(OR(รายชื่อนักเรียน!F34=\"ย้าย\",R35=\"\"),\"\",IF(Q35=\"\",\"\",IF(R35>=80,\"ผ่าน\",\"ไม่ผ่าน\")))","v":""},{"$f":"IF(รายชื่อนักเรียน!$F34=\"\",\"\",รายชื่อนักเรียน!$F34)","v":""}]
[{"$f":"รายชื่อนักเรียน!B35","v":0},{"$f":"IF(รายชื่อนักเรียน!E35=\"\",\"\",รายชื่อนักเรียน!E35)","v":""},null,null,null,null,null,"",null,null,null,null,"","","","","","",{"$f":"IF(OR(รายชื่อนักเรียน!F35=\"ย้าย\",R36=\"\"),\"\",IF(Q36=\"\",\"\",IF(R36>=80,\"ผ่าน\",\"ไม่ผ่าน\")))","v":""},{"$f":"IF(รายชื่อนักเรียน!$F35=\"\",\"\",รายชื่อนักเรียน!$F35)","v":""}]
[{"$f":"รายชื่อนักเรียน!B36","v":0},{"$f":"IF(รายชื่อนักเรียน!E36=\"\",\"\",รายชื่อนักเรียน!E36)","v":""},null,null,null,null,null,"",null,null,null,null,"","","","","","",{"$f":"IF(OR(รายชื่อนักเรียน!F36=\"ย้าย\",R37=\"\"),\"\",IF(Q37=\"\",\"\",IF(R37>=80,\"ผ่าน\",\"ไม่ผ่าน\")))","v":""},{"$f":"IF(รายชื่อนักเรียน!$F36=\"\",\"\",รายชื่อนักเรียน!$F36)","v":""}]
[{"$f":"รายชื่อนักเรียน!B37","v":0},{"$f":"IF(รายชื่อนักเรียน!E37=\"\",\"\",รายชื่อนักเรียน!E37)","v":""},null,null,null,null,null,"",null,null,null,null,"","","","","","",{"$f":"IF(OR(รายชื่อนักเรียน!F37=\"ย้าย\",R38=\"\"),\"\",IF(Q38=\"\",\"\",IF(R38>=80,\"ผ่าน\",\"ไม่ผ่าน\")))","v":""},{"$f":"IF(รายชื่อนักเรียน!$F37=\"\",\"\",รายชื่อนักเรียน!$F37)","v":""}]
[{"$f":"รายชื่อนักเรียน!B38","v":0},{"$f":"IF(รายชื่อนักเรียน!E38=\"\",\"\",รายชื่อนักเรียน!E38)","v":""},null,null,null,null,null,"",null,null,null,null,"","","","","","",{"$f":"IF(OR(รายชื่อนักเรียน!F38=\"ย้าย\",R39=\"\"),\"\",IF(Q39=\"\",\"\",IF(R39>=80,\"ผ่าน\",\"ไม่ผ่าน\")))","v":""},{"$f":"IF(รายชื่อนักเรียน!$F38=\"\",\"\",รายชื่อนักเรียน!$F38)","v":""}]
[{"$f":"รายชื่อนักเรียน!B39","v":0},{"$f":"IF(รายชื่อนักเรียน!E39=\"\",\"\",รายชื่อนักเรียน!E39)","v":""},null,null,null,null,null,"",null,null,null,null,"","","","","","",{"$f":"IF(OR(รายชื่อนักเรียน!F39=\"ย้าย\",R40=\"\"),\"\",IF(Q40=\"\",\"\",IF(R40>=80,\"ผ่าน\",\"ไม่ผ่าน\")))","v":""},{"$f":"IF(รายชื่อนักเรียน!$F39=\"\",\"\",รายชื่อนักเรียน!$F39)","v":""}]
[{"$f":"รายชื่อนักเรียน!B40","v":0},{"$f":"IF(รายชื่อนักเรียน!E40=\"\",\"\",รายชื่อนักเรียน!E40)","v":""},null,null,null,null,null,"",null,null,null,null,"","","","","","",{"$f":"IF(OR(รายชื่อนักเรียน!F40=\"ย้าย\",R41=\"\"),\"\",IF(Q41=\"\",\"\",IF(R41>=80,\"ผ่าน\",\"ไม่ผ่าน\")))","v":""},{"$f":"IF(รายชื่อนักเรียน!$F40=\"\",\"\",รายชื่อนักเรียน!$F40)","v":""}]
[{"$f":"รายชื่อนักเรียน!B41","v":0},{"$f":"IF(รายชื่อนักเรียน!E41=\"\",\"\",รายชื่อนักเรียน!E41)","v":""},null,null,null,null,null,"",null,null,null,null,"","","","","","",{"$f":"IF(OR(รายชื่อนักเรียน!F41=\"ย้าย\",R42=\"\"),\"\",IF(Q42=\"\",\"\",IF(R42>=80,\"ผ่าน\",\"ไม่ผ่าน\")))","v":""},{"$f":"IF(รายชื่อนักเรียน!$F41=\"\",\"\",รายชื่อนักเรียน!$F41)","v":""}]
[{"$f":"รายชื่อนักเรียน!B42","v":0},{"$f":"IF(รายชื่อนักเรียน!E42=\"\",\"\",รายชื่อนักเรียน!E42)","v":""},null,null,null,null,null,"",null,null,null,null,"","","","","","",{"$f":"IF(OR(รายชื่อนักเรียน!F42=\"ย้าย\",R43=\"\"),\"\",IF(Q43=\"\",\"\",IF(R43>=80,\"ผ่าน\",\"ไม่ผ่าน\")))","v":""},{"$f":"IF(รายชื่อนักเรียน!$F42=\"\",\"\",รายชื่อนักเรียน!$F42)","v":""}]
[{"$f":"รายชื่อนักเรียน!B43","v":0},{"$f":"IF(รายชื่อนักเรียน!E43=\"\",\"\",รายชื่อนักเรียน!E43)","v":""},null,null,null,null,null,"",null,null,null,null,"","","","","","",{"$f":"IF(OR(รายชื่อนักเรียน!F43=\"ย้าย\",R44=\"\"),\"\",IF(Q44=\"\",\"\",IF(R44>=80,\"ผ่าน\",\"ไม่ผ่าน\")))","v":""},{"$f":"IF(รายชื่อนักเรียน!$F43=\"\",\"\",รายชื่อนักเรียน!$F43)","v":""}]
[{"$f":"รายชื่อนักเรียน!B44","v":0},{"$f":"IF(รายชื่อนักเรียน!E44=\"\",\"\",รายชื่อนักเรียน!E44)","v":""},null,null,null,null,null,"",null,null,null,null,"","","","","","",{"$f":"IF(OR(รายชื่อนักเรียน!F44=\"ย้าย\",R45=\"\"),\"\",IF(Q45=\"\",\"\",IF(R45>=80,\"ผ่าน\",\"ไม่ผ่าน\")))","v":""},{"$f":"IF(รายชื่อนักเรียน!$F44=\"\",\"\",รายชื่อนักเรียน!$F44)","v":""}]
[{"$f":"รายชื่อนักเรียน!B45","v":0},{"$f":"IF(รายชื่อนักเรียน!E45=\"\",\"\",รายชื่อนักเรียน!E45)","v":""},null,null,null,null,null,"",null,null,null,null,"","","","","","",{"$f":"IF(OR(รายชื่อนักเรียน!F45=\"ย้าย\",R46=\"\"),\"\",IF(Q46=\"\",\"\",IF(R46>=80,\"ผ่าน\",\"ไม่ผ่าน\")))","v":""},{"$f":"IF(รายชื่อนักเรียน!$F45=\"\",\"\",รายชื่อนักเรียน!$F45)","v":""}]
[{"$f":"รายชื่อนักเรียน!B46","v":0},{"$f":"IF(รายชื่อนักเรียน!E46=\"\",\"\",รายชื่อนักเรียน!E46)","v":""},null,null,null,null,null,{"$f":"IF(B47=\"\",\"\",(G47/$G$3)*100)","v":""},null,null,null,null,{"$f":"IF(B47=\"\",\"\",(L47/$L$3)*100)","v":""},{"$f":"IF(B47=\"\",\"\",(D47+I47))","v":""},{"$f":"IF(B47=\"\",\"\",E47+J47)","v":""},{"$f":"IF(B47=\"\",\"\",F47+K47)","v":""},{"$f":"IF(B47=\"\",\"\",G47+L47)","v":""},{"$f":"IF(B47=\"\",\"\",(Q47/$Q$3)*100)","v":""},{"$f":"IF(OR(รายชื่อนักเรียน!F46=\"ย้าย\",R47=\"\"),\"\",IF(Q47=\"\",\"\",IF(R47>=80,\"ผ่าน\",\"ไม่ผ่าน\")))","v":""},{"$f":"IF(รายชื่อนักเรียน!$F46=\"\",\"\",รายชื่อนักเรียน!$F46)","v":""}]
[{"$f":"รายชื่อนักเรียน!B47","v":0},{"$f":"IF(รายชื่อนักเรียน!E47=\"\",\"\",รายชื่อนักเรียน!E47)","v":""},null,null,null,null,null,"",null,null,null,null,"","","","","","",{"$f":"IF(OR(รายชื่อนักเรียน!F47=\"ย้าย\",R48=\"\"),\"\",IF(Q48=\"\",\"\",IF(R48>=80,\"ผ่าน\",\"ไม่ผ่าน\")))","v":""},{"$f":"IF(รายชื่อนักเรียน!$F47=\"\",\"\",รายชื่อนักเรียน!$F47)","v":""}]
[{"$f":"รายชื่อนักเรียน!B48","v":0},{"$f":"IF(รายชื่อนักเรียน!E48=\"\",\"\",รายชื่อนักเรียน!E48)","v":""},null,null,null,null,null,"",null,null,null,null,"","","","","","",{"$f":"IF(OR(รายชื่อนักเรียน!F48=\"ย้าย\",R49=\"\"),\"\",IF(Q49=\"\",\"\",IF(R49>=80,\"ผ่าน\",\"ไม่ผ่าน\")))","v":""},{"$f":"IF(รายชื่อนักเรียน!$F48=\"\",\"\",รายชื่อนักเรียน!$F48)","v":""}]
[{"$f":"รายชื่อนักเรียน!B49","v":0},{"$f":"IF(รายชื่อนักเรียน!E49=\"\",\"\",รายชื่อนักเรียน!E49)","v":""},null,null,null,null,null,"",null,null,null,null,"","","","","","",{"$f":"IF(OR(รายชื่อนักเรียน!F49=\"ย้าย\",R50=\"\"),\"\",IF(Q50=\"\",\"\",IF(R50>=80,\"ผ่าน\",\"ไม่ผ่าน\")))","v":""},{"$f":"IF(รายชื่อนักเรียน!$F49=\"\",\"\",รายชื่อนักเรียน!$F49)","v":""}]
[{"$f":"รายชื่อนักเรียน!B50","v":0},{"$f":"IF(รายชื่อนักเรียน!E50=\"\",\"\",รายชื่อนักเรียน!E50)","v":""},null,null,null,null,null,"",null,null,null,null,"","","","","","",{"$f":"IF(OR(รายชื่อนักเรียน!F50=\"ย้าย\",R51=\"\"),\"\",IF(Q51=\"\",\"\",IF(R51>=80,\"ผ่าน\",\"ไม่ผ่าน\")))","v":""},{"$f":"IF(รายชื่อนักเรียน!$F50=\"\",\"\",รายชื่อนักเรียน!$F50)","v":""}]

{"sheet":"ประเมินจุดประสงค์การเรียนรู้","index":7,"n_rows":52,"n_cols":19,"rows_kept":52,"cut":false,"hidden":false,"merged":[[38,1,38,2],[2,1,6,2],[0,3,0,7],[0,9,0,10],[1,0,1,17],[2,3,2,12],[3,3,3,12],[0,0,0,2],[2,13,2,14],[3,13,3,14],[5,13,5,14],[4,13,4,14],[35,1,35,2],[36,1,36,2],[27,1,27,2],[28,1,28,2],[29,1,29,2],[30,1,30,2],[31,1,31,2],[51,1,51,2],[45,1,45,2],[46,1,46,2],[39,1,39,2],[40,1,40,2],[41,1,41,2],[42,1,42,2],[43,1,43,2],[44,1,44,2],[47,1,47,2],[48,1,48,2],[49,1,49,2],[50,1,50,2],[37,1,37,2],[26,1,26,2],[15,1,15,2],[16,1,16,2],[17,1,17,2],[18,1,18,2],[19,1,19,2],[20,1,20,2],[21,1,21,2],[22,1,22,2],[23,1,23,2],[24,1,24,2],[25,1,25,2],[32,1,32,2],[33,1,33,2],[34,1,34,2],[2,0,6,0],[7,1,7,2],[8,1,8,2],[9,1,9,2],[10,1,10,2],[2,17,6,17],[2,15,5,15],[2,16,6,16],[14,1,14,2],[11,1,11,2],[12,1,12,2],[13,1,13,2]]}
[null,null,null,"กำหนดเกณฑ์การผ่านประเมินจุดประสงค์ ร้อยละ",null,null,null,null,null,80]
[{"$f":"\"แบบประเมินจุดประสงค์การเรียนรู้ กิจกรรม\"&ตั้งค่า!C20&\"  ชั้น\"&ตั้งค่า!C17","v":"แบบประเมินจุดประสงค์การเรียนรู้ กิจกรรม  ชั้น"}]
["ที่","ชื่อ-สกุล",null,"ผลการประเมินการปฏิบัติกิจกรรม",null,null,null,null,null,null,null,null,null,"รวมจุดประสงค์",null,"คิดเป็นร้อยละ","สรุปผลการประเมินจุดประสงค์","หมายเหตุ","ย้าย"]
[null,null,null,"และมีผลงานตามจุดประสงค์การเรียนรู้  ข้อที่",null,null,null,null,null,null,null,null,null,"ทั้งหมด"]
[null,null,null,{"$f":"TRANSPOSE(กรอกจุดประสงค์!B4:B13)","v":0},0,0,0,0,0,0,0,0,0,{"$f":"COUNTIF(D5:M5,\">=1\")","v":0}]
[null,null,null,null,null,null,null,null,null,null,null,null,null,"ข้อ"]
[null,null,null,"สรุป","สรุป","สรุป","สรุป","สรุป","สรุป","สรุป","สรุป","สรุป","สรุป","ผ่าน","ไม่ผ่าน","%"]
[{"$f":"รายชื่อนักเรียน!B6","v":0},{"$f":"IF(รายชื่อนักเรียน!E6=\"\",\"\",รายชื่อนักเรียน!E6)","v":""},null,null,null,null,null,null,null,null,null,null,null,{"$f":"COUNTIF(D8:M8,\"/\")","v":0},{"$f":"COUNTIF(D8:M8,\"x\")","v":0},{"$f":"IF(B8=\"\",\"\",IFERROR((N8*100)/$N$5,\"\"))","v":""},{"$f":"IF(B8=\"\",\"\",IF(OR(รายชื่อนักเรียน!F6=\"ย้าย\",N8=\"\"),\"\",IF(N8=\"0\",\"\",IF(P8>=$J$1,\"ผ่าน\",\"ไม่ผ่าน\"))))","v":""},{"$f":"รายชื่อนักเรียน!F6","v":0}]
[{"$f":"รายชื่อนักเรียน!B7","v":0},{"$f":"IF(รายชื่อนักเรียน!E7=\"\",\"\",รายชื่อนักเรียน!E7)","v":""},null,null,null,null,null,null,null,null,null,null,null,0,0,null,null,{"$f":"รายชื่อนักเรียน!F7","v":0}]
[{"$f":"รายชื่อนักเรียน!B8","v":0},{"$f":"IF(รายชื่อนักเรียน!E8=\"\",\"\",รายชื่อนักเรียน!E8)","v":""},null,null,null,null,null,null,null,null,null,null,null,0,0,null,null,{"$f":"รายชื่อนักเรียน!F8","v":0}]
[{"$f":"รายชื่อนักเรียน!B9","v":0},{"$f":"IF(รายชื่อนักเรียน!E9=\"\",\"\",รายชื่อนักเรียน!E9)","v":""},null,null,null,null,null,null,null,null,null,null,null,0,0,null,null,{"$f":"รายชื่อนักเรียน!F9","v":0}]
[{"$f":"รายชื่อนักเรียน!B10","v":0},{"$f":"IF(รายชื่อนักเรียน!E10=\"\",\"\",รายชื่อนักเรียน!E10)","v":""},null,null,null,null,null,null,null,null,null,null,null,0,0,null,null,{"$f":"รายชื่อนักเรียน!F10","v":0}]
[{"$f":"รายชื่อนักเรียน!B11","v":0},{"$f":"IF(รายชื่อนักเรียน!E11=\"\",\"\",รายชื่อนักเรียน!E11)","v":""},null,null,null,null,null,null,null,null,null,null,null,0,0,null,null,{"$f":"รายชื่อนักเรียน!F11","v":0}]
[{"$f":"รายชื่อนักเรียน!B12","v":0},{"$f":"IF(รายชื่อนักเรียน!E12=\"\",\"\",รายชื่อนักเรียน!E12)","v":""},null,null,null,null,null,null,null,null,null,null,null,0,0,null,null,{"$f":"รายชื่อนักเรียน!F12","v":0}]
[{"$f":"รายชื่อนักเรียน!B13","v":0},{"$f":"IF(รายชื่อนักเรียน!E13=\"\",\"\",รายชื่อนักเรียน!E13)","v":""},null,null,null,null,null,null,null,null,null,null,null,0,0,null,null,{"$f":"รายชื่อนักเรียน!F13","v":0}]
[{"$f":"รายชื่อนักเรียน!B14","v":0},{"$f":"IF(รายชื่อนักเรียน!E14=\"\",\"\",รายชื่อนักเรียน!E14)","v":""},null,null,null,null,null,null,null,null,null,null,null,0,0,null,null,{"$f":"รายชื่อนักเรียน!F14","v":0}]
[{"$f":"รายชื่อนักเรียน!B15","v":0},{"$f":"IF(รายชื่อนักเรียน!E15=\"\",\"\",รายชื่อนักเรียน!E15)","v":""},null,null,null,null,null,null,null,null,null,null,null,0,0,null,null,{"$f":"รายชื่อนักเรียน!F15","v":0}]
[{"$f":"รายชื่อนักเรียน!B16","v":0},{"$f":"IF(รายชื่อนักเรียน!E16=\"\",\"\",รายชื่อนักเรียน!E16)","v":""},null,null,null,null,null,null,null,null,null,null,null,0,0,null,null,{"$f":"รายชื่อนักเรียน!F16","v":0}]
[{"$f":"รายชื่อนักเรียน!B17","v":0},{"$f":"IF(รายชื่อนักเรียน!E17=\"\",\"\",รายชื่อนักเรียน!E17)","v":""},null,null,null,null,null,null,null,null,null,null,null,0,0,null,null,{"$f":"รายชื่อนักเรียน!F17","v":0}]
[{"$f":"รายชื่อนักเรียน!B18","v":0},{"$f":"IF(รายชื่อนักเรียน!E18=\"\",\"\",รายชื่อนักเรียน!E18)","v":""},null,null,null,null,null,null,null,null,null,null,null,0,0,null,null,{"$f":"รายชื่อนักเรียน!F18","v":0}]
[{"$f":"รายชื่อนักเรียน!B19","v":0},{"$f":"IF(รายชื่อนักเรียน!E19=\"\",\"\",รายชื่อนักเรียน!E19)","v":""},null,null,null,null,null,null,null,null,null,null,null,0,0,null,null,{"$f":"รายชื่อนักเรียน!F19","v":0}]
[{"$f":"รายชื่อนักเรียน!B20","v":0},{"$f":"IF(รายชื่อนักเรียน!E20=\"\",\"\",รายชื่อนักเรียน!E20)","v":""},null,null,null,null,null,null,null,null,null,null,null,0,0,null,null,{"$f":"รายชื่อนักเรียน!F20","v":0}]
[{"$f":"รายชื่อนักเรียน!B21","v":0},{"$f":"IF(รายชื่อนักเรียน!E21=\"\",\"\",รายชื่อนักเรียน!E21)","v":""},null,null,null,null,null,null,null,null,null,null,null,0,0,null,null,{"$f":"รายชื่อนักเรียน!F21","v":0}]
[{"$f":"รายชื่อนักเรียน!B22","v":0},{"$f":"IF(รายชื่อนักเรียน!E22=\"\",\"\",รายชื่อนักเรียน!E22)","v":""},null,null,null,null,null,null,null,null,null,null,null,0,0,null,null,{"$f":"รายชื่อนักเรียน!F22","v":0}]
[{"$f":"รายชื่อนักเรียน!B23","v":0},{"$f":"IF(รายชื่อนักเรียน!E23=\"\",\"\",รายชื่อนักเรียน!E23)","v":""},null,null,null,null,null,null,null,null,null,null,null,0,0,null,null,{"$f":"รายชื่อนักเรียน!F23","v":0}]
[{"$f":"รายชื่อนักเรียน!B24","v":0},{"$f":"IF(รายชื่อนักเรียน!E24=\"\",\"\",รายชื่อนักเรียน!E24)","v":""},null,null,null,null,null,null,null,null,null,null,null,0,0,null,null,{"$f":"รายชื่อนักเรียน!F24","v":0}]
[{"$f":"รายชื่อนักเรียน!B25","v":0},{"$f":"IF(รายชื่อนักเรียน!E25=\"\",\"\",รายชื่อนักเรียน!E25)","v":""},null,null,null,null,null,null,null,null,null,null,null,0,0,null,null,{"$f":"รายชื่อนักเรียน!F25","v":0}]
[{"$f":"รายชื่อนักเรียน!B26","v":0},{"$f":"IF(รายชื่อนักเรียน!E26=\"\",\"\",รายชื่อนักเรียน!E26)","v":""},null,null,null,null,null,null,null,null,null,null,null,0,0,null,null,{"$f":"รายชื่อนักเรียน!F26","v":0}]
[{"$f":"รายชื่อนักเรียน!B27","v":0},{"$f":"IF(รายชื่อนักเรียน!E27=\"\",\"\",รายชื่อนักเรียน!E27)","v":""},null,null,null,null,null,null,null,null,null,null,null,0,0,null,null,{"$f":"รายชื่อนักเรียน!F27","v":0}]
[{"$f":"รายชื่อนักเรียน!B28","v":0},{"$f":"IF(รายชื่อนักเรียน!E28=\"\",\"\",รายชื่อนักเรียน!E28)","v":""},null,null,null,null,null,null,null,null,null,null,null,0,0,null,null,{"$f":"รายชื่อนักเรียน!F28","v":0}]
[{"$f":"รายชื่อนักเรียน!B29","v":0},{"$f":"IF(รายชื่อนักเรียน!E29=\"\",\"\",รายชื่อนักเรียน!E29)","v":""},null,null,null,null,null,null,null,null,null,null,null,0,0,null,null,{"$f":"รายชื่อนักเรียน!F29","v":0}]
[{"$f":"รายชื่อนักเรียน!B30","v":0},{"$f":"IF(รายชื่อนักเรียน!E30=\"\",\"\",รายชื่อนักเรียน!E30)","v":""},null,null,null,null,null,null,null,null,null,null,null,0,0,null,null,{"$f":"รายชื่อนักเรียน!F30","v":0}]
[{"$f":"รายชื่อนักเรียน!B31","v":0},{"$f":"IF(รายชื่อนักเรียน!E31=\"\",\"\",รายชื่อนักเรียน!E31)","v":""},null,null,null,null,null,null,null,null,null,null,null,0,0,null,null,{"$f":"รายชื่อนักเรียน!F31","v":0}]
[{"$f":"รายชื่อนักเรียน!B32","v":0},{"$f":"IF(รายชื่อนักเรียน!E32=\"\",\"\",รายชื่อนักเรียน!E32)","v":""},null,null,null,null,null,null,null,null,null,null,null,0,0,null,null,{"$f":"รายชื่อนักเรียน!F32","v":0}]
[{"$f":"รายชื่อนักเรียน!B33","v":0},{"$f":"IF(รายชื่อนักเรียน!E33=\"\",\"\",รายชื่อนักเรียน!E33)","v":""},null,null,null,null,null,null,null,null,null,null,null,0,0,null,null,{"$f":"รายชื่อนักเรียน!F33","v":0}]
[{"$f":"รายชื่อนักเรียน!B34","v":0},{"$f":"IF(รายชื่อนักเรียน!E34=\"\",\"\",รายชื่อนักเรียน!E34)","v":""},null,null,null,null,null,null,null,null,null,null,null,0,0,null,null,{"$f":"รายชื่อนักเรียน!F34","v":0}]
[{"$f":"รายชื่อนักเรียน!B35","v":0},{"$f":"IF(รายชื่อนักเรียน!E35=\"\",\"\",รายชื่อนักเรียน!E35)","v":""},null,null,null,null,null,null,null,null,null,null,null,0,0,null,null,{"$f":"รายชื่อนักเรียน!F35","v":0}]
[{"$f":"รายชื่อนักเรียน!B36","v":0},{"$f":"IF(รายชื่อนักเรียน!E36=\"\",\"\",รายชื่อนักเรียน!E36)","v":""},null,null,null,null,null,null,null,null,null,null,null,0,0,null,null,{"$f":"รายชื่อนักเรียน!F36","v":0}]
[{"$f":"รายชื่อนักเรียน!B37","v":0},{"$f":"IF(รายชื่อนักเรียน!E37=\"\",\"\",รายชื่อนักเรียน!E37)","v":""},null,null,null,null,null,null,null,null,null,null,null,0,0,null,null,{"$f":"รายชื่อนักเรียน!F37","v":0}]
[{"$f":"รายชื่อนักเรียน!B38","v":0},{"$f":"IF(รายชื่อนักเรียน!E38=\"\",\"\",รายชื่อนักเรียน!E38)","v":""},null,null,null,null,null,null,null,null,null,null,null,0,0,null,null,{"$f":"รายชื่อนักเรียน!F38","v":0}]
[{"$f":"รายชื่อนักเรียน!B39","v":0},{"$f":"IF(รายชื่อนักเรียน!E39=\"\",\"\",รายชื่อนักเรียน!E39)","v":""},null,null,null,null,null,null,null,null,null,null,null,0,0,null,null,{"$f":"รายชื่อนักเรียน!F39","v":0}]
[{"$f":"รายชื่อนักเรียน!B40","v":0},{"$f":"IF(รายชื่อนักเรียน!E40=\"\",\"\",รายชื่อนักเรียน!E40)","v":""},null,null,null,null,null,null,null,null,null,null,null,0,0,null,null,{"$f":"รายชื่อนักเรียน!F40","v":0}]
[{"$f":"รายชื่อนักเรียน!B41","v":0},{"$f":"IF(รายชื่อนักเรียน!E41=\"\",\"\",รายชื่อนักเรียน!E41)","v":""},null,null,null,null,null,null,null,null,null,null,null,0,0,null,null,{"$f":"รายชื่อนักเรียน!F41","v":0}]
[{"$f":"รายชื่อนักเรียน!B42","v":0},{"$f":"IF(รายชื่อนักเรียน!E42=\"\",\"\",รายชื่อนักเรียน!E42)","v":""},null,null,null,null,null,null,null,null,null,null,null,0,0,null,null,{"$f":"รายชื่อนักเรียน!F42","v":0}]
[{"$f":"รายชื่อนักเรียน!B43","v":0},{"$f":"IF(รายชื่อนักเรียน!E43=\"\",\"\",รายชื่อนักเรียน!E43)","v":""},null,null,null,null,null,null,null,null,null,null,null,0,0,null,null,{"$f":"รายชื่อนักเรียน!F43","v":0}]
[{"$f":"รายชื่อนักเรียน!B44","v":0},{"$f":"IF(รายชื่อนักเรียน!E44=\"\",\"\",รายชื่อนักเรียน!E44)","v":""},null,null,null,null,null,null,null,null,null,null,null,0,0,null,null,{"$f":"รายชื่อนักเรียน!F44","v":0}]
[{"$f":"รายชื่อนักเรียน!B45","v":0},{"$f":"IF(รายชื่อนักเรียน!E45=\"\",\"\",รายชื่อนักเรียน!E45)","v":""},null,null,null,null,null,null,null,null,null,null,null,0,0,null,null,{"$f":"รายชื่อนักเรียน!F45","v":0}]
[{"$f":"รายชื่อนักเรียน!B46","v":0},{"$f":"IF(รายชื่อนักเรียน!E46=\"\",\"\",รายชื่อนักเรียน!E46)","v":""},null,null,null,null,null,null,null,null,null,null,null,0,0,null,null,{"$f":"รายชื่อนักเรียน!F46","v":0}]
[{"$f":"รายชื่อนักเรียน!B47","v":0},{"$f":"IF(รายชื่อนักเรียน!E47=\"\",\"\",รายชื่อนักเรียน!E47)","v":""},null,null,null,null,null,null,null,null,null,null,null,0,0,null,null,{"$f":"รายชื่อนักเรียน!F47","v":0}]
[{"$f":"รายชื่อนักเรียน!B48","v":0},{"$f":"IF(รายชื่อนักเรียน!E48=\"\",\"\",รายชื่อนักเรียน!E48)","v":""},null,null,null,null,null,null,null,null,null,null,null,0,0,null,null,{"$f":"รายชื่อนักเรียน!F48","v":0}]
[{"$f":"รายชื่อนักเรียน!B49","v":0},{"$f":"IF(รายชื่อนักเรียน!E49=\"\",\"\",รายชื่อนักเรียน!E49)","v":""},null,null,null,null,null,null,null,null,null,null,null,0,0,null,null,{"$f":"รายชื่อนักเรียน!F49","v":0}]
[{"$f":"รายชื่อนักเรียน!B50","v":0},{"$f":"IF(รายชื่อนักเรียน!E50=\"\",\"\",รายชื่อนักเรียน!E50)","v":""},null,null,null,null,null,null,null,null,null,null,null,0,0,null,null,{"$f":"รายชื่อนักเรียน!F50","v":0}]

{"sheet":"สรุปผลการประเมินกิจกรรม","index":8,"n_rows":55,"n_cols":14,"rows_kept":55,"cut":false,"hidden":false,"merged":[[45,3,45,4],[46,3,46,4],[47,3,47,4],[48,3,48,4],[49,3,49,4],[43,3,43,4],[44,3,44,4],[42,3,42,4],[31,3,31,4],[32,3,32,4],[33,3,33,4],[34,3,34,4],[35,3,35,4],[36,3,36,4],[37,3,37,4],[38,3,38,4],[39,3,39,4],[40,3,40,4],[41,3,41,4],[30,3,30,4],[19,3,19,4],[20,3,20,4],[21,3,21,4],[22,3,22,4],[23,3,23,4],[24,3,24,4],[25,3,25,4],[26,3,26,4],[27,3,27,4],[28,3,28,4],[29,3,29,4],[18,3,18,4],[7,3,7,4],[8,3,8,4],[9,3,9,4],[10,3,10,4],[11,3,11,4],[12,3,12,4],[13,3,13,4],[14,3,14,4],[15,3,15,4],[16,3,16,4],[17,3,17,4],[2,5,3,5],[2,7,4,7],[0,1,0,3],[6,3,6,4],[5,3,5,4],[1,1,1,8],[2,3,4,4],[2,2,4,2],[2,1,4,1],[2,8,4,8]]}
[null,null,null,null,null,null,null,null,null,null,"ผ่าน"]
[null,{"$f":"\"แบบรายงานผลการประเมิน กิจกรรม\"&ตั้งค่า!C20&\"  ชั้น\"&ตั้งค่า!C17","v":"แบบรายงานผลการประเมิน กิจกรรม  ชั้น"}]
[null,"เลขที่","เลขประจำตัว","ชื่อ - สกุล",null,"ผลการประเมินเวลาการเข้าร่วมกิจกรรม","ผลการประเมินการปฏิบัติ","สรุปผลการประเมิน","หมายเหตุ"]
[null,null,null,null,null,null,"กิจกรรม  และมีผลงาน"]
[null,null,null,null,null,"(เกณฑ์การผ่าน ร้อยละ 80)",{"$f":"\"(เกณฑ์การผ่าน ร้อยละ \"&ประเมินจุดประสงค์การเรียนรู้!J1&\")\"","v":"(เกณฑ์การผ่าน ร้อยละ 80)"}]
[null,{"$f":"รายชื่อนักเรียน!B6","v":0},{"$f":"IF(รายชื่อนักเรียน!C6=\"\",\"\",รายชื่อนักเรียน!C6)","v":""},{"$f":"IF(รายชื่อนักเรียน!E6=\"\",\"\",รายชื่อนักเรียน!E6)","v":""},null,{"$f":"สรุปเวลาการเข้าร่วมกิจกรรม!S7","v":""},{"$f":"IF(OR(รายชื่อนักเรียน!F6=\"ย้าย\",F6=\"\"),\"\",(ประเมินจุดประสงค์การเรียนรู้!Q8))","v":""},{"$f":"IFERROR(N6,\"\")","v":""},{"$f":"IF(รายชื่อนักเรียน!$F6=\"\",\"\",รายชื่อนักเรียน!$F6)","v":""},null,{"$f":"IF(OR(รายชื่อนักเรียน!F6=\"ย้าย\",F6=\"\"),\"\",IF(F6=\"0\",\"\",IF(F6=$K$1,\"1\",\"0\")))","v":""},{"$f":"IF(OR(รายชื่อนักเรียน!F6=\"ย้าย\",G6=\"\"),\"\",IF(G6=\"0\",\"\",IF(G6=$K$1,\"1\",\"0\")))","v":""},{"$f":"K6+L6","v":{"$error":"#VALUE!"}},{"$f":"IF(OR(รายชื่อนักเรียน!F6=\"ย้าย\",M6=\"\"),\"\",IF(M6=\"0\",\"\",IF(M6=2,\"ผ่าน\",\"ไม่ผ่าน\")))","v":{"$error":"#VALUE!"}}]
[null,{"$f":"รายชื่อนักเรียน!B7","v":0},{"$f":"IF(รายชื่อนักเรียน!C7=\"\",\"\",รายชื่อนักเรียน!C7)","v":""},{"$f":"IF(รายชื่อนักเรียน!E7=\"\",\"\",รายชื่อนักเรียน!E7)","v":""},null,{"$f":"สรุปเวลาการเข้าร่วมกิจกรรม!S8","v":""},{"$f":"IF(OR(รายชื่อนักเรียน!F7=\"ย้าย\",F7=\"\"),\"\",(ประเมินจุดประสงค์การเรียนรู้!Q9))","v":""},{"$f":"IFERROR(N7,\"\")","v":""},{"$f":"IF(รายชื่อนักเรียน!$F7=\"\",\"\",รายชื่อนักเรียน!$F7)","v":""},null,{"$f":"IF(OR(รายชื่อนักเรียน!F7=\"ย้าย\",F7=\"\"),\"\",IF(F7=\"0\",\"\",IF(F7=$K$1,\"1\",\"0\")))","v":""},{"$f":"IF(OR(รายชื่อนักเรียน!F7=\"ย้าย\",G7=\"\"),\"\",IF(G7=\"0\",\"\",IF(G7=$K$1,\"1\",\"0\")))","v":""},{"$f":"K7+L7","v":{"$error":"#VALUE!"}},{"$f":"IF(OR(รายชื่อนักเรียน!F7=\"ย้าย\",M7=\"\"),\"\",IF(M7=\"0\",\"\",IF(M7=2,\"ผ่าน\",\"ไม่ผ่าน\")))","v":{"$error":"#VALUE!"}}]
[null,{"$f":"รายชื่อนักเรียน!B8","v":0},{"$f":"IF(รายชื่อนักเรียน!C8=\"\",\"\",รายชื่อนักเรียน!C8)","v":""},{"$f":"IF(รายชื่อนักเรียน!E8=\"\",\"\",รายชื่อนักเรียน!E8)","v":""},null,{"$f":"สรุปเวลาการเข้าร่วมกิจกรรม!S9","v":""},{"$f":"IF(OR(รายชื่อนักเรียน!F8=\"ย้าย\",F8=\"\"),\"\",(ประเมินจุดประสงค์การเรียนรู้!Q10))","v":""},"",{"$f":"IF(รายชื่อนักเรียน!$F8=\"\",\"\",รายชื่อนักเรียน!$F8)","v":""},null,{"$f":"IF(OR(รายชื่อนักเรียน!F8=\"ย้าย\",F8=\"\"),\"\",IF(F8=\"0\",\"\",IF(F8=$K$1,\"1\",\"0\")))","v":""},{"$f":"IF(OR(รายชื่อนักเรียน!F8=\"ย้าย\",G8=\"\"),\"\",IF(G8=\"0\",\"\",IF(G8=$K$1,\"1\",\"0\")))","v":""},{"$error":"#VALUE!"},{"$f":"IF(OR(รายชื่อนักเรียน!F8=\"ย้าย\",M8=\"\"),\"\",IF(M8=\"0\",\"\",IF(M8=2,\"ผ่าน\",\"ไม่ผ่าน\")))","v":{"$error":"#VALUE!"}}]
[null,{"$f":"รายชื่อนักเรียน!B9","v":0},{"$f":"IF(รายชื่อนักเรียน!C9=\"\",\"\",รายชื่อนักเรียน!C9)","v":""},{"$f":"IF(รายชื่อนักเรียน!E9=\"\",\"\",รายชื่อนักเรียน!E9)","v":""},null,{"$f":"สรุปเวลาการเข้าร่วมกิจกรรม!S10","v":""},{"$f":"IF(OR(รายชื่อนักเรียน!F9=\"ย้าย\",F9=\"\"),\"\",(ประเมินจุดประสงค์การเรียนรู้!Q11))","v":""},"",{"$f":"IF(รายชื่อนักเรียน!$F9=\"\",\"\",รายชื่อนักเรียน!$F9)","v":""},null,{"$f":"IF(OR(รายชื่อนักเรียน!F9=\"ย้าย\",F9=\"\"),\"\",IF(F9=\"0\",\"\",IF(F9=$K$1,\"1\",\"0\")))","v":""},{"$f":"IF(OR(รายชื่อนักเรียน!F9=\"ย้าย\",G9=\"\"),\"\",IF(G9=\"0\",\"\",IF(G9=$K$1,\"1\",\"0\")))","v":""},{"$error":"#VALUE!"},{"$f":"IF(OR(รายชื่อนักเรียน!F9=\"ย้าย\",M9=\"\"),\"\",IF(M9=\"0\",\"\",IF(M9=2,\"ผ่าน\",\"ไม่ผ่าน\")))","v":{"$error":"#VALUE!"}}]
[null,{"$f":"รายชื่อนักเรียน!B10","v":0},{"$f":"IF(รายชื่อนักเรียน!C10=\"\",\"\",รายชื่อนักเรียน!C10)","v":""},{"$f":"IF(รายชื่อนักเรียน!E10=\"\",\"\",รายชื่อนักเรียน!E10)","v":""},null,{"$f":"สรุปเวลาการเข้าร่วมกิจกรรม!S11","v":""},{"$f":"IF(OR(รายชื่อนักเรียน!F10=\"ย้าย\",F10=\"\"),\"\",(ประเมินจุดประสงค์การเรียนรู้!Q12))","v":""},"",{"$f":"IF(รายชื่อนักเรียน!$F10=\"\",\"\",รายชื่อนักเรียน!$F10)","v":""},null,{"$f":"IF(OR(รายชื่อนักเรียน!F10=\"ย้าย\",F10=\"\"),\"\",IF(F10=\"0\",\"\",IF(F10=$K$1,\"1\",\"0\")))","v":""},{"$f":"IF(OR(รายชื่อนักเรียน!F10=\"ย้าย\",G10=\"\"),\"\",IF(G10=\"0\",\"\",IF(G10=$K$1,\"1\",\"0\")))","v":""},{"$error":"#VALUE!"},{"$f":"IF(OR(รายชื่อนักเรียน!F10=\"ย้าย\",M10=\"\"),\"\",IF(M10=\"0\",\"\",IF(M10=2,\"ผ่าน\",\"ไม่ผ่าน\")))","v":{"$error":"#VALUE!"}}]
[null,{"$f":"รายชื่อนักเรียน!B11","v":0},{"$f":"IF(รายชื่อนักเรียน!C11=\"\",\"\",รายชื่อนักเรียน!C11)","v":""},{"$f":"IF(รายชื่อนักเรียน!E11=\"\",\"\",รายชื่อนักเรียน!E11)","v":""},null,{"$f":"สรุปเวลาการเข้าร่วมกิจกรรม!S12","v":""},{"$f":"IF(OR(รายชื่อนักเรียน!F11=\"ย้าย\",F11=\"\"),\"\",(ประเมินจุดประสงค์การเรียนรู้!Q13))","v":""},"",{"$f":"IF(รายชื่อนักเรียน!$F11=\"\",\"\",รายชื่อนักเรียน!$F11)","v":""},null,{"$f":"IF(OR(รายชื่อนักเรียน!F11=\"ย้าย\",F11=\"\"),\"\",IF(F11=\"0\",\"\",IF(F11=$K$1,\"1\",\"0\")))","v":""},{"$f":"IF(OR(รายชื่อนักเรียน!F11=\"ย้าย\",G11=\"\"),\"\",IF(G11=\"0\",\"\",IF(G11=$K$1,\"1\",\"0\")))","v":""},{"$error":"#VALUE!"},{"$f":"IF(OR(รายชื่อนักเรียน!F11=\"ย้าย\",M11=\"\"),\"\",IF(M11=\"0\",\"\",IF(M11=2,\"ผ่าน\",\"ไม่ผ่าน\")))","v":{"$error":"#VALUE!"}}]
[null,{"$f":"รายชื่อนักเรียน!B12","v":0},{"$f":"IF(รายชื่อนักเรียน!C12=\"\",\"\",รายชื่อนักเรียน!C12)","v":""},{"$f":"IF(รายชื่อนักเรียน!E12=\"\",\"\",รายชื่อนักเรียน!E12)","v":""},null,{"$f":"สรุปเวลาการเข้าร่วมกิจกรรม!S13","v":""},{"$f":"IF(OR(รายชื่อนักเรียน!F12=\"ย้าย\",F12=\"\"),\"\",(ประเมินจุดประสงค์การเรียนรู้!Q14))","v":""},"",{"$f":"IF(รายชื่อนักเรียน!$F12=\"\",\"\",รายชื่อนักเรียน!$F12)","v":""},null,{"$f":"IF(OR(รายชื่อนักเรียน!F12=\"ย้าย\",F12=\"\"),\"\",IF(F12=\"0\",\"\",IF(F12=$K$1,\"1\",\"0\")))","v":""},{"$f":"IF(OR(รายชื่อนักเรียน!F12=\"ย้าย\",G12=\"\"),\"\",IF(G12=\"0\",\"\",IF(G12=$K$1,\"1\",\"0\")))","v":""},{"$error":"#VALUE!"},{"$f":"IF(OR(รายชื่อนักเรียน!F12=\"ย้าย\",M12=\"\"),\"\",IF(M12=\"0\",\"\",IF(M12=2,\"ผ่าน\",\"ไม่ผ่าน\")))","v":{"$error":"#VALUE!"}}]
[null,{"$f":"รายชื่อนักเรียน!B13","v":0},{"$f":"IF(รายชื่อนักเรียน!C13=\"\",\"\",รายชื่อนักเรียน!C13)","v":""},{"$f":"IF(รายชื่อนักเรียน!E13=\"\",\"\",รายชื่อนักเรียน!E13)","v":""},null,{"$f":"สรุปเวลาการเข้าร่วมกิจกรรม!S14","v":""},{"$f":"IF(OR(รายชื่อนักเรียน!F13=\"ย้าย\",F13=\"\"),\"\",(ประเมินจุดประสงค์การเรียนรู้!Q15))","v":""},"",{"$f":"IF(รายชื่อนักเรียน!$F13=\"\",\"\",รายชื่อนักเรียน!$F13)","v":""},null,{"$f":"IF(OR(รายชื่อนักเรียน!F13=\"ย้าย\",F13=\"\"),\"\",IF(F13=\"0\",\"\",IF(F13=$K$1,\"1\",\"0\")))","v":""},{"$f":"IF(OR(รายชื่อนักเรียน!F13=\"ย้าย\",G13=\"\"),\"\",IF(G13=\"0\",\"\",IF(G13=$K$1,\"1\",\"0\")))","v":""},{"$error":"#VALUE!"},{"$f":"IF(OR(รายชื่อนักเรียน!F13=\"ย้าย\",M13=\"\"),\"\",IF(M13=\"0\",\"\",IF(M13=2,\"ผ่าน\",\"ไม่ผ่าน\")))","v":{"$error":"#VALUE!"}}]
[null,{"$f":"รายชื่อนักเรียน!B14","v":0},{"$f":"IF(รายชื่อนักเรียน!C14=\"\",\"\",รายชื่อนักเรียน!C14)","v":""},{"$f":"IF(รายชื่อนักเรียน!E14=\"\",\"\",รายชื่อนักเรียน!E14)","v":""},null,{"$f":"สรุปเวลาการเข้าร่วมกิจกรรม!S15","v":""},{"$f":"IF(OR(รายชื่อนักเรียน!F14=\"ย้าย\",F14=\"\"),\"\",(ประเมินจุดประสงค์การเรียนรู้!Q16))","v":""},"",{"$f":"IF(รายชื่อนักเรียน!$F14=\"\",\"\",รายชื่อนักเรียน!$F14)","v":""},null,{"$f":"IF(OR(รายชื่อนักเรียน!F14=\"ย้าย\",F14=\"\"),\"\",IF(F14=\"0\",\"\",IF(F14=$K$1,\"1\",\"0\")))","v":""},{"$f":"IF(OR(รายชื่อนักเรียน!F14=\"ย้าย\",G14=\"\"),\"\",IF(G14=\"0\",\"\",IF(G14=$K$1,\"1\",\"0\")))","v":""},{"$error":"#VALUE!"},{"$f":"IF(OR(รายชื่อนักเรียน!F14=\"ย้าย\",M14=\"\"),\"\",IF(M14=\"0\",\"\",IF(M14=2,\"ผ่าน\",\"ไม่ผ่าน\")))","v":{"$error":"#VALUE!"}}]
[null,{"$f":"รายชื่อนักเรียน!B15","v":0},{"$f":"IF(รายชื่อนักเรียน!C15=\"\",\"\",รายชื่อนักเรียน!C15)","v":""},{"$f":"IF(รายชื่อนักเรียน!E15=\"\",\"\",รายชื่อนักเรียน!E15)","v":""},null,{"$f":"สรุปเวลาการเข้าร่วมกิจกรรม!S16","v":""},{"$f":"IF(OR(รายชื่อนักเรียน!F15=\"ย้าย\",F15=\"\"),\"\",(ประเมินจุดประสงค์การเรียนรู้!Q17))","v":""},"",{"$f":"IF(รายชื่อนักเรียน!$F15=\"\",\"\",รายชื่อนักเรียน!$F15)","v":""},null,{"$f":"IF(OR(รายชื่อนักเรียน!F15=\"ย้าย\",F15=\"\"),\"\",IF(F15=\"0\",\"\",IF(F15=$K$1,\"1\",\"0\")))","v":""},{"$f":"IF(OR(รายชื่อนักเรียน!F15=\"ย้าย\",G15=\"\"),\"\",IF(G15=\"0\",\"\",IF(G15=$K$1,\"1\",\"0\")))","v":""},{"$error":"#VALUE!"},{"$f":"IF(OR(รายชื่อนักเรียน!F15=\"ย้าย\",M15=\"\"),\"\",IF(M15=\"0\",\"\",IF(M15=2,\"ผ่าน\",\"ไม่ผ่าน\")))","v":{"$error":"#VALUE!"}}]
[null,{"$f":"รายชื่อนักเรียน!B16","v":0},{"$f":"IF(รายชื่อนักเรียน!C16=\"\",\"\",รายชื่อนักเรียน!C16)","v":""},{"$f":"IF(รายชื่อนักเรียน!E16=\"\",\"\",รายชื่อนักเรียน!E16)","v":""},null,{"$f":"สรุปเวลาการเข้าร่วมกิจกรรม!S17","v":""},{"$f":"IF(OR(รายชื่อนักเรียน!F16=\"ย้าย\",F16=\"\"),\"\",(ประเมินจุดประสงค์การเรียนรู้!Q18))","v":""},"",{"$f":"IF(รายชื่อนักเรียน!$F16=\"\",\"\",รายชื่อนักเรียน!$F16)","v":""},null,{"$f":"IF(OR(รายชื่อนักเรียน!F16=\"ย้าย\",F16=\"\"),\"\",IF(F16=\"0\",\"\",IF(F16=$K$1,\"1\",\"0\")))","v":""},{"$f":"IF(OR(รายชื่อนักเรียน!F16=\"ย้าย\",G16=\"\"),\"\",IF(G16=\"0\",\"\",IF(G16=$K$1,\"1\",\"0\")))","v":""},{"$error":"#VALUE!"},{"$f":"IF(OR(รายชื่อนักเรียน!F16=\"ย้าย\",M16=\"\"),\"\",IF(M16=\"0\",\"\",IF(M16=2,\"ผ่าน\",\"ไม่ผ่าน\")))","v":{"$error":"#VALUE!"}}]
[null,{"$f":"รายชื่อนักเรียน!B17","v":0},{"$f":"IF(รายชื่อนักเรียน!C17=\"\",\"\",รายชื่อนักเรียน!C17)","v":""},{"$f":"IF(รายชื่อนักเรียน!E17=\"\",\"\",รายชื่อนักเรียน!E17)","v":""},null,{"$f":"สรุปเวลาการเข้าร่วมกิจกรรม!S18","v":""},{"$f":"IF(OR(รายชื่อนักเรียน!F17=\"ย้าย\",F17=\"\"),\"\",(ประเมินจุดประสงค์การเรียนรู้!Q19))","v":""},"",{"$f":"IF(รายชื่อนักเรียน!$F17=\"\",\"\",รายชื่อนักเรียน!$F17)","v":""},null,{"$f":"IF(OR(รายชื่อนักเรียน!F17=\"ย้าย\",F17=\"\"),\"\",IF(F17=\"0\",\"\",IF(F17=$K$1,\"1\",\"0\")))","v":""},{"$f":"IF(OR(รายชื่อนักเรียน!F17=\"ย้าย\",G17=\"\"),\"\",IF(G17=\"0\",\"\",IF(G17=$K$1,\"1\",\"0\")))","v":""},{"$error":"#VALUE!"},{"$f":"IF(OR(รายชื่อนักเรียน!F17=\"ย้าย\",M17=\"\"),\"\",IF(M17=\"0\",\"\",IF(M17=2,\"ผ่าน\",\"ไม่ผ่าน\")))","v":{"$error":"#VALUE!"}}]
[null,{"$f":"รายชื่อนักเรียน!B18","v":0},{"$f":"IF(รายชื่อนักเรียน!C18=\"\",\"\",รายชื่อนักเรียน!C18)","v":""},{"$f":"IF(รายชื่อนักเรียน!E18=\"\",\"\",รายชื่อนักเรียน!E18)","v":""},null,{"$f":"สรุปเวลาการเข้าร่วมกิจกรรม!S19","v":""},{"$f":"IF(OR(รายชื่อนักเรียน!F18=\"ย้าย\",F18=\"\"),\"\",(ประเมินจุดประสงค์การเรียนรู้!Q20))","v":""},"",{"$f":"IF(รายชื่อนักเรียน!$F18=\"\",\"\",รายชื่อนักเรียน!$F18)","v":""},null,{"$f":"IF(OR(รายชื่อนักเรียน!F18=\"ย้าย\",F18=\"\"),\"\",IF(F18=\"0\",\"\",IF(F18=$K$1,\"1\",\"0\")))","v":""},{"$f":"IF(OR(รายชื่อนักเรียน!F18=\"ย้าย\",G18=\"\"),\"\",IF(G18=\"0\",\"\",IF(G18=$K$1,\"1\",\"0\")))","v":""},{"$error":"#VALUE!"},{"$f":"IF(OR(รายชื่อนักเรียน!F18=\"ย้าย\",M18=\"\"),\"\",IF(M18=\"0\",\"\",IF(M18=2,\"ผ่าน\",\"ไม่ผ่าน\")))","v":{"$error":"#VALUE!"}}]
[null,{"$f":"รายชื่อนักเรียน!B19","v":0},{"$f":"IF(รายชื่อนักเรียน!C19=\"\",\"\",รายชื่อนักเรียน!C19)","v":""},{"$f":"IF(รายชื่อนักเรียน!E19=\"\",\"\",รายชื่อนักเรียน!E19)","v":""},null,{"$f":"สรุปเวลาการเข้าร่วมกิจกรรม!S20","v":""},{"$f":"IF(OR(รายชื่อนักเรียน!F19=\"ย้าย\",F19=\"\"),\"\",(ประเมินจุดประสงค์การเรียนรู้!Q21))","v":""},"",{"$f":"IF(รายชื่อนักเรียน!$F19=\"\",\"\",รายชื่อนักเรียน!$F19)","v":""},null,{"$f":"IF(OR(รายชื่อนักเรียน!F19=\"ย้าย\",F19=\"\"),\"\",IF(F19=\"0\",\"\",IF(F19=$K$1,\"1\",\"0\")))","v":""},{"$f":"IF(OR(รายชื่อนักเรียน!F19=\"ย้าย\",G19=\"\"),\"\",IF(G19=\"0\",\"\",IF(G19=$K$1,\"1\",\"0\")))","v":""},{"$error":"#VALUE!"},{"$f":"IF(OR(รายชื่อนักเรียน!F19=\"ย้าย\",M19=\"\"),\"\",IF(M19=\"0\",\"\",IF(M19=2,\"ผ่าน\",\"ไม่ผ่าน\")))","v":{"$error":"#VALUE!"}}]
[null,{"$f":"รายชื่อนักเรียน!B20","v":0},{"$f":"IF(รายชื่อนักเรียน!C20=\"\",\"\",รายชื่อนักเรียน!C20)","v":""},{"$f":"IF(รายชื่อนักเรียน!E20=\"\",\"\",รายชื่อนักเรียน!E20)","v":""},null,{"$f":"สรุปเวลาการเข้าร่วมกิจกรรม!S21","v":""},{"$f":"IF(OR(รายชื่อนักเรียน!F20=\"ย้าย\",F20=\"\"),\"\",(ประเมินจุดประสงค์การเรียนรู้!Q22))","v":""},"",{"$f":"IF(รายชื่อนักเรียน!$F20=\"\",\"\",รายชื่อนักเรียน!$F20)","v":""},null,{"$f":"IF(OR(รายชื่อนักเรียน!F20=\"ย้าย\",F20=\"\"),\"\",IF(F20=\"0\",\"\",IF(F20=$K$1,\"1\",\"0\")))","v":""},{"$f":"IF(OR(รายชื่อนักเรียน!F20=\"ย้าย\",G20=\"\"),\"\",IF(G20=\"0\",\"\",IF(G20=$K$1,\"1\",\"0\")))","v":""},{"$error":"#VALUE!"},{"$f":"IF(OR(รายชื่อนักเรียน!F20=\"ย้าย\",M20=\"\"),\"\",IF(M20=\"0\",\"\",IF(M20=2,\"ผ่าน\",\"ไม่ผ่าน\")))","v":{"$error":"#VALUE!"}}]
[null,{"$f":"รายชื่อนักเรียน!B21","v":0},{"$f":"IF(รายชื่อนักเรียน!C21=\"\",\"\",รายชื่อนักเรียน!C21)","v":""},{"$f":"IF(รายชื่อนักเรียน!E21=\"\",\"\",รายชื่อนักเรียน!E21)","v":""},null,{"$f":"สรุปเวลาการเข้าร่วมกิจกรรม!S22","v":""},{"$f":"IF(OR(รายชื่อนักเรียน!F21=\"ย้าย\",F21=\"\"),\"\",(ประเมินจุดประสงค์การเรียนรู้!Q23))","v":""},"",{"$f":"IF(รายชื่อนักเรียน!$F21=\"\",\"\",รายชื่อนักเรียน!$F21)","v":""},null,{"$f":"IF(OR(รายชื่อนักเรียน!F21=\"ย้าย\",F21=\"\"),\"\",IF(F21=\"0\",\"\",IF(F21=$K$1,\"1\",\"0\")))","v":""},{"$f":"IF(OR(รายชื่อนักเรียน!F21=\"ย้าย\",G21=\"\"),\"\",IF(G21=\"0\",\"\",IF(G21=$K$1,\"1\",\"0\")))","v":""},{"$error":"#VALUE!"},{"$f":"IF(OR(รายชื่อนักเรียน!F21=\"ย้าย\",M21=\"\"),\"\",IF(M21=\"0\",\"\",IF(M21=2,\"ผ่าน\",\"ไม่ผ่าน\")))","v":{"$error":"#VALUE!"}}]
[null,{"$f":"รายชื่อนักเรียน!B22","v":0},{"$f":"IF(รายชื่อนักเรียน!C22=\"\",\"\",รายชื่อนักเรียน!C22)","v":""},{"$f":"IF(รายชื่อนักเรียน!E22=\"\",\"\",รายชื่อนักเรียน!E22)","v":""},null,{"$f":"สรุปเวลาการเข้าร่วมกิจกรรม!S23","v":""},{"$f":"IF(OR(รายชื่อนักเรียน!F22=\"ย้าย\",F22=\"\"),\"\",(ประเมินจุดประสงค์การเรียนรู้!Q24))","v":""},"",{"$f":"IF(รายชื่อนักเรียน!$F22=\"\",\"\",รายชื่อนักเรียน!$F22)","v":""},null,{"$f":"IF(OR(รายชื่อนักเรียน!F22=\"ย้าย\",F22=\"\"),\"\",IF(F22=\"0\",\"\",IF(F22=$K$1,\"1\",\"0\")))","v":""},{"$f":"IF(OR(รายชื่อนักเรียน!F22=\"ย้าย\",G22=\"\"),\"\",IF(G22=\"0\",\"\",IF(G22=$K$1,\"1\",\"0\")))","v":""},{"$error":"#VALUE!"},{"$f":"IF(OR(รายชื่อนักเรียน!F22=\"ย้าย\",M22=\"\"),\"\",IF(M22=\"0\",\"\",IF(M22=2,\"ผ่าน\",\"ไม่ผ่าน\")))","v":{"$error":"#VALUE!"}}]
[null,{"$f":"รายชื่อนักเรียน!B23","v":0},{"$f":"IF(รายชื่อนักเรียน!C23=\"\",\"\",รายชื่อนักเรียน!C23)","v":""},{"$f":"IF(รายชื่อนักเรียน!E23=\"\",\"\",รายชื่อนักเรียน!E23)","v":""},null,{"$f":"สรุปเวลาการเข้าร่วมกิจกรรม!S24","v":""},{"$f":"IF(OR(รายชื่อนักเรียน!F23=\"ย้าย\",F23=\"\"),\"\",(ประเมินจุดประสงค์การเรียนรู้!Q25))","v":""},"",{"$f":"IF(รายชื่อนักเรียน!$F23=\"\",\"\",รายชื่อนักเรียน!$F23)","v":""},null,{"$f":"IF(OR(รายชื่อนักเรียน!F23=\"ย้าย\",F23=\"\"),\"\",IF(F23=\"0\",\"\",IF(F23=$K$1,\"1\",\"0\")))","v":""},{"$f":"IF(OR(รายชื่อนักเรียน!F23=\"ย้าย\",G23=\"\"),\"\",IF(G23=\"0\",\"\",IF(G23=$K$1,\"1\",\"0\")))","v":""},{"$error":"#VALUE!"},{"$f":"IF(OR(รายชื่อนักเรียน!F23=\"ย้าย\",M23=\"\"),\"\",IF(M23=\"0\",\"\",IF(M23=2,\"ผ่าน\",\"ไม่ผ่าน\")))","v":{"$error":"#VALUE!"}}]
[null,{"$f":"รายชื่อนักเรียน!B24","v":0},{"$f":"IF(รายชื่อนักเรียน!C24=\"\",\"\",รายชื่อนักเรียน!C24)","v":""},{"$f":"IF(รายชื่อนักเรียน!E24=\"\",\"\",รายชื่อนักเรียน!E24)","v":""},null,{"$f":"สรุปเวลาการเข้าร่วมกิจกรรม!S25","v":""},{"$f":"IF(OR(รายชื่อนักเรียน!F24=\"ย้าย\",F24=\"\"),\"\",(ประเมินจุดประสงค์การเรียนรู้!Q26))","v":""},"",{"$f":"IF(รายชื่อนักเรียน!$F24=\"\",\"\",รายชื่อนักเรียน!$F24)","v":""},null,{"$f":"IF(OR(รายชื่อนักเรียน!F24=\"ย้าย\",F24=\"\"),\"\",IF(F24=\"0\",\"\",IF(F24=$K$1,\"1\",\"0\")))","v":""},{"$f":"IF(OR(รายชื่อนักเรียน!F24=\"ย้าย\",G24=\"\"),\"\",IF(G24=\"0\",\"\",IF(G24=$K$1,\"1\",\"0\")))","v":""},{"$error":"#VALUE!"},{"$f":"IF(OR(รายชื่อนักเรียน!F24=\"ย้าย\",M24=\"\"),\"\",IF(M24=\"0\",\"\",IF(M24=2,\"ผ่าน\",\"ไม่ผ่าน\")))","v":{"$error":"#VALUE!"}}]
[null,{"$f":"รายชื่อนักเรียน!B25","v":0},{"$f":"IF(รายชื่อนักเรียน!C25=\"\",\"\",รายชื่อนักเรียน!C25)","v":""},{"$f":"IF(รายชื่อนักเรียน!E25=\"\",\"\",รายชื่อนักเรียน!E25)","v":""},null,{"$f":"สรุปเวลาการเข้าร่วมกิจกรรม!S26","v":""},{"$f":"IF(OR(รายชื่อนักเรียน!F25=\"ย้าย\",F25=\"\"),\"\",(ประเมินจุดประสงค์การเรียนรู้!Q27))","v":""},"",{"$f":"IF(รายชื่อนักเรียน!$F25=\"\",\"\",รายชื่อนักเรียน!$F25)","v":""},null,{"$f":"IF(OR(รายชื่อนักเรียน!F25=\"ย้าย\",F25=\"\"),\"\",IF(F25=\"0\",\"\",IF(F25=$K$1,\"1\",\"0\")))","v":""},{"$f":"IF(OR(รายชื่อนักเรียน!F25=\"ย้าย\",G25=\"\"),\"\",IF(G25=\"0\",\"\",IF(G25=$K$1,\"1\",\"0\")))","v":""},{"$error":"#VALUE!"},{"$f":"IF(OR(รายชื่อนักเรียน!F25=\"ย้าย\",M25=\"\"),\"\",IF(M25=\"0\",\"\",IF(M25=2,\"ผ่าน\",\"ไม่ผ่าน\")))","v":{"$error":"#VALUE!"}}]
[null,{"$f":"รายชื่อนักเรียน!B26","v":0},{"$f":"IF(รายชื่อนักเรียน!C26=\"\",\"\",รายชื่อนักเรียน!C26)","v":""},{"$f":"IF(รายชื่อนักเรียน!E26=\"\",\"\",รายชื่อนักเรียน!E26)","v":""},null,{"$f":"สรุปเวลาการเข้าร่วมกิจกรรม!S27","v":""},{"$f":"IF(OR(รายชื่อนักเรียน!F26=\"ย้าย\",F26=\"\"),\"\",(ประเมินจุดประสงค์การเรียนรู้!Q28))","v":""},"",{"$f":"IF(รายชื่อนักเรียน!$F26=\"\",\"\",รายชื่อนักเรียน!$F26)","v":""},null,{"$f":"IF(OR(รายชื่อนักเรียน!F26=\"ย้าย\",F26=\"\"),\"\",IF(F26=\"0\",\"\",IF(F26=$K$1,\"1\",\"0\")))","v":""},{"$f":"IF(OR(รายชื่อนักเรียน!F26=\"ย้าย\",G26=\"\"),\"\",IF(G26=\"0\",\"\",IF(G26=$K$1,\"1\",\"0\")))","v":""},{"$error":"#VALUE!"},{"$f":"IF(OR(รายชื่อนักเรียน!F26=\"ย้าย\",M26=\"\"),\"\",IF(M26=\"0\",\"\",IF(M26=2,\"ผ่าน\",\"ไม่ผ่าน\")))","v":{"$error":"#VALUE!"}}]
[null,{"$f":"รายชื่อนักเรียน!B27","v":0},{"$f":"IF(รายชื่อนักเรียน!C27=\"\",\"\",รายชื่อนักเรียน!C27)","v":""},{"$f":"IF(รายชื่อนักเรียน!E27=\"\",\"\",รายชื่อนักเรียน!E27)","v":""},null,{"$f":"สรุปเวลาการเข้าร่วมกิจกรรม!S28","v":""},{"$f":"IF(OR(รายชื่อนักเรียน!F27=\"ย้าย\",F27=\"\"),\"\",(ประเมินจุดประสงค์การเรียนรู้!Q29))","v":""},"",{"$f":"IF(รายชื่อนักเรียน!$F27=\"\",\"\",รายชื่อนักเรียน!$F27)","v":""},null,{"$f":"IF(OR(รายชื่อนักเรียน!F27=\"ย้าย\",F27=\"\"),\"\",IF(F27=\"0\",\"\",IF(F27=$K$1,\"1\",\"0\")))","v":""},{"$f":"IF(OR(รายชื่อนักเรียน!F27=\"ย้าย\",G27=\"\"),\"\",IF(G27=\"0\",\"\",IF(G27=$K$1,\"1\",\"0\")))","v":""},{"$error":"#VALUE!"},{"$f":"IF(OR(รายชื่อนักเรียน!F27=\"ย้าย\",M27=\"\"),\"\",IF(M27=\"0\",\"\",IF(M27=2,\"ผ่าน\",\"ไม่ผ่าน\")))","v":{"$error":"#VALUE!"}}]
[null,{"$f":"รายชื่อนักเรียน!B28","v":0},{"$f":"IF(รายชื่อนักเรียน!C28=\"\",\"\",รายชื่อนักเรียน!C28)","v":""},{"$f":"IF(รายชื่อนักเรียน!E28=\"\",\"\",รายชื่อนักเรียน!E28)","v":""},null,{"$f":"สรุปเวลาการเข้าร่วมกิจกรรม!S29","v":""},{"$f":"IF(OR(รายชื่อนักเรียน!F28=\"ย้าย\",F28=\"\"),\"\",(ประเมินจุดประสงค์การเรียนรู้!Q30))","v":""},"",{"$f":"IF(รายชื่อนักเรียน!$F28=\"\",\"\",รายชื่อนักเรียน!$F28)","v":""},null,{"$f":"IF(OR(รายชื่อนักเรียน!F28=\"ย้าย\",F28=\"\"),\"\",IF(F28=\"0\",\"\",IF(F28=$K$1,\"1\",\"0\")))","v":""},{"$f":"IF(OR(รายชื่อนักเรียน!F28=\"ย้าย\",G28=\"\"),\"\",IF(G28=\"0\",\"\",IF(G28=$K$1,\"1\",\"0\")))","v":""},{"$error":"#VALUE!"},{"$f":"IF(OR(รายชื่อนักเรียน!F28=\"ย้าย\",M28=\"\"),\"\",IF(M28=\"0\",\"\",IF(M28=2,\"ผ่าน\",\"ไม่ผ่าน\")))","v":{"$error":"#VALUE!"}}]
[null,{"$f":"รายชื่อนักเรียน!B29","v":0},{"$f":"IF(รายชื่อนักเรียน!C29=\"\",\"\",รายชื่อนักเรียน!C29)","v":""},{"$f":"IF(รายชื่อนักเรียน!E29=\"\",\"\",รายชื่อนักเรียน!E29)","v":""},null,{"$f":"สรุปเวลาการเข้าร่วมกิจกรรม!S30","v":""},{"$f":"IF(OR(รายชื่อนักเรียน!F29=\"ย้าย\",F29=\"\"),\"\",(ประเมินจุดประสงค์การเรียนรู้!Q31))","v":""},"",{"$f":"IF(รายชื่อนักเรียน!$F29=\"\",\"\",รายชื่อนักเรียน!$F29)","v":""},null,{"$f":"IF(OR(รายชื่อนักเรียน!F29=\"ย้าย\",F29=\"\"),\"\",IF(F29=\"0\",\"\",IF(F29=$K$1,\"1\",\"0\")))","v":""},{"$f":"IF(OR(รายชื่อนักเรียน!F29=\"ย้าย\",G29=\"\"),\"\",IF(G29=\"0\",\"\",IF(G29=$K$1,\"1\",\"0\")))","v":""},{"$error":"#VALUE!"},{"$f":"IF(OR(รายชื่อนักเรียน!F29=\"ย้าย\",M29=\"\"),\"\",IF(M29=\"0\",\"\",IF(M29=2,\"ผ่าน\",\"ไม่ผ่าน\")))","v":{"$error":"#VALUE!"}}]
[null,{"$f":"รายชื่อนักเรียน!B30","v":0},{"$f":"IF(รายชื่อนักเรียน!C30=\"\",\"\",รายชื่อนักเรียน!C30)","v":""},{"$f":"IF(รายชื่อนักเรียน!E30=\"\",\"\",รายชื่อนักเรียน!E30)","v":""},null,{"$f":"สรุปเวลาการเข้าร่วมกิจกรรม!S31","v":""},{"$f":"IF(OR(รายชื่อนักเรียน!F30=\"ย้าย\",F30=\"\"),\"\",(ประเมินจุดประสงค์การเรียนรู้!Q32))","v":""},"",{"$f":"IF(รายชื่อนักเรียน!$F30=\"\",\"\",รายชื่อนักเรียน!$F30)","v":""},null,{"$f":"IF(OR(รายชื่อนักเรียน!F30=\"ย้าย\",F30=\"\"),\"\",IF(F30=\"0\",\"\",IF(F30=$K$1,\"1\",\"0\")))","v":""},{"$f":"IF(OR(รายชื่อนักเรียน!F30=\"ย้าย\",G30=\"\"),\"\",IF(G30=\"0\",\"\",IF(G30=$K$1,\"1\",\"0\")))","v":""},{"$error":"#VALUE!"},{"$f":"IF(OR(รายชื่อนักเรียน!F30=\"ย้าย\",M30=\"\"),\"\",IF(M30=\"0\",\"\",IF(M30=2,\"ผ่าน\",\"ไม่ผ่าน\")))","v":{"$error":"#VALUE!"}}]
[null,{"$f":"รายชื่อนักเรียน!B31","v":0},{"$f":"IF(รายชื่อนักเรียน!C31=\"\",\"\",รายชื่อนักเรียน!C31)","v":""},{"$f":"IF(รายชื่อนักเรียน!E31=\"\",\"\",รายชื่อนักเรียน!E31)","v":""},null,{"$f":"สรุปเวลาการเข้าร่วมกิจกรรม!S32","v":""},{"$f":"IF(OR(รายชื่อนักเรียน!F31=\"ย้าย\",F31=\"\"),\"\",(ประเมินจุดประสงค์การเรียนรู้!Q33))","v":""},"",{"$f":"IF(รายชื่อนักเรียน!$F31=\"\",\"\",รายชื่อนักเรียน!$F31)","v":""},null,{"$f":"IF(OR(รายชื่อนักเรียน!F31=\"ย้าย\",F31=\"\"),\"\",IF(F31=\"0\",\"\",IF(F31=$K$1,\"1\",\"0\")))","v":""},{"$f":"IF(OR(รายชื่อนักเรียน!F31=\"ย้าย\",G31=\"\"),\"\",IF(G31=\"0\",\"\",IF(G31=$K$1,\"1\",\"0\")))","v":""},{"$error":"#VALUE!"},{"$f":"IF(OR(รายชื่อนักเรียน!F31=\"ย้าย\",M31=\"\"),\"\",IF(M31=\"0\",\"\",IF(M31=2,\"ผ่าน\",\"ไม่ผ่าน\")))","v":{"$error":"#VALUE!"}}]
[null,{"$f":"รายชื่อนักเรียน!B32","v":0},{"$f":"IF(รายชื่อนักเรียน!C32=\"\",\"\",รายชื่อนักเรียน!C32)","v":""},{"$f":"IF(รายชื่อนักเรียน!E32=\"\",\"\",รายชื่อนักเรียน!E32)","v":""},null,{"$f":"สรุปเวลาการเข้าร่วมกิจกรรม!S33","v":""},{"$f":"IF(OR(รายชื่อนักเรียน!F32=\"ย้าย\",F32=\"\"),\"\",(ประเมินจุดประสงค์การเรียนรู้!Q34))","v":""},"",{"$f":"IF(รายชื่อนักเรียน!$F32=\"\",\"\",รายชื่อนักเรียน!$F32)","v":""},null,{"$f":"IF(OR(รายชื่อนักเรียน!F32=\"ย้าย\",F32=\"\"),\"\",IF(F32=\"0\",\"\",IF(F32=$K$1,\"1\",\"0\")))","v":""},{"$f":"IF(OR(รายชื่อนักเรียน!F32=\"ย้าย\",G32=\"\"),\"\",IF(G32=\"0\",\"\",IF(G32=$K$1,\"1\",\"0\")))","v":""},{"$error":"#VALUE!"},{"$f":"IF(OR(รายชื่อนักเรียน!F32=\"ย้าย\",M32=\"\"),\"\",IF(M32=\"0\",\"\",IF(M32=2,\"ผ่าน\",\"ไม่ผ่าน\")))","v":{"$error":"#VALUE!"}}]
[null,{"$f":"รายชื่อนักเรียน!B33","v":0},{"$f":"IF(รายชื่อนักเรียน!C33=\"\",\"\",รายชื่อนักเรียน!C33)","v":""},{"$f":"IF(รายชื่อนักเรียน!E33=\"\",\"\",รายชื่อนักเรียน!E33)","v":""},null,{"$f":"สรุปเวลาการเข้าร่วมกิจกรรม!S34","v":""},{"$f":"IF(OR(รายชื่อนักเรียน!F33=\"ย้าย\",F33=\"\"),\"\",(ประเมินจุดประสงค์การเรียนรู้!Q35))","v":""},"",{"$f":"IF(รายชื่อนักเรียน!$F33=\"\",\"\",รายชื่อนักเรียน!$F33)","v":""},null,{"$f":"IF(OR(รายชื่อนักเรียน!F33=\"ย้าย\",F33=\"\"),\"\",IF(F33=\"0\",\"\",IF(F33=$K$1,\"1\",\"0\")))","v":""},{"$f":"IF(OR(รายชื่อนักเรียน!F33=\"ย้าย\",G33=\"\"),\"\",IF(G33=\"0\",\"\",IF(G33=$K$1,\"1\",\"0\")))","v":""},{"$error":"#VALUE!"},{"$f":"IF(OR(รายชื่อนักเรียน!F33=\"ย้าย\",M33=\"\"),\"\",IF(M33=\"0\",\"\",IF(M33=2,\"ผ่าน\",\"ไม่ผ่าน\")))","v":{"$error":"#VALUE!"}}]
[null,{"$f":"รายชื่อนักเรียน!B34","v":0},{"$f":"IF(รายชื่อนักเรียน!C34=\"\",\"\",รายชื่อนักเรียน!C34)","v":""},{"$f":"IF(รายชื่อนักเรียน!E34=\"\",\"\",รายชื่อนักเรียน!E34)","v":""},null,{"$f":"สรุปเวลาการเข้าร่วมกิจกรรม!S35","v":""},{"$f":"IF(OR(รายชื่อนักเรียน!F34=\"ย้าย\",F34=\"\"),\"\",(ประเมินจุดประสงค์การเรียนรู้!Q36))","v":""},"",{"$f":"IF(รายชื่อนักเรียน!$F34=\"\",\"\",รายชื่อนักเรียน!$F34)","v":""},null,{"$f":"IF(OR(รายชื่อนักเรียน!F34=\"ย้าย\",F34=\"\"),\"\",IF(F34=\"0\",\"\",IF(F34=$K$1,\"1\",\"0\")))","v":""},{"$f":"IF(OR(รายชื่อนักเรียน!F34=\"ย้าย\",G34=\"\"),\"\",IF(G34=\"0\",\"\",IF(G34=$K$1,\"1\",\"0\")))","v":""},{"$error":"#VALUE!"},{"$f":"IF(OR(รายชื่อนักเรียน!F34=\"ย้าย\",M34=\"\"),\"\",IF(M34=\"0\",\"\",IF(M34=2,\"ผ่าน\",\"ไม่ผ่าน\")))","v":{"$error":"#VALUE!"}}]
[null,{"$f":"รายชื่อนักเรียน!B35","v":0},{"$f":"IF(รายชื่อนักเรียน!C35=\"\",\"\",รายชื่อนักเรียน!C35)","v":""},{"$f":"IF(รายชื่อนักเรียน!E35=\"\",\"\",รายชื่อนักเรียน!E35)","v":""},null,{"$f":"สรุปเวลาการเข้าร่วมกิจกรรม!S36","v":""},{"$f":"IF(OR(รายชื่อนักเรียน!F35=\"ย้าย\",F35=\"\"),\"\",(ประเมินจุดประสงค์การเรียนรู้!Q37))","v":""},"",{"$f":"IF(รายชื่อนักเรียน!$F35=\"\",\"\",รายชื่อนักเรียน!$F35)","v":""},null,{"$f":"IF(OR(รายชื่อนักเรียน!F35=\"ย้าย\",F35=\"\"),\"\",IF(F35=\"0\",\"\",IF(F35=$K$1,\"1\",\"0\")))","v":""},{"$f":"IF(OR(รายชื่อนักเรียน!F35=\"ย้าย\",G35=\"\"),\"\",IF(G35=\"0\",\"\",IF(G35=$K$1,\"1\",\"0\")))","v":""},{"$error":"#VALUE!"},{"$f":"IF(OR(รายชื่อนักเรียน!F35=\"ย้าย\",M35=\"\"),\"\",IF(M35=\"0\",\"\",IF(M35=2,\"ผ่าน\",\"ไม่ผ่าน\")))","v":{"$error":"#VALUE!"}}]
[null,{"$f":"รายชื่อนักเรียน!B36","v":0},{"$f":"IF(รายชื่อนักเรียน!C36=\"\",\"\",รายชื่อนักเรียน!C36)","v":""},{"$f":"IF(รายชื่อนักเรียน!E36=\"\",\"\",รายชื่อนักเรียน!E36)","v":""},null,{"$f":"สรุปเวลาการเข้าร่วมกิจกรรม!S37","v":""},{"$f":"IF(OR(รายชื่อนักเรียน!F36=\"ย้าย\",F36=\"\"),\"\",(ประเมินจุดประสงค์การเรียนรู้!Q38))","v":""},"",{"$f":"IF(รายชื่อนักเรียน!$F36=\"\",\"\",รายชื่อนักเรียน!$F36)","v":""},null,{"$f":"IF(OR(รายชื่อนักเรียน!F36=\"ย้าย\",F36=\"\"),\"\",IF(F36=\"0\",\"\",IF(F36=$K$1,\"1\",\"0\")))","v":""},{"$f":"IF(OR(รายชื่อนักเรียน!F36=\"ย้าย\",G36=\"\"),\"\",IF(G36=\"0\",\"\",IF(G36=$K$1,\"1\",\"0\")))","v":""},{"$error":"#VALUE!"},{"$f":"IF(OR(รายชื่อนักเรียน!F36=\"ย้าย\",M36=\"\"),\"\",IF(M36=\"0\",\"\",IF(M36=2,\"ผ่าน\",\"ไม่ผ่าน\")))","v":{"$error":"#VALUE!"}}]
[null,{"$f":"รายชื่อนักเรียน!B37","v":0},{"$f":"IF(รายชื่อนักเรียน!C37=\"\",\"\",รายชื่อนักเรียน!C37)","v":""},{"$f":"IF(รายชื่อนักเรียน!E37=\"\",\"\",รายชื่อนักเรียน!E37)","v":""},null,{"$f":"สรุปเวลาการเข้าร่วมกิจกรรม!S38","v":""},{"$f":"IF(OR(รายชื่อนักเรียน!F37=\"ย้าย\",F37=\"\"),\"\",(ประเมินจุดประสงค์การเรียนรู้!Q39))","v":""},"",{"$f":"IF(รายชื่อนักเรียน!$F37=\"\",\"\",รายชื่อนักเรียน!$F37)","v":""},null,{"$f":"IF(OR(รายชื่อนักเรียน!F37=\"ย้าย\",F37=\"\"),\"\",IF(F37=\"0\",\"\",IF(F37=$K$1,\"1\",\"0\")))","v":""},{"$f":"IF(OR(รายชื่อนักเรียน!F37=\"ย้าย\",G37=\"\"),\"\",IF(G37=\"0\",\"\",IF(G37=$K$1,\"1\",\"0\")))","v":""},{"$error":"#VALUE!"},{"$f":"IF(OR(รายชื่อนักเรียน!F37=\"ย้าย\",M37=\"\"),\"\",IF(M37=\"0\",\"\",IF(M37=2,\"ผ่าน\",\"ไม่ผ่าน\")))","v":{"$error":"#VALUE!"}}]
[null,{"$f":"รายชื่อนักเรียน!B38","v":0},{"$f":"IF(รายชื่อนักเรียน!C38=\"\",\"\",รายชื่อนักเรียน!C38)","v":""},{"$f":"IF(รายชื่อนักเรียน!E38=\"\",\"\",รายชื่อนักเรียน!E38)","v":""},null,{"$f":"สรุปเวลาการเข้าร่วมกิจกรรม!S39","v":""},{"$f":"IF(OR(รายชื่อนักเรียน!F38=\"ย้าย\",F38=\"\"),\"\",(ประเมินจุดประสงค์การเรียนรู้!Q40))","v":""},"",{"$f":"IF(รายชื่อนักเรียน!$F38=\"\",\"\",รายชื่อนักเรียน!$F38)","v":""},null,{"$f":"IF(OR(รายชื่อนักเรียน!F38=\"ย้าย\",F38=\"\"),\"\",IF(F38=\"0\",\"\",IF(F38=$K$1,\"1\",\"0\")))","v":""},{"$f":"IF(OR(รายชื่อนักเรียน!F38=\"ย้าย\",G38=\"\"),\"\",IF(G38=\"0\",\"\",IF(G38=$K$1,\"1\",\"0\")))","v":""},{"$error":"#VALUE!"},{"$f":"IF(OR(รายชื่อนักเรียน!F38=\"ย้าย\",M38=\"\"),\"\",IF(M38=\"0\",\"\",IF(M38=2,\"ผ่าน\",\"ไม่ผ่าน\")))","v":{"$error":"#VALUE!"}}]
[null,{"$f":"รายชื่อนักเรียน!B39","v":0},{"$f":"IF(รายชื่อนักเรียน!C39=\"\",\"\",รายชื่อนักเรียน!C39)","v":""},{"$f":"IF(รายชื่อนักเรียน!E39=\"\",\"\",รายชื่อนักเรียน!E39)","v":""},null,{"$f":"สรุปเวลาการเข้าร่วมกิจกรรม!S40","v":""},{"$f":"IF(OR(รายชื่อนักเรียน!F39=\"ย้าย\",F39=\"\"),\"\",(ประเมินจุดประสงค์การเรียนรู้!Q41))","v":""},"",{"$f":"IF(รายชื่อนักเรียน!$F39=\"\",\"\",รายชื่อนักเรียน!$F39)","v":""},null,{"$f":"IF(OR(รายชื่อนักเรียน!F39=\"ย้าย\",F39=\"\"),\"\",IF(F39=\"0\",\"\",IF(F39=$K$1,\"1\",\"0\")))","v":""},{"$f":"IF(OR(รายชื่อนักเรียน!F39=\"ย้าย\",G39=\"\"),\"\",IF(G39=\"0\",\"\",IF(G39=$K$1,\"1\",\"0\")))","v":""},{"$error":"#VALUE!"},{"$f":"IF(OR(รายชื่อนักเรียน!F39=\"ย้าย\",M39=\"\"),\"\",IF(M39=\"0\",\"\",IF(M39=2,\"ผ่าน\",\"ไม่ผ่าน\")))","v":{"$error":"#VALUE!"}}]
[null,{"$f":"รายชื่อนักเรียน!B40","v":0},{"$f":"IF(รายชื่อนักเรียน!C40=\"\",\"\",รายชื่อนักเรียน!C40)","v":""},{"$f":"IF(รายชื่อนักเรียน!E40=\"\",\"\",รายชื่อนักเรียน!E40)","v":""},null,{"$f":"สรุปเวลาการเข้าร่วมกิจกรรม!S41","v":""},{"$f":"IF(OR(รายชื่อนักเรียน!F40=\"ย้าย\",F40=\"\"),\"\",(ประเมินจุดประสงค์การเรียนรู้!Q42))","v":""},"",{"$f":"IF(รายชื่อนักเรียน!$F40=\"\",\"\",รายชื่อนักเรียน!$F40)","v":""},null,{"$f":"IF(OR(รายชื่อนักเรียน!F40=\"ย้าย\",F40=\"\"),\"\",IF(F40=\"0\",\"\",IF(F40=$K$1,\"1\",\"0\")))","v":""},{"$f":"IF(OR(รายชื่อนักเรียน!F40=\"ย้าย\",G40=\"\"),\"\",IF(G40=\"0\",\"\",IF(G40=$K$1,\"1\",\"0\")))","v":""},{"$error":"#VALUE!"},{"$f":"IF(OR(รายชื่อนักเรียน!F40=\"ย้าย\",M40=\"\"),\"\",IF(M40=\"0\",\"\",IF(M40=2,\"ผ่าน\",\"ไม่ผ่าน\")))","v":{"$error":"#VALUE!"}}]
[null,{"$f":"รายชื่อนักเรียน!B41","v":0},{"$f":"IF(รายชื่อนักเรียน!C41=\"\",\"\",รายชื่อนักเรียน!C41)","v":""},{"$f":"IF(รายชื่อนักเรียน!E41=\"\",\"\",รายชื่อนักเรียน!E41)","v":""},null,{"$f":"สรุปเวลาการเข้าร่วมกิจกรรม!S42","v":""},{"$f":"IF(OR(รายชื่อนักเรียน!F41=\"ย้าย\",F41=\"\"),\"\",(ประเมินจุดประสงค์การเรียนรู้!Q43))","v":""},"",{"$f":"IF(รายชื่อนักเรียน!$F41=\"\",\"\",รายชื่อนักเรียน!$F41)","v":""},null,{"$f":"IF(OR(รายชื่อนักเรียน!F41=\"ย้าย\",F41=\"\"),\"\",IF(F41=\"0\",\"\",IF(F41=$K$1,\"1\",\"0\")))","v":""},{"$f":"IF(OR(รายชื่อนักเรียน!F41=\"ย้าย\",G41=\"\"),\"\",IF(G41=\"0\",\"\",IF(G41=$K$1,\"1\",\"0\")))","v":""},{"$error":"#VALUE!"},{"$f":"IF(OR(รายชื่อนักเรียน!F41=\"ย้าย\",M41=\"\"),\"\",IF(M41=\"0\",\"\",IF(M41=2,\"ผ่าน\",\"ไม่ผ่าน\")))","v":{"$error":"#VALUE!"}}]
[null,{"$f":"รายชื่อนักเรียน!B42","v":0},{"$f":"IF(รายชื่อนักเรียน!C42=\"\",\"\",รายชื่อนักเรียน!C42)","v":""},{"$f":"IF(รายชื่อนักเรียน!E42=\"\",\"\",รายชื่อนักเรียน!E42)","v":""},null,{"$f":"สรุปเวลาการเข้าร่วมกิจกรรม!S43","v":""},{"$f":"IF(OR(รายชื่อนักเรียน!F42=\"ย้าย\",F42=\"\"),\"\",(ประเมินจุดประสงค์การเรียนรู้!Q44))","v":""},"",{"$f":"IF(รายชื่อนักเรียน!$F42=\"\",\"\",รายชื่อนักเรียน!$F42)","v":""},null,{"$f":"IF(OR(รายชื่อนักเรียน!F42=\"ย้าย\",F42=\"\"),\"\",IF(F42=\"0\",\"\",IF(F42=$K$1,\"1\",\"0\")))","v":""},{"$f":"IF(OR(รายชื่อนักเรียน!F42=\"ย้าย\",G42=\"\"),\"\",IF(G42=\"0\",\"\",IF(G42=$K$1,\"1\",\"0\")))","v":""},{"$error":"#VALUE!"},{"$f":"IF(OR(รายชื่อนักเรียน!F42=\"ย้าย\",M42=\"\"),\"\",IF(M42=\"0\",\"\",IF(M42=2,\"ผ่าน\",\"ไม่ผ่าน\")))","v":{"$error":"#VALUE!"}}]
[null,{"$f":"รายชื่อนักเรียน!B43","v":0},{"$f":"IF(รายชื่อนักเรียน!C43=\"\",\"\",รายชื่อนักเรียน!C43)","v":""},{"$f":"IF(รายชื่อนักเรียน!E43=\"\",\"\",รายชื่อนักเรียน!E43)","v":""},null,{"$f":"สรุปเวลาการเข้าร่วมกิจกรรม!S44","v":""},{"$f":"IF(OR(รายชื่อนักเรียน!F43=\"ย้าย\",F43=\"\"),\"\",(ประเมินจุดประสงค์การเรียนรู้!Q45))","v":""},"",{"$f":"IF(รายชื่อนักเรียน!$F43=\"\",\"\",รายชื่อนักเรียน!$F43)","v":""},null,{"$f":"IF(OR(รายชื่อนักเรียน!F43=\"ย้าย\",F43=\"\"),\"\",IF(F43=\"0\",\"\",IF(F43=$K$1,\"1\",\"0\")))","v":""},{"$f":"IF(OR(รายชื่อนักเรียน!F43=\"ย้าย\",G43=\"\"),\"\",IF(G43=\"0\",\"\",IF(G43=$K$1,\"1\",\"0\")))","v":""},{"$error":"#VALUE!"},{"$f":"IF(OR(รายชื่อนักเรียน!F43=\"ย้าย\",M43=\"\"),\"\",IF(M43=\"0\",\"\",IF(M43=2,\"ผ่าน\",\"ไม่ผ่าน\")))","v":{"$error":"#VALUE!"}}]
[null,{"$f":"รายชื่อนักเรียน!B44","v":0},{"$f":"IF(รายชื่อนักเรียน!C44=\"\",\"\",รายชื่อนักเรียน!C44)","v":""},{"$f":"IF(รายชื่อนักเรียน!E44=\"\",\"\",รายชื่อนักเรียน!E44)","v":""},null,{"$f":"สรุปเวลาการเข้าร่วมกิจกรรม!S45","v":""},{"$f":"IF(OR(รายชื่อนักเรียน!F44=\"ย้าย\",F44=\"\"),\"\",(ประเมินจุดประสงค์การเรียนรู้!Q46))","v":""},"",{"$f":"IF(รายชื่อนักเรียน!$F44=\"\",\"\",รายชื่อนักเรียน!$F44)","v":""},null,{"$f":"IF(OR(รายชื่อนักเรียน!F44=\"ย้าย\",F44=\"\"),\"\",IF(F44=\"0\",\"\",IF(F44=$K$1,\"1\",\"0\")))","v":""},{"$f":"IF(OR(รายชื่อนักเรียน!F44=\"ย้าย\",G44=\"\"),\"\",IF(G44=\"0\",\"\",IF(G44=$K$1,\"1\",\"0\")))","v":""},{"$error":"#VALUE!"},{"$f":"IF(OR(รายชื่อนักเรียน!F44=\"ย้าย\",M44=\"\"),\"\",IF(M44=\"0\",\"\",IF(M44=2,\"ผ่าน\",\"ไม่ผ่าน\")))","v":{"$error":"#VALUE!"}}]
[null,{"$f":"รายชื่อนักเรียน!B45","v":0},{"$f":"IF(รายชื่อนักเรียน!C45=\"\",\"\",รายชื่อนักเรียน!C45)","v":""},{"$f":"IF(รายชื่อนักเรียน!E45=\"\",\"\",รายชื่อนักเรียน!E45)","v":""},null,{"$f":"สรุปเวลาการเข้าร่วมกิจกรรม!S46","v":""},{"$f":"IF(OR(รายชื่อนักเรียน!F45=\"ย้าย\",F45=\"\"),\"\",(ประเมินจุดประสงค์การเรียนรู้!Q47))","v":""},"",{"$f":"IF(รายชื่อนักเรียน!$F45=\"\",\"\",รายชื่อนักเรียน!$F45)","v":""},null,{"$f":"IF(OR(รายชื่อนักเรียน!F45=\"ย้าย\",F45=\"\"),\"\",IF(F45=\"0\",\"\",IF(F45=$K$1,\"1\",\"0\")))","v":""},{"$f":"IF(OR(รายชื่อนักเรียน!F45=\"ย้าย\",G45=\"\"),\"\",IF(G45=\"0\",\"\",IF(G45=$K$1,\"1\",\"0\")))","v":""},{"$error":"#VALUE!"},{"$f":"IF(OR(รายชื่อนักเรียน!F45=\"ย้าย\",M45=\"\"),\"\",IF(M45=\"0\",\"\",IF(M45=2,\"ผ่าน\",\"ไม่ผ่าน\")))","v":{"$error":"#VALUE!"}}]
[null,{"$f":"รายชื่อนักเรียน!B46","v":0},{"$f":"IF(รายชื่อนักเรียน!C46=\"\",\"\",รายชื่อนักเรียน!C46)","v":""},{"$f":"IF(รายชื่อนักเรียน!E46=\"\",\"\",รายชื่อนักเรียน!E46)","v":""},null,{"$f":"สรุปเวลาการเข้าร่วมกิจกรรม!S47","v":""},{"$f":"IF(OR(รายชื่อนักเรียน!F46=\"ย้าย\",F46=\"\"),\"\",(ประเมินจุดประสงค์การเรียนรู้!Q48))","v":""},"",{"$f":"IF(รายชื่อนักเรียน!$F46=\"\",\"\",รายชื่อนักเรียน!$F46)","v":""},null,{"$f":"IF(OR(รายชื่อนักเรียน!F46=\"ย้าย\",F46=\"\"),\"\",IF(F46=\"0\",\"\",IF(F46=$K$1,\"1\",\"0\")))","v":""},{"$f":"IF(OR(รายชื่อนักเรียน!F46=\"ย้าย\",G46=\"\"),\"\",IF(G46=\"0\",\"\",IF(G46=$K$1,\"1\",\"0\")))","v":""},{"$error":"#VALUE!"},{"$f":"IF(OR(รายชื่อนักเรียน!F46=\"ย้าย\",M46=\"\"),\"\",IF(M46=\"0\",\"\",IF(M46=2,\"ผ่าน\",\"ไม่ผ่าน\")))","v":{"$error":"#VALUE!"}}]
[null,{"$f":"รายชื่อนักเรียน!B47","v":0},{"$f":"IF(รายชื่อนักเรียน!C47=\"\",\"\",รายชื่อนักเรียน!C47)","v":""},{"$f":"IF(รายชื่อนักเรียน!E47=\"\",\"\",รายชื่อนักเรียน!E47)","v":""},null,{"$f":"สรุปเวลาการเข้าร่วมกิจกรรม!S48","v":""},{"$f":"IF(OR(รายชื่อนักเรียน!F47=\"ย้าย\",F47=\"\"),\"\",(ประเมินจุดประสงค์การเรียนรู้!Q49))","v":""},"",{"$f":"IF(รายชื่อนักเรียน!$F47=\"\",\"\",รายชื่อนักเรียน!$F47)","v":""},null,{"$f":"IF(OR(รายชื่อนักเรียน!F47=\"ย้าย\",F47=\"\"),\"\",IF(F47=\"0\",\"\",IF(F47=$K$1,\"1\",\"0\")))","v":""},{"$f":"IF(OR(รายชื่อนักเรียน!F47=\"ย้าย\",G47=\"\"),\"\",IF(G47=\"0\",\"\",IF(G47=$K$1,\"1\",\"0\")))","v":""},{"$error":"#VALUE!"},{"$f":"IF(OR(รายชื่อนักเรียน!F47=\"ย้าย\",M47=\"\"),\"\",IF(M47=\"0\",\"\",IF(M47=2,\"ผ่าน\",\"ไม่ผ่าน\")))","v":{"$error":"#VALUE!"}}]
[null,{"$f":"รายชื่อนักเรียน!B48","v":0},{"$f":"IF(รายชื่อนักเรียน!C48=\"\",\"\",รายชื่อนักเรียน!C48)","v":""},{"$f":"IF(รายชื่อนักเรียน!E48=\"\",\"\",รายชื่อนักเรียน!E48)","v":""},null,{"$f":"สรุปเวลาการเข้าร่วมกิจกรรม!S49","v":""},{"$f":"IF(OR(รายชื่อนักเรียน!F48=\"ย้าย\",F48=\"\"),\"\",(ประเมินจุดประสงค์การเรียนรู้!Q50))","v":""},"",{"$f":"IF(รายชื่อนักเรียน!$F48=\"\",\"\",รายชื่อนักเรียน!$F48)","v":""},null,{"$f":"IF(OR(รายชื่อนักเรียน!F48=\"ย้าย\",F48=\"\"),\"\",IF(F48=\"0\",\"\",IF(F48=$K$1,\"1\",\"0\")))","v":""},{"$f":"IF(OR(รายชื่อนักเรียน!F48=\"ย้าย\",G48=\"\"),\"\",IF(G48=\"0\",\"\",IF(G48=$K$1,\"1\",\"0\")))","v":""},{"$error":"#VALUE!"},{"$f":"IF(OR(รายชื่อนักเรียน!F48=\"ย้าย\",M48=\"\"),\"\",IF(M48=\"0\",\"\",IF(M48=2,\"ผ่าน\",\"ไม่ผ่าน\")))","v":{"$error":"#VALUE!"}}]
[null,{"$f":"รายชื่อนักเรียน!B49","v":0},{"$f":"IF(รายชื่อนักเรียน!C49=\"\",\"\",รายชื่อนักเรียน!C49)","v":""},{"$f":"IF(รายชื่อนักเรียน!E49=\"\",\"\",รายชื่อนักเรียน!E49)","v":""},null,{"$f":"สรุปเวลาการเข้าร่วมกิจกรรม!S50","v":""},{"$f":"IF(OR(รายชื่อนักเรียน!F49=\"ย้าย\",F49=\"\"),\"\",(ประเมินจุดประสงค์การเรียนรู้!Q51))","v":""},"",{"$f":"IF(รายชื่อนักเรียน!$F49=\"\",\"\",รายชื่อนักเรียน!$F49)","v":""},null,{"$f":"IF(OR(รายชื่อนักเรียน!F49=\"ย้าย\",F49=\"\"),\"\",IF(F49=\"0\",\"\",IF(F49=$K$1,\"1\",\"0\")))","v":""},{"$f":"IF(OR(รายชื่อนักเรียน!F49=\"ย้าย\",G49=\"\"),\"\",IF(G49=\"0\",\"\",IF(G49=$K$1,\"1\",\"0\")))","v":""},{"$error":"#VALUE!"},{"$f":"IF(OR(รายชื่อนักเรียน!F49=\"ย้าย\",M49=\"\"),\"\",IF(M49=\"0\",\"\",IF(M49=2,\"ผ่าน\",\"ไม่ผ่าน\")))","v":{"$error":"#VALUE!"}}]
[null,{"$f":"รายชื่อนักเรียน!B50","v":0},{"$f":"IF(รายชื่อนักเรียน!C50=\"\",\"\",รายชื่อนักเรียน!C50)","v":""},{"$f":"IF(รายชื่อนักเรียน!E50=\"\",\"\",รายชื่อนักเรียน!E50)","v":""},null,{"$f":"สรุปเวลาการเข้าร่วมกิจกรรม!S51","v":""},{"$f":"IF(OR(รายชื่อนักเรียน!F50=\"ย้าย\",F50=\"\"),\"\",(ประเมินจุดประสงค์การเรียนรู้!Q52))","v":""},"",{"$f":"IF(รายชื่อนักเรียน!$F50=\"\",\"\",รายชื่อนักเรียน!$F50)","v":""},null,{"$f":"IF(OR(รายชื่อนักเรียน!F50=\"ย้าย\",F50=\"\"),\"\",IF(F50=\"0\",\"\",IF(F50=$K$1,\"1\",\"0\")))","v":""},{"$f":"IF(OR(รายชื่อนักเรียน!F50=\"ย้าย\",G50=\"\"),\"\",IF(G50=\"0\",\"\",IF(G50=$K$1,\"1\",\"0\")))","v":""},{"$error":"#VALUE!"},{"$f":"IF(OR(รายชื่อนักเรียน!F50=\"ย้าย\",M50=\"\"),\"\",IF(M50=\"0\",\"\",IF(M50=2,\"ผ่าน\",\"ไม่ผ่าน\")))","v":{"$error":"#VALUE!"}}]
[]
[]
[null,null,null,null,null,"ผ่าน","ไม่ผ่าน","รวม"]
[null,null,null,null,"จำนวน",{"$f":"COUNTIF(H6:H50,\"ผ่าน\")","v":0},{"$f":"COUNTIF(H6:H50,\"ไม่ผ่าน\")","v":0},{"$f":"SUM(F54:G54)","v":0}]
[null,null,null,null,"ร้อยละ",{"$f":"IFERROR((F54*100)/รายชื่อนักเรียน!S10,\"\")","v":""},{"$f":"IFERROR((G54*100)/รายชื่อนักเรียน!S10,\"\")","v":""},{"$f":"SUM(F55:G55)","v":0}]

{"sheet":"จุดประสงค์การเรียนรู้","index":9,"n_rows":18,"n_cols":3,"rows_kept":18,"cut":false,"hidden":false,"merged":[[1,1,1,6],[44,4,44,5],[45,4,45,5],[46,4,46,5],[47,4,47,5],[40,2,40,6],[41,2,41,6],[42,2,42,6],[38,2,38,6],[39,2,39,6],[37,2,37,6],[34,2,34,6],[35,2,35,6],[36,2,36,6],[31,2,31,6],[32,2,32,6],[33,2,33,6],[18,2,18,6],[19,2,19,6],[29,2,29,6],[30,2,30,6],[2,2,2,6],[3,2,3,6],[4,2,4,6],[5,2,5,6],[17,2,17,6],[6,2,6,6],[7,2,7,6],[8,2,8,6],[9,2,9,6],[10,2,10,6],[11,2,11,6],[12,2,12,6],[13,2,13,6],[14,2,14,6],[15,2,15,6],[16,2,16,6]]}
[]
[null,{"$f":"\"จุดประสงค์การเรียนรู้ กิจกรรม\"&ตั้งค่า!C20","v":"จุดประสงค์การเรียนรู้ กิจกรรม"}]
[null,"ข้อที่","จุดประสงค์"]
[null,{"$f":"กรอกจุดประสงค์!B4","v":0},{"$f":"กรอกจุดประสงค์!C4","v":0}]
[null,{"$f":"กรอกจุดประสงค์!B5","v":0},{"$f":"กรอกจุดประสงค์!C5","v":0}]
[null,{"$f":"กรอกจุดประสงค์!B6","v":0},{"$f":"กรอกจุดประสงค์!C6","v":0}]
[null,{"$f":"กรอกจุดประสงค์!B7","v":0},{"$f":"กรอกจุดประสงค์!C7","v":0}]
[null,{"$f":"กรอกจุดประสงค์!B8","v":0},{"$f":"กรอกจุดประสงค์!C8","v":0}]
[null,{"$f":"กรอกจุดประสงค์!B9","v":0},{"$f":"กรอกจุดประสงค์!C9","v":0}]
[null,{"$f":"กรอกจุดประสงค์!B10","v":0},{"$f":"กรอกจุดประสงค์!C10","v":0}]
[null,{"$f":"กรอกจุดประสงค์!B11","v":0},{"$f":"กรอกจุดประสงค์!C11","v":0}]
[null,{"$f":"กรอกจุดประสงค์!B12","v":0},{"$f":"กรอกจุดประสงค์!C12","v":0}]
[null,{"$f":"กรอกจุดประสงค์!B13","v":0},{"$f":"กรอกจุดประสงค์!C13","v":0}]
[null,{"$f":"กรอกจุดประสงค์!B14","v":0},{"$f":"กรอกจุดประสงค์!C14","v":0}]
[null,{"$f":"กรอกจุดประสงค์!B15","v":0},{"$f":"กรอกจุดประสงค์!C15","v":0}]
[null,{"$f":"กรอกจุดประสงค์!B16","v":0},{"$f":"กรอกจุดประสงค์!C16","v":0}]
[null,{"$f":"กรอกจุดประสงค์!B17","v":0},{"$f":"กรอกจุดประสงค์!C17","v":0}]
[null,{"$f":"กรอกจุดประสงค์!B18","v":0},{"$f":"กรอกจุดประสงค์!C18","v":0}]

{"sheet":"ปกหลัง","index":10,"n_rows":26,"n_cols":4,"rows_kept":26,"cut":false,"hidden":false,"merged":[[27,2,27,3],[28,2,28,3],[29,2,29,3],[30,2,30,3],[1,1,1,8],[16,2,16,4],[15,2,15,6],[14,2,14,6],[32,5,32,6],[33,5,33,6],[34,5,34,6],[32,2,32,4],[33,2,33,4],[34,2,34,4],[35,5,35,6],[36,5,36,6],[37,5,37,6],[35,2,35,4],[36,2,36,4],[37,2,37,4],[38,5,38,6],[39,5,39,6],[40,5,40,6],[38,2,38,4],[39,2,39,4],[40,2,40,4]]}
[null,"ปกหลัง"]
[null,"คำอธิบายการใช้แบบประเมินผลกิจกรรมพัฒนาผู้เรียน"]
[null,"การบันทึกเวลาเรียน"]
[null,"1. เลขประจำตัว  ให้กรอกเลขประจำตัวนักเรียนเรียงจากน้อยไปมาก แยกชายหญิง โดยเรียงชายก่อน"]
[null,"2. สัปดาห์ที่ 1-20 เป็นสัปดาห์ในภาคเรียนที่ 1 และสัปดาห์ที่ 21-40 เป็นสัปดาห์ในภาคเรียนที่ 2"]
[null,"3. ระบุชื่อวันที่ เดือน ปี ที่สอนให้ชัดเจน ตามจำนวนชั่วโมงต่อสัปดาห์ของแต่ละรายวิชาที่กำหนด"]
[null,"4. การบันทึกเวลาเรียน"]
[null,null,"4.1 ผู้ที่มาเรียนให้ทำเครื่องหมาย / ในแต่ละช่อง  สำหรับผู้ที่ไม่มาเรียนให้ระบุสาเหตุของการไม่มาเรียน"]
[null,null,null,"ในแต่ละช่อง  \"ป\"--ป่วย   \"ล\"---ลา   \"ข\"---ขาดเรียน  แล้วแต่กรณี  ส่วน \"ย\"---วันหยุด"]
[null,null,"4.2 ถ้านักเรียนย้าย หรือออกจากสถานศึกษาระหว่างปี ให้ทำเครื่องหมาย - หรือขีดเส้นตรงด้วยหมึกสีแดง"]
[null,null,null,"แล้วระบุสาเหตุที่ออกกำกับไว้ด้วย เช่น ย้ายไปศึกษาต่อที่อื่น เป็นต้น"]
[null,null,"4.3 ให้รวมจำนวนชั่วโมงที่สอนตลอดปีหรือภาคเรียนในช่อง \"เวลาเรียนเต็ม\" และคำนวณร้อยละที่มาเรียน"]
[null,null,null,"ลงในช่อง \"ร้อยละที่มาเรียน\" หากเวลาเรียนไม่ถึงร้อยละ 80 ของรายวิชานั้น ให้บันทึกด้วยหมึกสีแดง"]
[null,"เกณฑ์การประเมินกิจกรรม"]
[null,null,"1.  มีเวลาเข้าร่วมกิจกรรม   ไม่น้อยกว่าร้อยละ 80"]
[null,null,"2. มีการปฏิบัติกิจกรรมและผลงาน ผ่านเกณฑ์การประเมินจุดประสงค์การเรียนรู้ ตามเกณฑ์ที่สถานศึกษากำหนด"]
[]
[null,"การตัดสินสรุปผลการประเมินรายกิจกรรม"]
[null,null,"ผ่าน   หมายถึง  ผู้เรียนมีเวลาเข้าร่วมกิจกรรม มีผลงาน/ชิ้นงาน และปฏิบัติกิจกรรมตามเกณฑ์ที่สถานศึกษากำหนด"]
[null,null,"ไม่ผ่าน  หมายถึง  ผู้เรียนมีเวลาเข้าร่วมกิจกรรมไม่ครบตามเกณฑ์ ไม่ผ่านการปฏิบัติกิจกรรม "]
[null,null,"            และมีผลงาน/ชิ้นงานไม่เป็นไปตามเกณฑ์ที่สถานศึกษากำหนด"]
[]
[]
[null,"5. หน้าปก ปพ.กิจกรรมพัฒนาผู้เรียน"]
[null,"         สรุปจำนวนนักเรียนที่ได้ผลการประเมินแต่ละระดับ บันทึกในช่องสรุปผลการประเมิน (หน้าปก ปพ.)"]
[null,"แล้วเซ็นต์ชื่อครูที่ปรึกษา  หัวหน้าวิชาการ  รองผู้อำนวยการ  และนำเสนอผู้อำนวยการโรงเรียน  พร้อมลงวันที่อนุมัติ"]

{"sheet":"บันทึกข้อความ","index":11,"n_rows":30,"n_cols":10,"rows_kept":30,"cut":false,"hidden":false,"merged":[[29,5,29,10],[1,1,1,11],[28,6,28,9],[24,3,24,10],[18,6,18,9],[19,5,19,10],[4,2,4,4],[4,6,4,7]]}
[]
[null,"บันทึกข้อความรายงานการประเมินผลกิจกรรมพัฒนาผู้เรียน"]
[]
[null,"ส่วนราชการ",null,null,{"$f":"\"โรงเรียน\"&ตั้งค่า!E3&\"\"&ตั้งค่า!C12","v":"โรงเรียนบ้านหัวคลอง"}]
[null,"ที่","พิเศษ/2567",null,null,"วันที่","2024-11-01"]
[null,"เรื่อง",{"$f":"\"รายงานผลการประเมิน กิจกรรม\"&ตั้งค่า!C20&\"  ชั้น\"&ตั้งค่า!C17","v":"รายงานผลการประเมิน กิจกรรม  ชั้น"}]
[null,{"$f":"\"เรียน  ผู้อำนวยการโรงเรียน\"&ตั้งค่า!C12","v":"เรียน  ผู้อำนวยการโรงเรียนบ้านหัวคลอง"}]
[null,null,null,{"$f":"\"ตามที่ โรงเรียน\"&ตั้งค่า!C12&\"  ได้มอบหมายให้ข้าพเจ้า  \"&ตั้งค่า!C18","v":"ตามที่ โรงเรียนบ้านหัวคลอง  ได้มอบหมายให้ข้าพเจ้า  "}]
[null,{"$f":"\"เป็นครูที่ปรึกษา\"&\"  กิจกรรม\"&ตั้งค่า!C20&\"  ชั้น\"&ตั้งค่า!C17&\" ปีการศึกษา \"&ตั้งค่า!C11","v":"เป็นครูที่ปรึกษา  กิจกรรม  ชั้น ปีการศึกษา "}]
[]
[null,null,null,"บัดนี้ ข้าพเจ้าได้จัดการเรียนรู้และประเมินผลกิจกรรมดังกล่าว   ซึ่งสอดคล้องกับหลักสูตรสถานศึกษา"]
[null,"และหลักสูตรแกนกลางการศึกษาขั้นพื้นฐาน และประเมินตามการวัดและประเมินผลการเรียนรู้ (กิจกรรมพัฒนาผู้เรียน)"]
[null,"เสร็จสิ้นแล้ว นั้น"]
[null,null,null,"ข้าพเจ้าจึงขอรายงานการประเมินผลกิจกรรมดังกล่าว และแนบแบบรายงานผลมาพร้อมฉบับนี้ด้วยแล้ว"]
[]
[null,null,null,"จึงเรียนมาเพื่อโปรดทราบ"]
[]
[null,null,null,null,null,null,"ลงชื่อ",null,null,"ครูที่ปรึกษา"]
[null,null,null,null,null,null,{"$f":"\"(\"&ตั้งค่า!C18&\")\"","v":"()"}]
[]
[]
[]
[]
[null,null,null,"ความคิดเห็นของผู้อำนวยการโรงเรียน"]
[]
[]
[]
[null,null,null,null,null,null,"ลงชื่อ"]
[null,null,null,null,null,null,{"$f":"\"(\"&ตั้งค่า!C27&\")\"","v":"()"}]
[null,null,null,null,null,{"$f":"ตั้งค่า!B27&ตั้งค่า!C12","v":"ผู้อำนวยการโรงเรียนบ้านหัวคลอง"}]

{"sheet":"กิจกรรมแนะแนว","index":12,"n_rows":7,"n_cols":3,"rows_kept":7,"cut":false,"hidden":false,"merged":[[19,2,19,6],[8,2,8,6],[9,2,9,6],[10,2,10,6],[11,2,11,6],[12,2,12,6],[13,2,13,6],[14,2,14,6],[15,2,15,6],[16,2,16,6],[17,2,17,6],[18,2,18,6],[29,2,29,6],[30,2,30,6],[31,2,31,6],[20,2,20,6],[21,2,21,6],[22,2,22,6],[23,2,23,6],[24,2,24,6],[25,2,25,6],[7,2,7,6],[2,2,2,6],[42,2,42,6],[32,2,32,6],[33,2,33,6],[34,2,34,6],[39,2,39,6],[40,2,40,6],[41,2,41,6],[35,2,35,6],[36,2,36,6],[37,2,37,6],[38,2,38,6],[26,2,26,6],[27,2,27,6],[28,2,28,6],[1,1,1,6],[3,2,3,6],[4,2,4,6],[5,2,5,6],[6,2,6,6]]}
["กิจกรรมแนะแนว"]
[null,{"$f":"\"จุดประสงค์การเรียนรู้ \"&กิจกรรมแนะแนว!$A$1","v":"จุดประสงค์การเรียนรู้ กิจกรรมแนะแนว"}]
[null,"ข้อที่","หัวข้อ"]
[null,1,"ให้นักเรียนรู้จัก เข้าใจ รักและเห็นคุณค่าในตนเองและผู้อื่น"]
[null,2,"เพื่อให้ผู้เรียนสามารถวางแผนการศึกษา อาชีพ รวมทั้งการดำเนินชีวิตและสังคม"]
[null,3,"เพื่อให้นักเรียนรู้จักเผชิญกับสิ่งแวดล้อมใหม่ๆ  และสามารถแก้ปัญหาต่างๆ  ได้อย่างมีเหตุผล"]
[null,4,"เพื่อช่วยให้นักเรียนรู้จักตนเองและพัฒนาศักยภาพตนเองไปสู่เป้าหมายที่พึงประสงค์"]

{"sheet":"กิจกรรมลูกเสือ","index":13,"n_rows":8,"n_cols":3,"rows_kept":8,"cut":false,"hidden":false,"merged":[[6,2,6,6],[1,1,1,6],[2,2,2,6],[3,2,3,6],[4,2,4,6],[5,2,5,6],[18,2,18,6],[7,2,7,6],[8,2,8,6],[9,2,9,6],[10,2,10,6],[11,2,11,6],[12,2,12,6],[13,2,13,6],[14,2,14,6],[15,2,15,6],[16,2,16,6],[17,2,17,6],[30,2,30,6],[19,2,19,6],[20,2,20,6],[21,2,21,6],[22,2,22,6],[23,2,23,6],[24,2,24,6],[25,2,25,6],[26,2,26,6],[27,2,27,6],[28,2,28,6],[29,2,29,6],[42,2,42,6],[31,2,31,6],[32,2,32,6],[33,2,33,6],[34,2,34,6],[35,2,35,6],[36,2,36,6],[37,2,37,6],[38,2,38,6],[39,2,39,6],[40,2,40,6],[41,2,41,6]]}
["กิจกรรมลูกเสือเนตรนารี"]
[null,{"$f":"\"จุดประสงค์การเรียนรู้ \"&กิจกรรมลูกเสือ!$A$1","v":"จุดประสงค์การเรียนรู้ กิจกรรมลูกเสือเนตรนารี"}]
[null,"ข้อที่","หัวข้อ"]
[null,1,"เพื่อให้นักเรียนมีความรู้ความเข้าใจกิจกรรมของลูกเสือ  เนตรนารี"]
[null,2,"เพื่อให้นักเรียนปฏิบัติกิจกรรมตามขั้นตอนที่ได้รับการแนะนำและพัฒนาตนเองอยู่เสมอ"]
[null,3,"เพื่อให้นักเรียนปฏิบัติตนตามคำปฏิญาณตน  กฎ  ระเบียบ  ของบังคับด้วยความตั้งใจ"]
[null,4,"เพื่อให้นักเรียนสามารถปฏิบัติกิจกรรมร่วมกับผู้อื่นได้"]
[null,5,"เพื่อให้นักเรียนได้รู้จักการบำเพ็ญตนให้เป็นประโยชน์ต่อสังคมและส่วนรวม"]

{"sheet":"กิจกรรมชุมนุม","index":14,"n_rows":7,"n_cols":3,"rows_kept":7,"cut":false,"hidden":false,"merged":[[6,2,6,6],[1,1,1,6],[2,2,2,6],[3,2,3,6],[4,2,4,6],[5,2,5,6],[18,2,18,6],[7,2,7,6],[8,2,8,6],[9,2,9,6],[10,2,10,6],[11,2,11,6],[12,2,12,6],[13,2,13,6],[14,2,14,6],[15,2,15,6],[16,2,16,6],[17,2,17,6],[30,2,30,6],[19,2,19,6],[20,2,20,6],[21,2,21,6],[22,2,22,6],[23,2,23,6],[24,2,24,6],[25,2,25,6],[26,2,26,6],[27,2,27,6],[28,2,28,6],[29,2,29,6],[42,2,42,6],[31,2,31,6],[32,2,32,6],[33,2,33,6],[34,2,34,6],[35,2,35,6],[36,2,36,6],[37,2,37,6],[38,2,38,6],[39,2,39,6],[40,2,40,6],[41,2,41,6]]}
["กิจกรรมชุมนุม"]
[null,{"$f":"\"จุดประสงค์การเรียนรู้ \"&กิจกรรมชุมนุม!$A$1","v":"จุดประสงค์การเรียนรู้ กิจกรรมชุมนุม"}]
[null,"ข้อที่","หัวข้อ"]
[null,1,"เพื่อให้ผู้เรียนได้ปฏิบัติกิจกรรมตามความสนใจ ความถนัด และความต้องการของตน"]
[null,2,"เพื่อให้ผู้เรียนได้พัฒนาความรู้ ความสามารถด้านการคิดวิเคราะห์ ให้เกิดประสบการณ์ทั้งทางวิชาการและวิชาชีพตามศักยภาพ"]
[null,3,"เพื่อส่งเสริมให้ผู้เรียนใช้เวลาให้เกิดประโยชน์ต่อตนเองและส่วนรวม"]
[null,4,"เพื่อให้ผู้เรียนทำงานร่วมกับผู้อื่นได้ตามวิถีประชาธิปไตย"]

{"sheet":"กิจกรรมเพื่อสังคม","index":15,"n_rows":8,"n_cols":3,"rows_kept":8,"cut":false,"hidden":false,"merged":[[6,2,6,6],[1,1,1,6],[2,2,2,6],[3,2,3,6],[4,2,4,6],[5,2,5,6],[18,2,18,6],[7,2,7,6],[8,2,8,6],[9,2,9,6],[10,2,10,6],[11,2,11,6],[12,2,12,6],[13,2,13,6],[14,2,14,6],[15,2,15,6],[16,2,16,6],[17,2,17,6],[30,2,30,6],[19,2,19,6],[20,2,20,6],[21,2,21,6],[22,2,22,6],[23,2,23,6],[24,2,24,6],[25,2,25,6],[26,2,26,6],[27,2,27,6],[28,2,28,6],[29,2,29,6],[42,2,42,6],[31,2,31,6],[32,2,32,6],[33,2,33,6],[34,2,34,6],[35,2,35,6],[36,2,36,6],[37,2,37,6],[38,2,38,6],[39,2,39,6],[40,2,40,6],[41,2,41,6]]}
["กิจกรรมเพื่อสังคมและสาธารณประโยชน์"]
[null,{"$f":"\"จุดประสงค์การเรียนรู้ \"&กิจกรรมเพื่อสังคม!$A$1","v":"จุดประสงค์การเรียนรู้ กิจกรรมเพื่อสังคมและสาธารณประโยชน์"}]
[null,"ข้อที่","หัวข้อ"]
[null,1,"เพื่อให้นักเรียนบอกประโยชน์ได้รับจากการร่วมกิจกรรมเพื่อสังคม  และสาธารณประโยชน์ได้"]
[null,2,"เพื่อสร้างคุณลักษณะคือ ทำความดี  รู้จักเสียสละ  ขยันหมั่นเพียรและการเป็นสมาชิก ที่มีของครอบครัว โรงเรียน ชุนชน\n             ครอบครัว โรงเรียน ชุนชน\n"]
[null,3,"เพื่อสร้างคุณลักษณะการมีวินัยในคนของและความรับผิดชอบ"]
[null,4,"เพื่อสร้างคุณลักษณะ คือ การรู้จัก ทำงานร่วมกับผู้อื่น ปรับตัวเข้ากับ สิ่งแวดล้อม"]
[null,5,"เพื่อสร้างมีวินัย ความอดทนเสียสละการสังเกต การร่วมมือกับคนอื่น รักการทำงาน  มีความคิดริเริ่มสร้างสรรค์ และการเป็นผู้นำผู้ตาม"]